Workbook

Sheet 1. INFORMACION ACUMULADA
A2: VEEDURIA DISTRITAL - INFORMACIÓN GESTION CONTRACTUAL
A3: DEL 1 DE ENERO AL 31 DE DICIEMBRE DE 2024
A5: 1. Entidad | E5: Alcaldia Local La Candelaria | H5: 2. Sector | I5: Gobierno
A6: 3. Presupuesto Disponible Inversión Directa (BOGDATA) | E6: 26529820000 | H6: 5. Presupuesto Disponible Funcionamiento (BOGDATA) | I6: 3207018000 | AI6: 7. Nombre de quien diligencia el formato | AK6: PAULA ANDREA VILLOTA DELGADO
A7: 4. Presupuesto Comprometido de Inversión Directa según (BOGDATA) | E7: 25645184341 | H7: 6. Presupuesto Comprometido Funcionamiento según (BOGDATA) | I7: 3106811147 | AI7: Cargo | AK7: AUXILIAR ADMINISTRATIVO
AI8: Dependencia | AK8: CONTRATACION
AI9: Teléfono | AK9: 3143208836
AI10: Correo Electrónico | AK10: paula.villota@gobiernobogota.gov.co
A11: 0 | V11: 2- INFORMACION FINANCIERA | AC11: 3 - PLAZOS | AI11: 4. CESION | AM11: 5. ESTADO | AN11: 6. % Avance y/o cumplimiento
A12: 1 | B12: 2 | C12: 3 | E12: 4 | F12: 5 | G12: 6 | H12: 7 | I12: 8 | N12: 9 | O12: 10 | P12: 11 | V12: 12 | W12: 13 | X12: 14 | Y12: 15 | Z12: 16 | AA12: 17 | AB12: 18 | AC12: 19 | AD12: 20 | AE12: 21 | AF12: 22 | AG12: 23 | AH12: 24 | AI12: 25 | AJ12: 26 | AK12: 27 | AL12: 28 | AM12: 29 | AN12: 30
A13: Número Contrato | B13: Año | C13: Número de proceso contractual SECOP | D13: Link proceso SECOP | E13: Tipo de contrato | F13: Modalidad de Selección | G13: Procedimiento o causal | H13: Objeto | I13: Afectación | J13: Plan de Desarrollo Distrital | K13: Número Programa | L13: Equivalencia número de programa | M13: Propósito | N13: Número Proyecto | O13: Número de proponentes | P13: Número de Identificación del contratista (Cédula o NIT sin puntos, comas ni caracteres especiales y sin digito de verificación) | Q13: Nombre del contratista (según el caso: nombres y apellidos o Razón social y Tipo societario) | R13: Naturaleza Jurídica | S13: Número de Identificación del integrante del Consorcio o U.T. (Cédula o NIT sin puntos, comas ni caracteres especiales y sin digito de verificación) | T13: Nombre del Integrante del Consorcio o U.T. y Tipo societario (Según el caso: nombres y apellidos o razón social y tipo societario) | U13: % Participación (indicar solo el numero del porcentaje, sin caracteres especiales) | V13: Vigencias futuras | W13: Valor Inicial del contrato | X13: Valor total reducciones (En valor negativo) | Y13: Número de adiciones | Z13: Valor total de adiciones | AA13: Valor Final | AB13: Giros (Valor en pesos) | AC13: Fecha de suscripción (DD/MM/AAAA) | AD13: Fecha de inicio (DD/MM/AAAA) | AE13: Fecha de terminación (DD/MM/AAAA) | AF13: Plazo en días | AG13: Número de prórrogas | AH13: Prorroga en días | AI13: Número de Identificación del cesionario (NIT sin digito de verificación) | AJ13: Nombre cesionario | AK13: Fecha cesión (DD/MM/AAAA) | AL13: Valor cesión | AM13: Estado | AN13: % Avance y/o Cumplimiento
A14: FDLC-OC-001-2024 | B14: 2024 | C14: ORDEN DE COMPRA 124067 | D14: https://www.colombiacompra.gov.co/tienda-virtual-del-estado-colombiano/ordenes-compra/124067 | E14: ORDEN DE COMPRA | F14: ACUERDO MARCO DE PRECIOS INTRUMENTO AGREGACION DE DEMANDA | G14: No aplica | H14: PRESTACIÓN INTEGRAL DE LOS SERVICIOS DE ASEO CAFETERIA MANTENIMIENTO MENOR Y JARDINERIA REQUERIDOS PARA LAS DEPENDENCIAS A CARGO DEL FONDO DE DESARROLLO LOCAL DE LA CANDELARIA | I14: FUNCIONAMIENTO | J14: Un nuevo contrato social y ambiental para la Bogotá del Siglo XXI | K14: 57 | L14: Gestión Pública Local | M14: Propósito 5. Construir Bogotà - Regiòn con gobierno abierto, transparente y ciudadanìa consciente. | N14: O23011605570000002021/O21202020080585330/O21202020060363399 | O14: 1 | P14: 1118545389 | Q14: UNION TEMPORAL CLEAN BOGOTA | R14: Persona Natural | W14: 223695741 | Y14: 2 | Z14: 61857158 | AA14: =+W14+X14+Z14 -> 285552899 | AB14: 246035351 | AC14: 2022-01-13 | AD14: 2022-01-13 | AE14: 2022-11-09 | AF14: 210 | AG14: 1 | AH14: 1 MES | AI14: N/A | AJ14: N/A | AK14: N/A | AL14: N/A | AM14: TERMINADO | AN14: =IF(ISERROR(AB14/AA14),"-",(AB14/AA14)) -> 0.8616104122
A15: FDLC-CPS-002-2024 | B15: 2024 | C15: FDLC-CPS-002-2024 | D15: https://community.secop.gov.co/Public/Tendering/OpportunityDetail/Index?noticeUID=CO1.NTC.5632233&isFromPublicArea=True&isModal=true&asPopupView=true | E15: CPS | F15: CONTRATACION DIRECTA | G15: Prestación de servicios profesionales y de apoyo a la gestión, o para la ejecución de trabajos artísticos que sólo puedan encomendarse a determinadas personas naturales | H15: PRESTAR SERVICIOS TÉCNICOS DE APOYO AL FONDO DE DESARROLLO LOCAL DE LA CANDELARIA PARA LA GESTION DE LOS ASUNTOS RELACIONES CON SEGURIDAD CIUDADANA CONVIVENCIA PREVENCIÓN DE CONFLICTIVIDADES VIOLENCIAS Y DELITOS EN LA LOCALIDAD | I15: INVERSION | J15: Un nuevo contrato social y ambiental para la Bogotá del Siglo XXI | K15: 57 | L15: Gestión Pública Local | M15: Propósito 5. Construir Bogotà - Regiòn con gobierno abierto, transparente y ciudadanìa consciente. | N15: O23011605570000002021 | O15: 1 | P15: 1018418431 | Q15: YENCI CAMILA PASTOR BULLA | R15: Persona Natural | W15: 12000000 | Y15: 2 | Z15: 6000000 | AA15: =+W15+X15+Z15 -> 18000000 | AB15: 18000000 | AC15: 2022-01-13 | AD15: 2022-01-13 | AE15: 2022-12-30 | AF15: 120 | AG15: 1 | AH15: 2 MESES | AI15: N/A | AJ15: N/A | AK15: N/A | AL15: N/A | AM15: TERMINADO | AN15: =IF(ISERROR(AB15/AA15),"-",(AB15/AA15)) -> 1
A16: FDLC-CPS-003-2024 | B16: 2024 | C16: FDLC-CPS-003-2024 | D16: https://community.secop.gov.co/Public/Tendering/OpportunityDetail/Index?noticeUID=CO1.NTC.5632041&isFromPublicArea=True&isModal=true&asPopupView=true | E16: CPS | F16: CONTRATACION DIRECTA | G16: Prestación de servicios profesionales y de apoyo a la gestión, o para la ejecución de trabajos artísticos que sólo puedan encomendarse a determinadas personas naturales | H16: PRESTACIÓN DE SERVICIOS PROFESIONALES AL FONDO DE DESARROLLO LOCAL DE LA CANDELARIA PARA ATENDER LAS PETICIONES QUEJAS RECLAMOS YO SOLICITUDES PRESENTADAS POR LA CIUDADANÍA DE CONFORMIDAD CON LOS TÉRMINOS LEGALES ESTABLECIDOS Y APOYAR LAS RESPUESTAS REQUERIDAS POR LOS ENTES DE CONTROL | I16: INVERSION | J16: Un nuevo contrato social y ambiental para la Bogotá del Siglo XXI | K16: 57 | L16: Gestión Pública Local | M16: Propósito 5. Construir Bogotà - Regiòn con gobierno abierto, transparente y ciudadanìa consciente. | N16: O23011605570000002021 | O16: 1 | P16: 1010175770 | Q16: LUIS ALFONSO ORJUELA ORTIZ | R16: Persona Natural | W16: 20000000 | Y16: 2 | Z16: 10000000 | AA16: 30000000 | AB16: 30000000 | AC16: 2022-01-13 | AD16: 2022-01-13 | AE16: 2022-10-27 | AF16: 120 | AG16: 2 | AH16: 2 MESES | AI16: N/A | AJ16: N/A | AK16: N/A | AL16: N/A | AM16: TERMINADO | AN16: 1
A17: FDLC-CPS-004-2024 | B17: 2024 | C17: FDLC-CPS-004-2024 | D17: https://community.secop.gov.co/Public/Tendering/OpportunityDetail/Index?noticeUID=CO1.NTC.5641640&isFromPublicArea=True&isModal=true&asPopupView=true | E17: CPS | F17: CONTRATACION DIRECTA | G17: Prestación de servicios profesionales y de apoyo a la gestión, o para la ejecución de trabajos artísticos que sólo puedan encomendarse a determinadas personas naturales | H17: PRESTAR SERVICIOS PROFESIONALES PARA APOYAR AL FONDO DE DESARROLLO LOCAL DE LA CANDELARIA EN LA FORMULACIÓN IMPLEMENTACIÓN Y SEGUIMIENTO DE LAS POLITICAS PLANES PROGRAMAS PROYECTOS Y ACTIVIDADES ARTÍSTICAS CULTURALES Y MUSICALES DE COMPETENCIA DE LA ENTIDAD" | I17: INVERSION | J17: Un nuevo contrato social y ambiental para la Bogotá del Siglo XXI | K17: 21 | L17: Creación y vida cotidiana: Apropiación ciudadana del arte, la cultura y el patrimonio, para la democracia cultural | M17: Propósito 1. Hacer un nuevo contrato social con igualdad de oportunidades para la inclusiòn social, productiva y polìtica | N17: O23011601210000001625 | O17: 1 | P17: 52314352 | Q17: WILLIAM FERNANDO CUBILLOS MOLINA | R17: Persona Natural | W17: 26000000 | Y17: 1 | Z17: 13000000 | AA17: 39000000 | AB17: 39000000 | AC17: 2022-01-13 | AD17: 2022-01-13 | AE17: 2023-01-09 | AF17: 120 | AG17: 1 | AH17: 2 MESES | AI17: N/A | AJ17: N/A | AK17: N/A | AL17: N/A | AM17: TERMINADO | AN17: 1
A18: FDLC-CPS-005-2024 | B18: 2024 | C18: FDLC-CPS-005-2024 | D18: https://community.secop.gov.co/Public/Tendering/OpportunityDetail/Index?noticeUID=CO1.NTC.5640693&isFromPublicArea=True&isModal=true&asPopupView=true | E18: CPS | F18: CONTRATACION DIRECTA | G18: Prestación de servicios profesionales y de apoyo a la gestión, o para la ejecución de trabajos artísticos que sólo puedan encomendarse a determinadas personas naturales | H18: APOYAR LA FORMULACIÓN GESTIÓN Y SEGUIMIENTO DE ACTIVIDADES ENFOCADAS A LA GESTIÓN AMBIENTAL EXTERNA ENCAMINADAS A LA MITIGACIÓN DE LOS DIFERENTES IMPACTOS AMBIENTALES Y LA CONSERVACIÓN DE LOS RECURSOS NATURALES DE LA LOCALIDAD | I18: INVERSION | J18: Un nuevo contrato social y ambiental para la Bogotá del Siglo XXI | K18: 57 | L18: Gestión Pública Local | M18: Propósito 5. Construir Bogotà - Regiòn con gobierno abierto, transparente y ciudadanìa consciente. | N18: O23011605570000002021 | O18: 1 | P18: 52496566 | Q18: SANDRA MILENA SANCHEZ GAMBA | R18: Persona Natural | W18: 29792000 | Y18: 1 | Z18: 14896000 | AA18: 44688000 | AB18: 44688000 | AC18: 2022-01-13 | AD18: 2022-01-13 | AE18: 2022-12-24 | AF18: 120 | AG18: 1 | AH18: 2 MESES | AI18: N/A | AJ18: N/A | AK18: N/A | AL18: N/A | AM18: TERMINADO | AN18: 1
A19: FDLC-CPS-006-2024 | B19: 2024 | C19: FDLC-CPS-006-2024 | D19: https://community.secop.gov.co/Public/Tendering/OpportunityDetail/Index?noticeUID=CO1.NTC.5640839&isFromPublicArea=True&isModal=true&asPopupView=true | E19: CPS | F19: CONTRATACION DIRECTA | G19: Prestación de servicios profesionales y de apoyo a la gestión, o para la ejecución de trabajos artísticos que sólo puedan encomendarse a determinadas personas naturales | H19: PRESTAR SERVICIOS PROFESIONALES PARA EL SEGUIMIENTO JURÍDICO DE LOS PROYECTOS DE INFRAESTRUCTURA ASÍ COMO LOS DEMÁS ASUNTOS CONTRACTUALES QUE SE REQUIERAN | I19: INVERSION | J19: Un nuevo contrato social y ambiental para la Bogotá del Siglo XXI | K19: 49 | L19: Movilidad segura, sostenible y accesible | M19: Propòsito 4. Hacer de Bogotà - Region un modelo de movilidad multimodal, incluyente y sostenible | N19: O23011604490000002020 | O19: 1 | P19: 1026266066 | Q19: JAVIER EDUARDO SANTIAGO MÉNDEZ | R19: Persona Natural | W19: 24000000 | Y19: 0 | Z19: 0 | AA19: 24000000 | AB19: 24000000 | AC19: 2022-01-13 | AD19: 2022-01-13 | AE19: 2022-12-12 | AF19: 120 | AH19: NO APLICA | AI19: N/A | AJ19: N/A | AK19: N/A | AL19: N/A | AM19: TERMINADO | AN19: 1
A20: FDLC-CPS-007-2024 | B20: 2024 | C20: FDLC-CPS-007-2024 | D20: https://community.secop.gov.co/Public/Tendering/OpportunityDetail/Index?noticeUID=CO1.NTC.5644365&isFromPublicArea=True&isModal=true&asPopupView=true | E20: CPS | F20: CONTRATACION DIRECTA | G20: Prestación de servicios profesionales y de apoyo a la gestión, o para la ejecución de trabajos artísticos que sólo puedan encomendarse a determinadas personas naturales | H20: PRESTACIÓN DE SERVICIOS PROFESIONALES AL FONDO DE DESARROLLO LOCAL DE LA CANDELARIA PARA ATENDER LAS PETICIONES QUEJAS RECLAMOS YO SOLICITUDES PRESENTADAS POR LA CIUDADANÍA DE CONFORMIDAD CON LOS TÉRMINOS LEGALES ESTABLECIDOS Y APOYAR LAS RESPUESTAS REQUERIDAS POR LOS ENTES DE CONTROL. | I20: INVERSION | J20: Un nuevo contrato social y ambiental para la Bogotá del Siglo XXI | K20: 57 | L20: Gestión Pública Local | M20: Propósito 5. Construir Bogotà - Regiòn con gobierno abierto, transparente y ciudadanìa consciente. | N20: O23011605570000002021 | O20: 1 | P20: 1024482565 | Q20: BRIAN DANILO DUARTE MONTAÑO | R20: Persona Natural | W20: 20000000 | Y20: 2 | Z20: 10000000 | AA20: 30000000 | AB20: 30000000 | AC20: 2022-01-14 | AD20: 2022-01-14 | AE20: 2023-01-09 | AF20: 120 | AG20: 1 | AH20: 2 MESES | AI20: N/A | AJ20: N/A | AK20: N/A | AL20: N/A | AM20: TERMINADO | AN20: 1
A21: FDLC-CPS-008-2024 | B21: 2024 | C21: FDLC-CPS-008-2024 | D21: https://community.secop.gov.co/Public/Tendering/OpportunityDetail/Index?noticeUID=CO1.NTC.5643570&isFromPublicArea=True&isModal=true&asPopupView=true | E21: CPS | F21: CONTRATACION DIRECTA | G21: Prestación de servicios profesionales y de apoyo a la gestión, o para la ejecución de trabajos artísticos que sólo puedan encomendarse a determinadas personas naturales | H21: PRESTAR SERVICIOS PROFESIONALES PARA EL SEGUIMIENTO JURÍDICO DE LOS PROYECTOS DE INFRAESTRUCTURA ASÍ COMO LOS DEMÁS ASUNTOS CONTRACTUALES QUE SE REQUIERAN | I21: INVERSION | J21: Un nuevo contrato social y ambiental para la Bogotá del Siglo XXI | K21: 49 | L21: Movilidad segura, sostenible y accesible | M21: Propòsito 4. Hacer de Bogotà - Region un modelo de movilidad multimodal, incluyente y sostenible | N21: O23011604490000002020 | O21: 1 | P21: 53032345 | Q21: JUAN PABLO ORTIZ MARTINEZ | R21: Persona Natural | W21: 24000000 | Y21: 1 | Z21: 12000000 | AA21: 36000000 | AB21: 36000000 | AC21: 2022-01-14 | AD21: 2022-01-14 | AE21: 2022-12-13 | AF21: 120 | AG21: 1 | AH21: 2 MESES | AI21: N/A | AJ21: N/A | AK21: N/A | AL21: N/A | AM21: TERMINADO | AN21: 1
A22: FDLC-CPS-009-2024 | B22: 2024 | C22: FDLC-CPS-009-2024 | D22: https://community.secop.gov.co/Public/Tendering/OpportunityDetail/Index?noticeUID=CO1.NTC.5643825&isFromPublicArea=True&isModal=true&asPopupView=true | E22: CPS | F22: CONTRATACION DIRECTA | G22: Prestación de servicios profesionales y de apoyo a la gestión, o para la ejecución de trabajos artísticos que sólo puedan encomendarse a determinadas personas naturales | H22: PRESTAR SERVICIOS PROFESIONALES ESPECIALIZADOS PARA REALIZAR LA COORDINACION TÉCNICA Y OPERATIVA DEL SEGUIMIENTO DE PLANES POLÍTICAS PROGRAMAS Y PROYECTOS DE INFRAESTRUCTURA Y OBRAS CIVILES QUE DESARROLLE LA ALCALDÍA LOCAL DE LA CANDELARIA EN EL MARCO DEL PLAN DE DESARROLLO LOCAL 2021-2024. | I22: INVERSION | J22: Un nuevo contrato social y ambiental para la Bogotá del Siglo XXI | K22: 49 | L22: Movilidad segura, sostenible y accesible | M22: Propòsito 4. Hacer de Bogotà - Region un modelo de movilidad multimodal, incluyente y sostenible | N22: O23011604490000002020 | O22: 1 | P22: 1140864695 | Q22: FABIAN HUMBERTO SALAMANCA JIMENEZ | R22: Persona Natural | W22: 36000000 | Y22: 1 | Z22: 18000000 | AA22: 54000000 | AB22: 54000000 | AC22: 2022-01-14 | AD22: 2022-01-14 | AE22: 2022-12-13 | AF22: 120 | AG22: 1 | AH22: 2 MESES | AI22: N/A | AJ22: N/A | AK22: N/A | AL22: N/A | AM22: TERMINADO | AN22: 1
A23: FDLC-CPS-010-2024 | B23: 2024 | C23: FDLC-CPS-010-2024 | D23: https://community.secop.gov.co/Public/Tendering/OpportunityDetail/Index?noticeUID=CO1.NTC.5649233&isFromPublicArea=True&isModal=true&asPopupView=true | E23: CPS | F23: CONTRATACION DIRECTA | G23: Prestación de servicios profesionales y de apoyo a la gestión, o para la ejecución de trabajos artísticos que sólo puedan encomendarse a determinadas personas naturales | H23: PRESTAR SERVICIOS PROFESIONALES PARA EL SEGUIMIENTO JURÍDICO DE LOS PROYECTOS DE INFRAESTRUCTURA ASÍ COMO LOS DEMÁS ASUNTOS CONTRACTUALES QUE SE REQUIERAN | I23: INVERSION | J23: Un nuevo contrato social y ambiental para la Bogotá del Siglo XXI | K23: 49 | L23: Movilidad segura, sostenible y accesible | M23: Propòsito 4. Hacer de Bogotà - Region un modelo de movilidad multimodal, incluyente y sostenible | N23: O23011604490000002020 | O23: 1 | P23: 51879946 | Q23: DAVID RICARDO PEÑALOZA LOMBO | R23: Persona Natural | W23: 24000000 | Y23: 0 | Z23: 0 | AA23: 24000000 | AB23: 24000000 | AC23: 2022-01-14 | AD23: 2022-01-14 | AE23: 2022-12-30 | AF23: 120 | AG23: 1 | AH23: NO APLICA | AI23: N/A | AJ23: N/A | AK23: N/A | AL23: N/A | AM23: TERMINADO | AN23: 1
A24: FDLC-CPS-011-2024 | B24: 2024 | C24: FDLC-CPS-011-2024 | D24: https://community.secop.gov.co/Public/Tendering/OpportunityDetail/Index?noticeUID=CO1.NTC.5643454&isFromPublicArea=True&isModal=true&asPopupView=true | E24: CPS | F24: CONTRATACION DIRECTA | G24: Prestación de servicios profesionales y de apoyo a la gestión, o para la ejecución de trabajos artísticos que sólo puedan encomendarse a determinadas personas naturales | H24: PRESTAR SERVICIOS PROFESIONALES EN MATERIA JURIDICA Y EN ARTICULACIÓN INTERINSTITUCIONAL A LA ALCALDIA LOCAL DE LA CANDELARIA | I24: INVERSION | J24: Un nuevo contrato social y ambiental para la Bogotá del Siglo XXI | K24: 57 | L24: Gestión Pública Local | M24: Propósito 5. Construir Bogotà - Regiòn con gobierno abierto, transparente y ciudadanìa consciente. | N24: O23011605570000002021 | O24: 1 | P24: 79814029 | Q24: LINDA ALEXA PAOLA PRIETO GARZON | R24: Persona Natural | W24: 26000000 | Y24: 1 | Z24: 13000000 | AA24: 39000000 | AB24: 36400000 | AC24: 2022-01-14 | AD24: 2022-01-14 | AE24: 2022-12-26 | AF24: 120 | AG24: 1 | AH24: 2 MESES | AI24: N/A | AJ24: N/A | AK24: N/A | AL24: N/A | AM24: TERMINADO | AN24: 0.9333333333
A25: FDLC-CPS-012-2024 | B25: 2024 | C25: FDLC-CPS-012-2024 | D25: https://community.secop.gov.co/Public/Tendering/OpportunityDetail/Index?noticeUID=CO1.NTC.5647117&isFromPublicArea=True&isModal=true&asPopupView=true | E25: CPS | F25: CONTRATACION DIRECTA | G25: Prestación de servicios profesionales y de apoyo a la gestión, o para la ejecución de trabajos artísticos que sólo puedan encomendarse a determinadas personas naturales | H25: PRESTAR SERVICIOS PROFESIONALES AL FONDO DE DESARROLLO LOCAL DE LA CANDELARIA PARA APOYAR EL SEGUIMIENTO LIQUIDACIÓN DEPURACIÓN Y CONSOLIDACIÓN DE LA INFORMACIÓN DE LAS OBLIGACIONES POR PAGAR ASI COMO LAS DEMAS ACTIVIDADES DERIVADAS DE LA GESTIÓN CONTRACTUAL REQUERIDAS POR LA ENTIDAD | I25: INVERSION | J25: Un nuevo contrato social y ambiental para la Bogotá del Siglo XXI | K25: 57 | L25: Gestión Pública Local | M25: Propósito 5. Construir Bogotà - Regiòn con gobierno abierto, transparente y ciudadanìa consciente. | N25: O23011605570000002021 | O25: 1 | P25: 51875915 | Q25: YOSMILE RODRÍGUEZ CUARTAS | R25: Persona Natural | W25: 20000000 | Y25: 1 | Z25: 10000000 | AA25: =+W25+X25+Z25 -> 30000000 | AB25: 30000000 | AC25: 2022-01-14 | AD25: 2022-01-14 | AE25: 2022-10-13 | AF25: 120 | AG25: 1 | AH25: 2 MESES | AI25: N/A | AJ25: N/A | AK25: N/A | AL25: N/A | AM25: TERMINADO | AN25: 1
A26: FDLC-CPS-013-2024 | B26: 2024 | C26: FDLC-CPS-013-2024 | D26: https://community.secop.gov.co/Public/Tendering/OpportunityDetail/Index?noticeUID=CO1.NTC.5667006&isFromPublicArea=True&isModal=true&asPopupView=true | E26: CPS | F26: CONTRATACION DIRECTA | G26: Prestación de servicios profesionales y de apoyo a la gestión, o para la ejecución de trabajos artísticos que sólo puedan encomendarse a determinadas personas naturales | H26: PRESTAR SERVICIOS ASISTENCIALES PARA APOYAR EN LAS TAREAS RELACIONADAS CON LA GESTIÓN DOCUMENTAL DE LA ALCALDIA LOCAL DE LA CANDELARIA | I26: INVERSION | J26: Un nuevo contrato social y ambiental para la Bogotá del Siglo XXI | K26: 57 | L26: Gestión Pública Local | M26: Propósito 5. Construir Bogotà - Regiòn con gobierno abierto, transparente y ciudadanìa consciente. | N26: O23011605570000002021 | O26: 1 | P26: 12139994 | Q26: LUIS BARRIGA PINZON | R26: Persona Natural | W26: 7956000 | Y26: 1 | Z26: 1989000 | AA26: 9945000 | AB26: =+X26+Y26+AA26 -> 9945001 | AC26: 2022-01-18 | AD26: 2022-01-18 | AE26: 2022-12-30 | AF26: 120 | AG26: 1 | AH26: 1 MES | AI26: N/A | AJ26: N/A | AK26: N/A | AL26: N/A | AM26: TERMINADO | AN26: 1.000000101
A27: FDLC-CPS-014-2024 | B27: 2024 | C27: FDLC-CPS-014-2024 | D27: https://community.secop.gov.co/Public/Tendering/OpportunityDetail/Index?noticeUID=CO1.NTC.5651948&isFromPublicArea=True&isModal=true&asPopupView=true | E27: CPS | F27: CONTRATACION DIRECTA | G27: Prestación de servicios profesionales y de apoyo a la gestión, o para la ejecución de trabajos artísticos que sólo puedan encomendarse a determinadas personas naturales | H27: APOYAR AL ALCALDE LOCAL EN LA FORMULACIÓN SEGUIMIENTO E IMPLEMENTACIÓN DE LA ESTRATEGIA LOCAL PARA LA TERMINACIÓN JURÍDICA DE LAS ACTUACIONES ADMINISTRATIVAS QUE CURSAN EN LA ALCALDÍA LOCAL. | I27: INVERSION | J27: Un nuevo contrato social y ambiental para la Bogotá del Siglo XXI | K27: 57 | L27: Gestión Pública Local | M27: Propósito 5. Construir Bogotà - Regiòn con gobierno abierto, transparente y ciudadanìa consciente. | N27: O23011605570000002023 | O27: 1 | P27: 1102807537 | Q27: YENNI LORENA INFANTE GARCIA | R27: Persona Natural | W27: 29792000 | Y27: 2 | Z27: 14896000 | AA27: 44688000 | AB27: 44688000 | AC27: 2022-01-14 | AD27: 2022-01-14 | AE27: 2023-01-09 | AF27: 120 | AG27: 1 | AH27: 2 MESES | AI27: N/A | AJ27: N/A | AK27: N/A | AL27: N/A | AM27: TERMINADO | AN27: 1
A28: FDLC-CPS-015-2024 | B28: 2024 | C28: FDLC-CPS-015-2024 | D28: https://community.secop.gov.co/Public/Tendering/OpportunityDetail/Index?noticeUID=CO1.NTC.5651753&isFromPublicArea=True&isModal=true&asPopupView=true | E28: CPS | F28: CONTRATACION DIRECTA | G28: Prestación de servicios profesionales y de apoyo a la gestión, o para la ejecución de trabajos artísticos que sólo puedan encomendarse a determinadas personas naturales | H28: APOYAR AL ALCALDE LOCAL EN LA FORMULACIÓN SEGUIMIENTO E IMPLEMENTACIÓN DE LA ESTRATEGIA LOCAL PARA LA TERMINACIÓN JURÍDICA DE LAS ACTUACIONES ADMINISTRATIVAS QUE CURSAN EN LA ALCALDÍA LOCAL | I28: INVERSION | J28: Un nuevo contrato social y ambiental para la Bogotá del Siglo XXI | K28: 57 | L28: Gestión Pública Local | M28: Propósito 5. Construir Bogotà - Regiòn con gobierno abierto, transparente y ciudadanìa consciente. | N28: O23011605570000002023 | O28: 1 | P28: 1026255127 | Q28: YEIMIT YORYEY ROMERO HUERTAS | R28: Persona Natural | W28: 29792000 | Y28: 1 | Z28: 14896000 | AA28: 44688000 | AB28: =+X28+Y28+AA28 -> 44688001 | AC28: 2022-01-14 | AD28: 2022-01-14 | AE28: 2023-01-13 | AF28: 120 | AG28: 1 | AH28: 2 MESES | AI28: N/A | AJ28: N/A | AK28: N/A | AL28: N/A | AM28: TERMINADO | AN28: 1.000000022
A29: FDLC-CPS-016-2024 | B29: 2024 | C29: FDLC-CPS-016-2024 | D29: https://community.secop.gov.co/Public/Tendering/OpportunityDetail/Index?noticeUID=CO1.NTC.5652659&isFromPublicArea=True&isModal=true&asPopupView=true | E29: CPS | F29: CONTRATACION DIRECTA | G29: Prestación de servicios profesionales y de apoyo a la gestión, o para la ejecución de trabajos artísticos que sólo puedan encomendarse a determinadas personas naturales | H29: PRESTAR SERVICIOS PROFESIONALES EN MATERIA JURIDICA Y EN ARTICULACIÓN INTERINSTITUCIONAL A LA ALCALDIA LOCAL DE LA CANDELARIA | I29: INVERSION | J29: Un nuevo contrato social y ambiental para la Bogotá del Siglo XXI | K29: 57 | L29: Gestión Pública Local | M29: Propósito 5. Construir Bogotà - Regiòn con gobierno abierto, transparente y ciudadanìa consciente. | N29: O23011605570000002021 | O29: 1 | P29: 1022956077 | Q29: LEIDY KARINA CASTILLO PUENTES | R29: Persona Natural | W29: 26000000 | Y29: 0 | Z29: 0 | AA29: 26000000 | AB29: 26000000 | AC29: 2022-01-14 | AD29: 2022-01-14 | AE29: 2022-10-13 | AF29: 120 | AH29: NO APLICA | AI29: N/A | AJ29: N/A | AK29: N/A | AL29: N/A | AM29: TERMINADO | AN29: 1
A30: FDLC-CPS-017-2024 | B30: 2024 | C30: FDLC-CPS-017-2024 | D30: https://community.secop.gov.co/Public/Tendering/OpportunityDetail/Index?noticeUID=CO1.NTC.5656582&isFromPublicArea=True&isModal=true&asPopupView=true | E30: CPS | F30: CONTRATACION DIRECTA | G30: Prestación de servicios profesionales y de apoyo a la gestión, o para la ejecución de trabajos artísticos que sólo puedan encomendarse a determinadas personas naturales | H30: PRESTAR SERVICIOS DE APOYO TÉCNICO EN LAS DISTINTAS ETAPAS DE LOS PROCESOS CONTRACTUALES BRINDANDO ACOMPAÑAMIENTO Y SEGUIMIENTO EN LA IMPLEMENTACIÓN DEL SISTEMA DE GESTIÓN DE SEGURIDAD Y SALUD EN EL TRABAJO DE LA ALCALDÍA LOCAL DE LA CANDELARIA Y LAS DEMÁS ACTIVIDADES QUE SE REQUIERAN EN LA REVISIÓN ACTUALIZACIÓN Y ARCHIVO DE DOCUMENTOS PRECONTRACTUALES CONTRACTUALES Y POSTCONTRACTUALES | I30: INVERSION | J30: Un nuevo contrato social y ambiental para la Bogotá del Siglo XXI | K30: 57 | L30: Gestión Pública Local | M30: Propósito 5. Construir Bogotà - Regiòn con gobierno abierto, transparente y ciudadanìa consciente. | N30: O23011605570000002021 | O30: 1 | P30: 41794885 | Q30: DIEGO JOHAN VARGAS TORRES | R30: Persona Natural | W30: 13524000 | Y30: 2 | Z30: 6762000 | AA30: 20286000 | AB30: 20286000 | AC30: 2022-01-17 | AD30: 2022-01-17 | AE30: 2022-10-16 | AF30: 120 | AG30: 2 | AH30: 2 MESES | AI30: N/A | AJ30: N/A | AK30: N/A | AL30: N/A | AM30: TERMINADO | AN30: 1
A31: FDLC-CPS-018-2024 | B31: 2024 | C31: FDLC-CPS-018-2024 | D31: https://community.secop.gov.co/Public/Tendering/OpportunityDetail/Index?noticeUID=CO1.NTC.5655594&isFromPublicArea=True&isModal=true&asPopupView=true | E31: CPS | F31: CONTRATACION DIRECTA | G31: Prestación de servicios profesionales y de apoyo a la gestión, o para la ejecución de trabajos artísticos que sólo puedan encomendarse a determinadas personas naturales | H31: PRESTAR SERVICIOS PROFESIONALES AL FONDO DE DESARROLLO LOCAL DE LA CANDELARIA EN LOS TRÁMITES RELACIONADOS CON LOS PROCESOS PRECONTRACTUALES CONTRACTUALES Y POS CONTRACTUALES QUE SE ADELANTEN A TRAVÉS DE SECOP I Y II ASÍ COMO LA ADQUISICIÓN DE BIENES Y SERVICIOS A TRAVÉS DE LA TIENDA VIRTUAL DEL ESTADO COLOMBIANO | I31: INVERSION | J31: Un nuevo contrato social y ambiental para la Bogotá del Siglo XXI | K31: 57 | L31: Gestión Pública Local | M31: Propósito 5. Construir Bogotà - Regiòn con gobierno abierto, transparente y ciudadanìa consciente. | N31: O23011605570000002021 | O31: 1 | P31: 52305372 | Q31: DIANA CATHERINE GONZALEZ MOLANO | R31: Persona Natural | W31: 29792000 | Y31: 1 | Z31: 14896000 | AA31: 44688000 | AB31: 44688000 | AC31: 2022-01-14 | AD31: 2022-01-14 | AE31: 2023-01-12 | AF31: 120 | AG31: 1 | AH31: 2 MESES | AI31: N/A | AJ31: N/A | AK31: N/A | AL31: N/A | AM31: TERMINADO | AN31: 1
A32: FDLC-CPS-019-2024 | B32: 2024 | C32: FDLC-CPS-019-2024 | D32: https://community.secop.gov.co/Public/Tendering/OpportunityDetail/Index?noticeUID=CO1.NTC.5655936&isFromPublicArea=True&isModal=true&asPopupView=true | E32: CPS | F32: CONTRATACION DIRECTA | G32: Prestación de servicios profesionales y de apoyo a la gestión, o para la ejecución de trabajos artísticos que sólo puedan encomendarse a determinadas personas naturales | H32: PRESTAR SERVICIOS PROFESIONALES AL FONDO DE DESARROLLO LOCAL DE LA CANDELARIA PARA APOYAR Y FORTALECER LAS GESTIONES CONTABLES DE LA ENTIDAD | I32: INVERSION | J32: Un nuevo contrato social y ambiental para la Bogotá del Siglo XXI | K32: 57 | L32: Gestión Pública Local | M32: Propósito 5. Construir Bogotà - Regiòn con gobierno abierto, transparente y ciudadanìa consciente. | N32: O23011605570000002021 | O32: 1 | P32: 1022973767 | Q32: NHUR PERTUZ SANCHEZ | R32: Persona Natural | W32: 23200000 | Y32: 1 | Z32: 11600000 | AA32: 34800000 | AB32: 34800000 | AC32: 2022-01-14 | AD32: 2022-01-14 | AE32: 2022-10-13 | AF32: 120 | AG32: 1 | AH32: 2 MESES | AI32: N/A | AJ32: N/A | AK32: N/A | AL32: N/A | AM32: TERMINADO | AN32: 1
A33: FDLC-CPS-020-2024 | B33: 2024 | C33: FDLC-CPS-020-2024 | D33: https://community.secop.gov.co/Public/Tendering/OpportunityDetail/Index?noticeUID=CO1.NTC.5657390&isFromPublicArea=True&isModal=true&asPopupView=true | E33: CPS | F33: CONTRATACION DIRECTA | G33: Prestación de servicios profesionales y de apoyo a la gestión, o para la ejecución de trabajos artísticos que sólo puedan encomendarse a determinadas personas naturales | H33: PRESTAR SERVICIOS PROFESIONALES AL FONDO DE DESARROLLO LOCAL DE LA CANDELARIA EN LOS TRÁMITES RELACIONADOS CON LOS PROCESOS PRECONTRACTUALES CONTRACTUALES Y POS CONTRACTUALES QUE SE ADELANTEN A TRAVÉS DE SECOP I Y II ASÍ COMO LA ADQUISICIÓN DE BIENES Y SERVICIOS A TRAVÉS DE LA TIENDA VIRTUAL DEL ESTADO COLOMBIANO | I33: INVERSION | J33: Un nuevo contrato social y ambiental para la Bogotá del Siglo XXI | K33: 57 | L33: Gestión Pública Local | M33: Propósito 5. Construir Bogotà - Regiòn con gobierno abierto, transparente y ciudadanìa consciente. | N33: O23011605570000002021 | O33: 1 | P33: 41648295 | Q33: GUSTAVO ALFREDO FIERRO PARRA | R33: Persona Natural | W33: 29792000 | Y33: 1 | Z33: 14896000 | AA33: 44688000 | AB33: 44688000 | AC33: 2022-01-18 | AD33: 2022-01-18 | AE33: 2022-08-17 | AF33: 120 | AG33: 1 | AH33: 2 MESES | AI33: N/A | AJ33: N/A | AK33: N/A | AL33: N/A | AM33: TERMINADO | AN33: 1
A34: FDLC-CPS-021-2024 | B34: 2024 | C34: FDLC-CPS-021-2024 | D34: https://community.secop.gov.co/Public/Tendering/OpportunityDetail/Index?noticeUID=CO1.NTC.5675198&isFromPublicArea=True&isModal=true&asPopupView=true | E34: CPS | F34: CONTRATACION DIRECTA | G34: Prestación de servicios profesionales y de apoyo a la gestión, o para la ejecución de trabajos artísticos que sólo puedan encomendarse a determinadas personas naturales | H34: PRESTAR SERVICIOS ASISTENCIALES AL ÁREA DE GESTIÓN DE DESARROLLO LOCAL EN LOS PROCESOS Y ACTIVIDADES DE GESTIÓN ADMINISTRATIVA DE LA ALCALDÍA LOCAL DE LA CANDELARIA | I34: INVERSION | J34: Un nuevo contrato social y ambiental para la Bogotá del Siglo XXI | K34: 57 | L34: Gestión Pública Local | M34: Propósito 5. Construir Bogotà - Regiòn con gobierno abierto, transparente y ciudadanìa consciente. | N34: O23011605570000002021 | O34: 1 | P34: 14250858 | Q34: LIZ DAIRA JHINETHG TORRES SALDAÑA | R34: Persona Natural | W34: 7956000 | Y34: 0 | Z34: 0 | AA34: 7956000 | AB34: =+X34+Y34+AA34 -> 7956000 | AC34: 2022-01-18 | AD34: 2022-01-18 | AE34: 2022-12-17 | AF34: 120 | AH34: NO APLICA | AI34: N/A | AJ34: N/A | AK34: N/A | AL34: N/A | AM34: TERMINADO | AN34: 1
A35: FDLC-CPS-022-2024 | B35: 2024 | C35: FDLC-CPS-022-2024 | D35: https://community.secop.gov.co/Public/Tendering/OpportunityDetail/Index?noticeUID=CO1.NTC.5670012&isFromPublicArea=True&isModal=true&asPopupView=true | E35: CPS | F35: CONTRATACION DIRECTA | G35: Prestación de servicios profesionales y de apoyo a la gestión, o para la ejecución de trabajos artísticos que sólo puedan encomendarse a determinadas personas naturales | H35: PRESTAR SERVICIOS DE APOYO A LA GESTIÓN DEL FONDO DE DESARROLLO LOCAL DE LA CANDELARIA EN EL CENTRO DE INFORMACIÓN Y DOCUMENTACIÓN (CDI) PARA EL MANEJO Y PROCESO DE DISTRIBUCIÓN DE CORRESPONDENCIA EN GENERAL. | I35: INVERSION | J35: Un nuevo contrato social y ambiental para la Bogotá del Siglo XXI | K35: 57 | L35: Gestión Pública Local | M35: Propósito 5. Construir Bogotà - Regiòn con gobierno abierto, transparente y ciudadanìa consciente. | N35: O23011605570000002021 | O35: 1 | P35: 1033731738 | Q35: BLADIMIR OVIEDO RUIZ | R35: Persona Natural | W35: 11532000 | Y35: 1 | Z35: 5766000 | AA35: 17298000 | AB35: 17298000 | AC35: 2022-01-18 | AD35: 2022-01-18 | AE35: 2022-11-17 | AF35: 120 | AG35: 1 | AH35: 2 MESES | AI35: N/A | AJ35: N/A | AK35: N/A | AL35: N/A | AM35: TERMINADO | AN35: 1
A36: FDLC-CPS-023-2024 | B36: 2024 | C36: FDLC-CPS-023-2024 | D36: https://community.secop.gov.co/Public/Tendering/OpportunityDetail/Index?noticeUID=CO1.NTC.5666106&isFromPublicArea=True&isModal=true&asPopupView=true | E36: CPS | F36: CONTRATACION DIRECTA | G36: Prestación de servicios profesionales y de apoyo a la gestión, o para la ejecución de trabajos artísticos que sólo puedan encomendarse a determinadas personas naturales | H36: COORDINA LIDERA Y ASESORA LOS PLANES Y ESTRATEGIAS DE COMUNICACIÓN INTERNA Y EXTERNA PARA LA DIVULGACIÓN DE LOS PROGRAMAS PROYECTOS Y ACTIVIDADES DE LA ALCALDÍA LOCAL. | I36: INVERSION | J36: Un nuevo contrato social y ambiental para la Bogotá del Siglo XXI | K36: 57 | L36: Gestión Pública Local | M36: Propósito 5. Construir Bogotà - Regiòn con gobierno abierto, transparente y ciudadanìa consciente. | N36: O23011605570000002021 | O36: 1 | P36: 1010198763 | Q36: ANGIE MARCELA ALVARADO GAONA | R36: Persona Natural | W36: 29792000 | Y36: 1 | Z36: 14896000 | AA36: 44688000 | AB36: 44688000 | AC36: 2022-01-17 | AD36: 2022-01-17 | AE36: 2023-01-14 | AF36: 120 | AG36: 1 | AH36: 2 MESES | AI36: N/A | AJ36: N/A | AK36: N/A | AL36: N/A | AM36: TERMINADO | AN36: 1
A37: FDLC-CPS-024-2024 | B37: 2024 | C37: FDLC-CPS-024-2024 | D37: https://community.secop.gov.co/Public/Tendering/OpportunityDetail/Index?noticeUID=CO1.NTC.5673034&isFromPublicArea=True&isModal=true&asPopupView=true | E37: CPS | F37: CONTRATACION DIRECTA | G37: Prestación de servicios profesionales y de apoyo a la gestión, o para la ejecución de trabajos artísticos que sólo puedan encomendarse a determinadas personas naturales | H37: PRESTAR SERVICIOS PROFESIONALES AL FONDO DE DESARROLLO LOCAL DE LA CANDELARIA EN LOS TRÁMITES RELACIONADOS CON LOS PROCESOS PRECONTRACTUALES CONTRACTUALES Y POS CONTRACTUALES ASÍ COMO LA GESTION Y SEGUMIENTO DE LAS OBLIGACIONES POR PAGAR | I37: INVERSION | J37: Un nuevo contrato social y ambiental para la Bogotá del Siglo XXI | K37: 57 | L37: Gestión Pública Local | M37: Propósito 5. Construir Bogotà - Regiòn con gobierno abierto, transparente y ciudadanìa consciente. | N37: O23011605570000002021 | O37: 1 | P37: 52520044 | Q37: PAOLA ANDREA PADILLA AYARZA | R37: Persona Natural | W37: 29792000 | Y37: 1 | Z37: 14896000 | AA37: 44688000 | AB37: 44688000 | AC37: 2022-01-17 | AD37: 2022-01-17 | AE37: 2023-01-16 | AF37: 120 | AG37: 1 | AH37: 2 MESES | AI37: N/A | AJ37: N/A | AK37: N/A | AL37: N/A | AM37: TERMINADO | AN37: 1
A38: FDLC-CPS-025-2024 | B38: 2024 | C38: FDLC-CPS-025-2024 | D38: https://community.secop.gov.co/Public/Tendering/OpportunityDetail/Index?noticeUID=CO1.NTC.5667233&isFromPublicArea=True&isModal=true&asPopupView=true | E38: CPS | F38: CONTRATACION DIRECTA | G38: Prestación de servicios profesionales y de apoyo a la gestión, o para la ejecución de trabajos artísticos que sólo puedan encomendarse a determinadas personas naturales | H38: PRESTAR SERVICIOS ASISTENCIALES PARA APOYAR EN LAS TAREAS RELACIONADAS CON LA GESTIÓN DOCUMENTAL DE LA ALCALDIA LOCAL DE LA CANDELARIA | I38: INVERSION | J38: Un nuevo contrato social y ambiental para la Bogotá del Siglo XXI | K38: 57 | L38: Gestión Pública Local | M38: Propósito 5. Construir Bogotà - Regiòn con gobierno abierto, transparente y ciudadanìa consciente. | N38: O23011605570000002021 | O38: 1 | P38: 41762577 | Q38: JENY GONZALEZ CANTOR | R38: Persona Natural | W38: 7956000 | Y38: 2 | Z38: 3978000 | AA38: 11934000 | AB38: 11934000 | AC38: 2022-01-18 | AD38: 2022-01-18 | AE38: 2022-10-16 | AF38: 120 | AG38: 2 | AH38: 2 MESES | AI38: N/A | AJ38: N/A | AK38: N/A | AL38: N/A | AM38: TERMINADO | AN38: 1
A39: FDLC-CPS-026-2024 | B39: 2024 | C39: FDLC-CPS-026-2024 | D39: https://community.secop.gov.co/Public/Tendering/OpportunityDetail/Index?noticeUID=CO1.NTC.5669789&isFromPublicArea=True&isModal=true&asPopupView=true | E39: CPS | F39: CONTRATACION DIRECTA | G39: Prestación de servicios profesionales y de apoyo a la gestión, o para la ejecución de trabajos artísticos que sólo puedan encomendarse a determinadas personas naturales | H39: PRESTAR SERVICIOS PROFESIONALES PARA APOYAR AL ALCALDE LOCAL DE LA CANDELARIA EN LA GESTIÓN DE LOS ASUNTOS RELACIONADOS CON SEGURIDAD CIUDADANA CONVIVENCIA Y PREVENCIÓN DE CONFLICTIVIDADES VIOLENCIAS Y DELITOS EN LA LOCALIDAD DE CONFORMIDAD CON EL MARCO NORMATIVO APLICABLE EN LA MATERIA. | I39: INVERSION | J39: Un nuevo contrato social y ambiental para la Bogotá del Siglo XXI | K39: 57 | L39: Gestión Pública Local | M39: Propósito 5. Construir Bogotà - Regiòn con gobierno abierto, transparente y ciudadanìa consciente. | N39: O23011605570000002021 | O39: 1 | P39: 1024462252 | Q39: JENNY CAROLINA CRISTANCHO MORENO | R39: Persona Natural | W39: 24000000 | Y39: 1 | Z39: 12000000 | AA39: 36000000 | AB39: 36000000 | AC39: 2022-01-18 | AD39: 2022-01-18 | AE39: 2022-09-25 | AF39: 120 | AG39: 1 | AH39: 2 MESES | AI39: N/A | AJ39: N/A | AK39: N/A | AL39: N/A | AM39: TERMINADO | AN39: 1
A40: FDLC-CPS-027-2024 | B40: 2024 | C40: FDLC-CPS-027-2024 | D40: https://community.secop.gov.co/Public/Tendering/OpportunityDetail/Index?noticeUID=CO1.NTC.5672963&isFromPublicArea=True&isModal=true&asPopupView=true | E40: CPS | F40: CONTRATACION DIRECTA | G40: Prestación de servicios profesionales y de apoyo a la gestión, o para la ejecución de trabajos artísticos que sólo puedan encomendarse a determinadas personas naturales | H40: PRESTAR SERVICIOS DE APOYO AL FONDO DE DESARROLLO LOCAL DE LA CANDELARIA EN LA ADMINISTRACIÓN DE LAS CASAS COMUNITARIAS DE LA LOCALIDAD DE LA CANDELARIA DE CONFORMIDAD CON EL ACUERDO LOCAL 006 DE 2013 | I40: INVERSION | J40: Un nuevo contrato social y ambiental para la Bogotá del Siglo XXI | K40: 57 | L40: Gestión Pública Local | M40: Propósito 5. Construir Bogotà - Regiòn con gobierno abierto, transparente y ciudadanìa consciente. | N40: O23011605570000002021 | O40: 1 | P40: 93086512 | Q40: RODRIGO DELGADO DIAZ | R40: Persona Natural | W40: 11532000 | Y40: 1 | Z40: 5766000 | AA40: 17298000 | AB40: 17298000 | AC40: 2022-01-19 | AD40: 2022-01-19 | AE40: 2022-09-18 | AF40: 120 | AG40: 1 | AH40: 2 MESES | AI40: N/A | AJ40: N/A | AK40: N/A | AL40: N/A | AM40: TERMINADO | AN40: 1
A41: FDLC-CPS-028-2024 | B41: 2024 | C41: FDLC-CPS-028-2024 | D41: https://community.secop.gov.co/Public/Tendering/OpportunityDetail/Index?noticeUID=CO1.NTC.5672489&isFromPublicArea=True&isModal=true&asPopupView=true | E41: CPS | F41: CONTRATACION DIRECTA | G41: Prestación de servicios profesionales y de apoyo a la gestión, o para la ejecución de trabajos artísticos que sólo puedan encomendarse a determinadas personas naturales | H41: PRESTAR SERVICIOS ASISTENCIALES AL ÁREA DE GESTIÓN DE DESARROLLO LOCAL EN LOS PROCESOS Y ACTIVIDADES DE GESTIÓN ADMINISTRATIVA DE LA ALCALDÍA LOCAL DE LA CANDELARIA. | I41: INVERSION | J41: Un nuevo contrato social y ambiental para la Bogotá del Siglo XXI | K41: 57 | L41: Gestión Pública Local | M41: Propósito 5. Construir Bogotà - Regiòn con gobierno abierto, transparente y ciudadanìa consciente. | N41: O23011605570000002021 | O41: 1 | P41: 49729700 | Q41: LUIS HERNANDO AMAYA CASTILLO | R41: Persona Natural | W41: 7956000 | Y41: 1 | Z41: 1989000 | AA41: 9945000 | AB41: 9945000 | AC41: 2022-01-21 | AD41: 2022-01-21 | AE41: 2022-10-20 | AF41: 120 | AG41: 1 | AH41: 1 MES | AI41: N/A | AJ41: N/A | AK41: N/A | AL41: N/A | AM41: TERMINADO | AN41: 1
A42: FDLC-CPS-029-2024 | B42: 2024 | C42: FDLC-CPS-029-2024 | D42: https://community.secop.gov.co/Public/Tendering/OpportunityDetail/Index?noticeUID=CO1.NTC.5672978&isFromPublicArea=True&isModal=true&asPopupView=true | E42: CPS | F42: CONTRATACION DIRECTA | G42: Prestación de servicios profesionales y de apoyo a la gestión, o para la ejecución de trabajos artísticos que sólo puedan encomendarse a determinadas personas naturales | H42: PRESTAR SERVICIOS PROFESIONALES AL FONDO DE DESARROLLO LOCAL DE LA CANDELARIA EN LOS TRÁMITES RELACIONADOS CON LOS PROCESOS PRECONTRACTUALES CONTRACTUALES Y POS CONTRACTUALES QUE SE ADELANTEN A TRAVÉS DE SECOP I Y II ASÍ COMO LA ADQUISICIÓN DE BIENES Y SERVICIOS A TRAVÉS DE LA TIENDA VIRTUAL DEL ESTADO COLOMBIANO | I42: INVERSION | J42: Un nuevo contrato social y ambiental para la Bogotá del Siglo XXI | K42: 57 | L42: Gestión Pública Local | M42: Propósito 5. Construir Bogotà - Regiòn con gobierno abierto, transparente y ciudadanìa consciente. | N42: O23011605570000002021 | O42: 1 | P42: 79749022 | Q42: JULIETH TATIANA SANCHEZ CASTILLO | R42: Persona Natural | W42: 29792000 | Y42: 0 | Z42: 0 | AA42: 29792000 | AB42: 12165067 | AC42: 2022-01-18 | AD42: 2022-01-18 | AE42: 2022-07-17 | AF42: 120 | AH42: NO APLICA | AI42: N/A | AJ42: N/A | AK42: N/A | AL42: N/A | AM42: TERMINADO | AN42: 0.4083333445
A43: FDLC-CPS-030-2024 | B43: 2024 | C43: FDLC-CPS-030-2024 | D43: https://community.secop.gov.co/Public/Tendering/OpportunityDetail/Index?noticeUID=CO1.NTC.5683461&isFromPublicArea=True&isModal=true&asPopupView=true | E43: CPS | F43: CONTRATACION DIRECTA | G43: Prestación de servicios profesionales y de apoyo a la gestión, o para la ejecución de trabajos artísticos que sólo puedan encomendarse a determinadas personas naturales | H43: PRESTAR SERVICIOS PROFESIONALES AL FONDO DE DESARROLLO LOCAL DE LA CANDELARIA PARA APOYAR Y FORTALECER LAS GESTIONES CONTABLES DE LA ENTIDAD. | I43: INVERSION | J43: Un nuevo contrato social y ambiental para la Bogotá del Siglo XXI | K43: 57 | L43: Gestión Pública Local | M43: Propósito 5. Construir Bogotà - Regiòn con gobierno abierto, transparente y ciudadanìa consciente. | N43: O23011605570000002021 | O43: 1 | P43: 53166387 | Q43: EDGAR ANTONIO PEREZ BELTRAN | R43: Persona Natural | W43: 23200000 | Y43: 1 | Z43: 5800000 | AA43: 29000000 | AB43: 29000000 | AC43: 2022-01-18 | AD43: 2022-01-18 | AE43: 2022-10-17 | AF43: 120 | AG43: 1 | AH43: 1 MES | AI43: N/A | AJ43: N/A | AK43: N/A | AL43: N/A | AM43: TERMINADO | AN43: 1
A44: FDLC-CPS-031-2024 | B44: 2024 | C44: FDLC-CPS-031-2024 | D44: https://community.secop.gov.co/Public/Tendering/OpportunityDetail/Index?noticeUID=CO1.NTC.5683458&isFromPublicArea=True&isModal=true&asPopupView=true | E44: CPS | F44: CONTRATACION DIRECTA | G44: Prestación de servicios profesionales y de apoyo a la gestión, o para la ejecución de trabajos artísticos que sólo puedan encomendarse a determinadas personas naturales | H44: PRESTAR LOS SERVICIOS PROFESIONALES PARA APOYAR EN EL CUBRIMIENTO ELABORACIÓN DIFUSIÓN GESTIÓN Y PUBLICACIÓN DE CONTENIDOS INSTITUCIONALES Y MATERIAL GRÁFICO DE COMUNICACIÓN EN LAS REDES SOCIALES HERRAMIENTAS INSTITUCIONALES DE COMUNICACIÓN Y PÁGINA WEB DE LA ALCALDÍA LOCAL DE LA CANDELARIA | I44: INVERSION | J44: Un nuevo contrato social y ambiental para la Bogotá del Siglo XXI | K44: 57 | L44: Gestión Pública Local | M44: Propósito 5. Construir Bogotà - Regiòn con gobierno abierto, transparente y ciudadanìa consciente. | N44: O23011605570000002021 | O44: 1 | P44: 1014177764 | Q44: KEVIN SEBASTIAN MELO RIVERA | R44: Persona Natural | W44: 22000000 | Y44: 1 | Z44: 11000000 | AA44: 33000000 | AB44: 33000000 | AC44: 2022-01-18 | AD44: 2022-01-18 | AE44: 2022-07-17 | AF44: 120 | AG44: 1 | AH44: 2 MESES | AI44: N/A | AJ44: N/A | AK44: N/A | AL44: N/A | AM44: TERMINADO | AN44: 1
A45: FDLC-CPS-032-2024 | B45: 2024 | C45: FDLC-CPS-032-2024 | D45: https://community.secop.gov.co/Public/Tendering/OpportunityDetail/Index?noticeUID=CO1.NTC.5689378&isFromPublicArea=True&isModal=true&asPopupView=true | E45: CPS | F45: CONTRATACION DIRECTA | G45: Prestación de servicios profesionales y de apoyo a la gestión, o para la ejecución de trabajos artísticos que sólo puedan encomendarse a determinadas personas naturales | H45: PRESTAR LOS SERVICIOS PROFESIONALESPARA APOYAR Y ACOMPAÑAR LAS ESTRATEGIAS DE FORTALECIMIENTO DE LAS POLÍTICAS DE EDUCACIÓN EN LA LOCALIDAD EN EL MARCO DEL PLAN DE DESARROLLO LOCAL VIGENTE. | I45: INVERSION | J45: Un nuevo contrato social y ambiental para la Bogotá del Siglo XXI | K45: 17 | L45: Jóvenes con capacidades: Proyecto de vida para la ciudadanía, la innovación y el trabajo del siglo XXI | M45: Propósito 1. Hacer un nuevo contrato social con igualdad de oportunidades para la inclusiòn social, productiva y polìtica | N45: O23011601170000001607 | O45: 1 | P45: 80239278 | Q45: JENNY KATHERINE GONZALEZ SANCHEZ | R45: Persona Natural | W45: 20000000 | Y45: 1 | Z45: 5000000 | AA45: 25000000 | AB45: 25000000 | AC45: 2022-01-18 | AD45: 2022-01-18 | AE45: 2023-01-06 | AF45: 120 | AG45: 1 | AH45: 1 MES | AI45: N/A | AJ45: N/A | AK45: N/A | AL45: N/A | AM45: TERMINADO | AN45: 1
A46: FDLC-CPS-033-2024 | B46: 2024 | C46: FDLC-CPS-033-2024 | D46: https://community.secop.gov.co/Public/Tendering/OpportunityDetail/Index?noticeUID=CO1.NTC.5687972&isFromPublicArea=True&isModal=true&asPopupView=true | E46: CPS | F46: CONTRATACION DIRECTA | G46: Prestación de servicios profesionales y de apoyo a la gestión, o para la ejecución de trabajos artísticos que sólo puedan encomendarse a determinadas personas naturales | H46: PRESTAR EL APOYO SECRETARIAL A LA JUNTA ADMINISTRADORA LOCAL | I46: INVERSION | J46: Un nuevo contrato social y ambiental para la Bogotá del Siglo XXI | K46: 57 | L46: Gestión Pública Local | M46: Propósito 5. Construir Bogotà - Regiòn con gobierno abierto, transparente y ciudadanìa consciente. | N46: O23011605570000002021 | O46: 1 | P46: 50875779 | Q46: ISABEL CRISTINA BULLA RODRIGUEZ | R46: Persona Natural | W46: 11352000 | Y46: 1 | Z46: 5766000 | AA46: 17118000 | AB46: 17118000 | AC46: 2022-01-18 | AD46: 2022-01-18 | AE46: 2022-12-30 | AF46: 120 | AG46: 1 | AH46: 2 MESES | AI46: N/A | AJ46: N/A | AK46: N/A | AL46: N/A | AM46: TERMINADO | AN46: 1
A47: FDLC-CPS-034-2024 | B47: 2024 | C47: FDLC-CPS-034-2024 | D47: https://community.secop.gov.co/Public/Tendering/OpportunityDetail/Index?noticeUID=CO1.NTC.5688058&isFromPublicArea=True&isModal=true&asPopupView=true | E47: CPS | F47: CONTRATACION DIRECTA | G47: Prestación de servicios profesionales y de apoyo a la gestión, o para la ejecución de trabajos artísticos que sólo puedan encomendarse a determinadas personas naturales | H47: PRESTAR SERVICIOS PROFESIONALES AL FONDO DE DESARROLLO LOCAL DE LA CANDELARIA EN ASUNTOS RELACIONADOS CON LA GESTIÓN Y ATENCIÓN DEL RIESGO Y CAMBIO CLIMÁTICO EN LA LOCALIDAD. SIPSE 104663 | I47: INVERSION | J47: Un nuevo contrato social y ambiental para la Bogotá del Siglo XXI | K47: 30 | L47: Eficiencia en la atención de emergencias | M47: Propòsito 2. Cambiar nuestros hàbitos de vida para reverdecer a Bogotà y adaptarnos y mitigar la crisis climàtica. | N47: O23011602300000001702 | O47: 1 | P47: 1032456470 | Q47: JESUS DANIEL OÑATE OLIVELLA | R47: Persona Natural | W47: 26000000 | Y47: 1 | Z47: 13000000 | AA47: 39000000 | AB47: 39000000 | AC47: 2022-01-18 | AD47: 2022-01-18 | AE47: 2023-01-15 | AF47: 120 | AG47: 1 | AH47: 2 MESES | AI47: N/A | AJ47: N/A | AK47: N/A | AL47: N/A | AM47: TERMINADO | AN47: 1
A48: FDLC-CPS-035-2024 | B48: 2024 | C48: FDLC-CPS-035-2024 | D48: https://community.secop.gov.co/Public/Tendering/OpportunityDetail/Index?noticeUID=CO1.NTC.5689766&isFromPublicArea=True&isModal=true&asPopupView=true | E48: CPS | F48: CONTRATACION DIRECTA | G48: Prestación de servicios profesionales y de apoyo a la gestión, o para la ejecución de trabajos artísticos que sólo puedan encomendarse a determinadas personas naturales | H48: PRESTAR LOS SERVICIOS PROFESIONALES PARA APOYAR EN EL CUBRIMIENTO ELABORACIÓN DIFUSIÓN GESTIÓN Y PUBLICACIÓN DE CONTENIDOS INSTITUCIONALES Y MATERIAL GRÁFICO DE COMUNICACIÓN EN LAS REDES SOCIALES HERRAMIENTAS INSTITUCIONALES DE COMUNICACIÓN Y PÁGINA WEB DE LA ALCALDÍA LOCAL DE LA CANDELARIA | I48: INVERSION | J48: Un nuevo contrato social y ambiental para la Bogotá del Siglo XXI | K48: 57 | L48: Gestión Pública Local | M48: Propósito 5. Construir Bogotà - Regiòn con gobierno abierto, transparente y ciudadanìa consciente. | N48: O23011605570000002021 | O48: 1 | P48: 52219649 | Q48: LAURA JULIANA GONZALEZ GRANADA | R48: Persona Natural | W48: 22000000 | Y48: 1 | Z48: 5500000 | AA48: 27500000 | AB48: 27500000 | AC48: 2022-01-18 | AD48: 2022-01-18 | AE48: 2022-08-17 | AF48: 120 | AG48: 1 | AH48: 1 MES | AI48: N/A | AJ48: N/A | AK48: N/A | AL48: N/A | AM48: TERMINADO | AN48: 1
A49: FDLC-CPS-036-2024 | B49: 2024 | C49: FDLC-CPS-036-2024 | D49: https://community.secop.gov.co/Public/Tendering/OpportunityDetail/Index?noticeUID=CO1.NTC.5688459&isFromPublicArea=True&isModal=true&asPopupView=true | E49: CPS | F49: CONTRATACION DIRECTA | G49: Prestación de servicios profesionales y de apoyo a la gestión, o para la ejecución de trabajos artísticos que sólo puedan encomendarse a determinadas personas naturales | H49: PRESTAR SERVICIOS PROFESIONALES EN LA IDENTIFICACIÓN PREVENCIÓN Y ATENCIÓN DE LAS DIFERENTES PROBELMATICAS EN MATRERIA DE DERECHOS HUMANOS QUE SE PRESENTEN EN LA LOCALIDAD DE LA CANDELARIA ADOPTANDO ESTRATEGIAS QUE GARANTICEN SU PROTECCIÓN EFECTIVA | I49: INVERSION | J49: Un nuevo contrato social y ambiental para la Bogotá del Siglo XXI | K49: 57 | L49: Gestión Pública Local | M49: Propósito 5. Construir Bogotà - Regiòn con gobierno abierto, transparente y ciudadanìa consciente. | N49: O23011605570000002021 | O49: 1 | P49: 1032475141 | Q49: ANGIE NATALIA CAMACHO CAMACHO | R49: Persona Natural | W49: 19092000 | Y49: 1 | Z49: 4773000 | AA49: 23865000 | AB49: 23865000 | AC49: 2022-01-18 | AD49: 2022-01-18 | AE49: 2022-10-18 | AF49: 120 | AG49: 1 | AH49: 1 MES | AI49: N/A | AJ49: N/A | AK49: N/A | AL49: N/A | AM49: TERMINADO | AN49: 1
A50: FDLC-CPS-037-2024 | B50: 2024 | C50: FDLC-CPS-037-2024 | D50: https://community.secop.gov.co/Public/Tendering/OpportunityDetail/Index?noticeUID=CO1.NTC.5690598&isFromPublicArea=True&isModal=true&asPopupView=true | E50: CPS | F50: CONTRATACION DIRECTA | G50: Prestación de servicios profesionales y de apoyo a la gestión, o para la ejecución de trabajos artísticos que sólo puedan encomendarse a determinadas personas naturales | H50: "PRESTAR SERVICIOS ASISTENCIALES AL ÁREA DE GESTIÓN DE DESARROLLO LOCAL EN LOS PROCESOS Y ACTIVIDADES DE GESTIÓN ADMINISTRATIVA DE LA ALCALDÍA LOCAL DE LA CANDELARIA" | I50: INVERSION | J50: Un nuevo contrato social y ambiental para la Bogotá del Siglo XXI | K50: 57 | L50: Gestión Pública Local | M50: Propósito 5. Construir Bogotà - Regiòn con gobierno abierto, transparente y ciudadanìa consciente. | N50: O23011605570000002021 | O50: 1 | P50: 1032488659 | Q50: PAULA ANDREA RODRIGUEZ YARA | R50: Persona Natural | W50: 7956000 | Y50: 0 | Z50: 0 | AA50: 7956000 | AB50: 7956000 | AC50: 2022-01-18 | AD50: 2022-01-18 | AE50: 2022-08-17 | AF50: 120 | AH50: NO APLICA | AI50: N/A | AJ50: N/A | AK50: N/A | AL50: N/A | AM50: TERMINADO | AN50: 1
A51: FDLC-CPS-038-2024 | B51: 2024 | C51: FDLC-CPS-038-2024 | D51: https://community.secop.gov.co/Public/Tendering/OpportunityDetail/Index?noticeUID=CO1.NTC.5705763&isFromPublicArea=True&isModal=true&asPopupView=true | E51: CPS | F51: CONTRATACION DIRECTA | G51: Prestación de servicios profesionales y de apoyo a la gestión, o para la ejecución de trabajos artísticos que sólo puedan encomendarse a determinadas personas naturales | H51: “PRESTAR SERVICIOS DE APOYO ADMINISTRATIVO Y ASISTENCIAL EN LA GESTIÓN DE LA ALCALDÍA LOCAL DE LA CANDELARIA EN EL TRÁMITE DE LOS COMPARENDOS Y QUERELLAS DE CONFORMIDAD CON LA LEY 1801 DE 2016”. | I51: INVERSION | J51: Un nuevo contrato social y ambiental para la Bogotá del Siglo XXI | K51: 57 | L51: Gestión Pública Local | M51: Propósito 5. Construir Bogotà - Regiòn con gobierno abierto, transparente y ciudadanìa consciente. | N51: O23011605570000002023 | O51: 1 | P51: 1010190450 | Q51: JESSE JOSE VILLEGAS CABRERA | R51: Persona Natural | W51: 11532000 | Y51: 1 | Z51: 2883000 | AA51: 14415000 | AB51: 14415000 | AC51: 2022-01-19 | AD51: 2022-01-19 | AE51: 2022-09-18 | AF51: 120 | AG51: 1 | AH51: 1 MES | AI51: N/A | AJ51: N/A | AK51: N/A | AL51: N/A | AM51: TERMINADO | AN51: 1
A52: FDLC-CPS-039-2024 | B52: 2024 | C52: FDLC-CPS-039-2024 | D52: https://community.secop.gov.co/Public/Tendering/OpportunityDetail/Index?noticeUID=CO1.NTC.5705879&isFromPublicArea=True&isModal=true&asPopupView=true | E52: CPS | F52: CONTRATACION DIRECTA | G52: Prestación de servicios profesionales y de apoyo a la gestión, o para la ejecución de trabajos artísticos que sólo puedan encomendarse a determinadas personas naturales | H52: "PRESTAR SERVICIOS DE APOYO ADMINISTRATIVO Y ASISTENCIAL EN LA GESTIÓN DE LA ALCALDÍA LOCAL DE LA CANDELARIA EN EL TRÁMITE DE LOS COMPARENDOS Y QUERELLAS DE CONFORMIDAD CON LA LEY 1801 DE 2016". | I52: INVERSION | J52: Un nuevo contrato social y ambiental para la Bogotá del Siglo XXI | K52: 57 | L52: Gestión Pública Local | M52: Propósito 5. Construir Bogotà - Regiòn con gobierno abierto, transparente y ciudadanìa consciente. | N52: O23011605570000002023 | O52: 1 | P52: 51882056 | Q52: JESICA ESTEFANIA CARRILLO CUBILLOS | R52: Persona Natural | W52: 11532000 | Y52: 1 | Z52: 5766000 | AA52: 17298000 | AB52: 17298000 | AC52: 2022-01-19 | AD52: 2022-01-19 | AE52: 2022-10-18 | AF52: 120 | AG52: 1 | AH52: 2 MESES | AI52: N/A | AJ52: N/A | AK52: N/A | AL52: N/A | AM52: TERMINADO | AN52: 1
A53: FDLC-CPS-040-2024 | B53: 2024 | C53: FLDC-CPS-040-2024 | D53: https://community.secop.gov.co/Public/Tendering/OpportunityDetail/Index?noticeUID=CO1.NTC.5741200&isFromPublicArea=True&isModal=true&asPopupView=true | E53: CPS | F53: CONTRATACION DIRECTA | G53: Prestación de servicios profesionales y de apoyo a la gestión, o para la ejecución de trabajos artísticos que sólo puedan encomendarse a determinadas personas naturales | H53: PRESTAR SERVICIOS ASISTENCIALES AL ÁREA DE GESTIÓN DE DESARROLLO LOCAL EN LOS PROCESOS Y ACTIVIDADES DE GESTIÓN ADMINISTRATIVA DE LA ALCALDÍA LOCAL DE LA CANDELARIA | I53: INVERSION | J53: Un nuevo contrato social y ambiental para la Bogotá del Siglo XXI | K53: 57 | L53: Gestión Pública Local | M53: Propósito 5. Construir Bogotà - Regiòn con gobierno abierto, transparente y ciudadanìa consciente. | N53: O23011605570000002021 | O53: 1 | P53: 1077967370 | Q53: MONICA ANDREA VELOZA FLAUTERO | R53: Persona Natural | W53: 7956000 | Y53: 1 | Z53: 1989000 | AA53: 9945000 | AB53: 9945000 | AC53: 2022-01-19 | AD53: 2022-01-19 | AE53: 2022-10-18 | AF53: 120 | AG53: 1 | AH53: 1 MES | AI53: N/A | AJ53: N/A | AK53: N/A | AL53: N/A | AM53: TERMINADO | AN53: 1
A54: FDLC-CPS-041-2024 | B54: 2024 | C54: FDLC-CPS-041-2024 | D54: https://community.secop.gov.co/Public/Tendering/OpportunityDetail/Index?noticeUID=CO1.NTC.5733636&isFromPublicArea=True&isModal=true&asPopupView=true | E54: CPS | F54: CONTRATACION DIRECTA | G54: Prestación de servicios profesionales y de apoyo a la gestión, o para la ejecución de trabajos artísticos que sólo puedan encomendarse a determinadas personas naturales | H54: PRESTAR SERVICIOS PROFESIONALES PARA APOYAR A LA ALCALDÍA LOCAL DE LA CANDELARIA EN LA PROMOCIÓN SEGUIMIENTO ACOMPAÑAMIENTO Y ATENCIÓN DE LAS INSTANCIAS DE PARTICIPACIÓN DE LA LOCALIDAD Y DEMÁS ESPACIOS DE PARTICIPACIÓN DESIGNADOS | I54: INVERSION | J54: Un nuevo contrato social y ambiental para la Bogotá del Siglo XXI | K54: 55 | L54: Fortalecimiento de Cultura Ciudadana y su institucionalidad | M54: Propósito 5. Construir Bogotà - Regiòn con gobierno abierto, transparente y ciudadanìa consciente. | N54: O23011605550000002019 | O54: 1 | P54: 30204199 | Q54: WILMER ALEXANDER BARRIOS | R54: Persona Natural | W54: 22000000 | Y54: 1 | Z54: 5500000 | AA54: 27500000 | AB54: 27500000 | AC54: 2022-01-20 | AD54: 2022-01-20 | AE54: 2022-10-19 | AF54: 120 | AG54: 1 | AH54: 1 MES | AI54: N/A | AJ54: N/A | AK54: N/A | AL54: N/A | AM54: TERMINADO | AN54: 1
A55: FDLC-CPS-042-2024 | B55: 2024 | C55: FDLC-CPS-042-2024 | D55: https://community.secop.gov.co/Public/Tendering/OpportunityDetail/Index?noticeUID=CO1.NTC.5735189&isFromPublicArea=True&isModal=true&asPopupView=true | E55: CPS | F55: CONTRATACION DIRECTA | G55: Prestación de servicios profesionales y de apoyo a la gestión, o para la ejecución de trabajos artísticos que sólo puedan encomendarse a determinadas personas naturales | H55: PRESTAR SERVICIOS PROFESIONALES DE APOYO A LA ALCALDÍA LOCAL DE LA CANDELARIA EN EL FORTALECIMIENTO E INCLUSIÓN DE LOS PUEBLOS INDÍGENAS EN EL MARCO DE LA POLÍTICA PÚBLICA DISTRITAL PARA LOS PUEBLOS INDÍGENAS ASÍ COMO LOS PROCESOS COMUNITARIOS Y DEMÁS ESPACIOS DE PARTICIPACIÓN DESIGNADOS | I55: INVERSION | J55: Un nuevo contrato social y ambiental para la Bogotá del Siglo XXI | K55: 57 | L55: Gestión Pública Local | M55: Propósito 5. Construir Bogotà - Regiòn con gobierno abierto, transparente y ciudadanìa consciente. | N55: O23011605570000002021 | O55: 1 | P55: 79648784 | Q55: ELY DAVID MURILLO CORDOBA | R55: Persona Natural | W55: 24000000 | Y55: 1 | Z55: 6000000 | AA55: 30000000 | AB55: 18800000 | AC55: 2022-01-20 | AD55: 2022-01-20 | AE55: 2022-10-19 | AF55: 120 | AG55: 1 | AH55: 1 MES | AI55: N/A | AJ55: N/A | AK55: N/A | AL55: N/A | AM55: TERMINADO | AN55: 0.6266666667
A56: FDLC-CPS-043-2024 | B56: 2024 | C56: FDLC-CPS-043-2024 | D56: https://community.secop.gov.co/Public/Tendering/OpportunityDetail/Index?noticeUID=CO1.NTC.5739395&isFromPublicArea=True&isModal=true&asPopupView=true | E56: CPS | F56: CONTRATACION DIRECTA | G56: Prestación de servicios profesionales y de apoyo a la gestión, o para la ejecución de trabajos artísticos que sólo puedan encomendarse a determinadas personas naturales | H56: PRESTAR SERVICIOS PROFESIONALES ESPECIALIZADOS AL FONDO DE DESARROLLO LOCAL DE LA CANDELARIA PARA APOYAR LA COORDINACIÓN DE LA GESTIÓN CONTRACTUAL DE LA ENTIDAD Y DEMÁS ASUNTOS QUE SE REQUIERAN. | I56: INVERSION | J56: Un nuevo contrato social y ambiental para la Bogotá del Siglo XXI | K56: 57 | L56: Gestión Pública Local | M56: Propósito 5. Construir Bogotà - Regiòn con gobierno abierto, transparente y ciudadanìa consciente. | N56: O23011605570000002021 | O56: 1 | P56: 1013600365 | Q56: JAVIER DE JESUS TRESPALACIOS QUINTERO | R56: Persona Natural | W56: 43200000 | Y56: 1 | Z56: 21600000 | AA56: 64800000 | AB56: 64800000 | AC56: 2022-01-20 | AD56: 2022-01-20 | AE56: 2022-09-19 | AF56: 120 | AG56: 1 | AH56: 2 MESES | AI56: N/A | AJ56: N/A | AK56: N/A | AL56: N/A | AM56: TERMINADO | AN56: 1
A57: FDLC-CPS-044-2024 | B57: 2024 | C57: FDLC-CPS-044-2024 | D57: https://community.secop.gov.co/Public/Tendering/OpportunityDetail/Index?noticeUID=CO1.NTC.5735781&isFromPublicArea=True&isModal=true&asPopupView=true | E57: CPS | F57: CONTRATACION DIRECTA | G57: Prestación de servicios profesionales y de apoyo a la gestión, o para la ejecución de trabajos artísticos que sólo puedan encomendarse a determinadas personas naturales | H57: PRESTAR SERVICIOS PROFESIONALES AL FONDO DE DESARROLLO LOCAL DE LA CANDELARIA EN LOS TRÁMITES RELACIONADOS CON LOS PROCESOS PRECONTRACTUALES CONTRACTUALES Y POS CONTRACTUALES QUE SE ADELANTEN A TRAVÉS DE SECOP I Y II ASÍ COMO LA ADQUISICIÓN DE BIENES Y SERVICIOS A TRAVÉS DE LA TIENDA VIRTUAL DEL ESTADO COLOMBIANO | I57: INVERSION | J57: Un nuevo contrato social y ambiental para la Bogotá del Siglo XXI | K57: 57 | L57: Gestión Pública Local | M57: Propósito 5. Construir Bogotà - Regiòn con gobierno abierto, transparente y ciudadanìa consciente. | N57: O23011605570000002021 | O57: 1 | P57: 1032363826 | Q57: CINDY LORENA SANCHEZ CALDERON | R57: Persona Natural | W57: 29792000 | Y57: 1 | Z57: 14896000 | AA57: =+W57+X57+Z57 -> 44688000 | AB57: 44688000 | AC57: 2022-01-20 | AD57: 2022-01-20 | AE57: 2023-01-14 | AF57: 120 | AG57: 1 | AH57: 2 MESES | AI57: 9690552 | AJ57: GUSTAVO ALFONSO MARTINEZ BADILLO CESION DE | AK57: 2024-03-20 | AL57: 24330133 | AM57: TERMINADO | AN57: 1
A58: FDLC-CPS-045-2024 | B58: 2024 | C58: FDLC-CPS-045-2024 | D58: https://community.secop.gov.co/Public/Tendering/OpportunityDetail/Index?noticeUID=CO1.NTC.5742344&isFromPublicArea=True&isModal=true&asPopupView=true | E58: CPS | F58: CONTRATACION DIRECTA | G58: Prestación de servicios profesionales y de apoyo a la gestión, o para la ejecución de trabajos artísticos que sólo puedan encomendarse a determinadas personas naturales | H58: PRESTAR SERVICIOS DE APOYO A LA GESTIÓN DEL FONDO DE DESARROLLO LOCAL DE LA CANDELARIA EN EL CENTRO DE INFORMACIÓN Y DOCUMENTACIÓN (CDI) PARA EL MANEJO Y PROCESO DE DISTRIBUCIÓN DE CORRESPONDENCIA EN GENERAL | I58: INVERSION | J58: Un nuevo contrato social y ambiental para la Bogotá del Siglo XXI | K58: 57 | L58: Gestión Pública Local | M58: Propósito 5. Construir Bogotà - Regiòn con gobierno abierto, transparente y ciudadanìa consciente. | N58: O23011605570000002021 | O58: 1 | P58: 1010236602 | Q58: DIANA CAROLINA MOLANO MENDEZ | R58: Persona Natural | W58: 11532000 | Y58: 1 | Z58: 5766000 | AA58: 17298000 | AB58: 17298000 | AC58: 2022-01-20 | AD58: 2022-01-20 | AE58: 2022-08-19 | AF58: 120 | AG58: 1 | AH58: 2 MESES | AI58: N/A | AJ58: N/A | AK58: N/A | AL58: N/A | AM58: TERMINADO | AN58: 1
A59: FDLC-CPS-046-2024 | B59: 2024 | C59: FDLC-CPS-046-2024 | D59: https://community.secop.gov.co/Public/Tendering/OpportunityDetail/Index?noticeUID=CO1.NTC.5743528&isFromPublicArea=True&isModal=true&asPopupView=true | E59: CPS | F59: CONTRATACION DIRECTA | G59: Prestación de servicios profesionales y de apoyo a la gestión, o para la ejecución de trabajos artísticos que sólo puedan encomendarse a determinadas personas naturales | H59: PRESTACIÓN DE SERVICIOS DE APOYO LOGÍSTICO EN LOS EVENTOS Y ACTIVIDADES DE LA ADMINISTRACIÓN LOCAL DE LA LOCALIDAD DE LA CANDELARIA | I59: INVERSION | J59: Un nuevo contrato social y ambiental para la Bogotá del Siglo XXI | K59: 57 | L59: Gestión Pública Local | M59: Propósito 5. Construir Bogotà - Regiòn con gobierno abierto, transparente y ciudadanìa consciente. | N59: O23011605570000002021 | O59: 1 | P59: 52060667 | Q59: FABIO ALBERTO MOLINA GUTIERREZ | R59: Persona Natural | W59: 11532000 | Y59: 1 | Z59: 2883000 | AA59: 14415000 | AB59: 14415000 | AC59: 2022-01-20 | AD59: 2022-01-20 | AE59: 2022-08-19 | AF59: 120 | AG59: 1 | AH59: 1 MES | AI59: N/A | AJ59: N/A | AK59: N/A | AL59: N/A | AM59: TERMINADO | AN59: 1
A60: FDLC-CPS-047-2024 | B60: 2024 | C60: FDLC-CPS-047-2024 | D60: https://community.secop.gov.co/Public/Tendering/OpportunityDetail/Index?noticeUID=CO1.NTC.5743274&isFromPublicArea=True&isModal=true&asPopupView=true | E60: CPS | F60: CONTRATACION DIRECTA | G60: Prestación de servicios profesionales y de apoyo a la gestión, o para la ejecución de trabajos artísticos que sólo puedan encomendarse a determinadas personas naturales | H60: PRESTACIÓN DE SERVICIOS DE APOYO LOGÍSTICO EN LOS EVENTOS Y ACTIVIDADES DE LA ADMINISTRACIÓN LOCAL DE LA LOCALIDAD DE LA CANDELARIA | I60: INVERSION | J60: Un nuevo contrato social y ambiental para la Bogotá del Siglo XXI | K60: 57 | L60: Gestión Pública Local | M60: Propósito 5. Construir Bogotà - Regiòn con gobierno abierto, transparente y ciudadanìa consciente. | N60: O23011605570000002021 | O60: 1 | P60: 24344028 | Q60: DAVID ANDRES SEGURA ORTIZ | R60: Persona Natural | W60: 11532000 | Y60: 1 | Z60: 2883000 | AA60: 14415000 | AB60: 11724200 | AC60: 2022-01-20 | AD60: 2022-01-20 | AE60: 2022-08-19 | AF60: 120 | AG60: 1 | AH60: 1 MES | AI60: N/A | AJ60: N/A | AK60: N/A | AL60: N/A | AM60: TERMINADO | AN60: 0.8133333333
A61: FDLC-CPS-048-2024 | B61: 2024 | C61: FDLC-CPS-048-2024 | D61: https://community.secop.gov.co/Public/Tendering/OpportunityDetail/Index?noticeUID=CO1.NTC.5743258&isFromPublicArea=True&isModal=False | E61: CPS | F61: CONTRATACION DIRECTA | G61: Prestación de servicios profesionales y de apoyo a la gestión, o para la ejecución de trabajos artísticos que sólo puedan encomendarse a determinadas personas naturales | H61: PRESTAR SERVICIOS PROFESIONALES AL FONDO DE DESARROLLO LOCAL DE LA CANDELARIA PARA APOYAR LAS GESTIONES RELACIONADAS CON EL PRESUPUESTO DE LA ENTIDAD | I61: INVERSION | J61: Un nuevo contrato social y ambiental para la Bogotá del Siglo XXI | K61: 57 | L61: Gestión Pública Local | M61: Propósito 5. Construir Bogotà - Regiòn con gobierno abierto, transparente y ciudadanìa consciente. | N61: O23011605570000002021 | O61: 1 | P61: 1051654292 | Q61: ISABELA RAQUEL FERNANDEZ PEREZ | R61: Persona Natural | W61: 23200000 | Y61: 1 | Z61: 11600000 | AA61: 34800000 | AB61: 34800000 | AC61: 2022-01-20 | AD61: 2022-01-20 | AE61: 2022-08-19 | AF61: 120 | AG61: 1 | AH61: 2 MESES | AI61: N/A | AJ61: N/A | AK61: N/A | AL61: N/A | AM61: TERMINADO | AN61: 1
A62: FDLC-CPS-049-2024 | B62: 2024 | C62: FDLC-CPS-049-2024 | D62: https://community.secop.gov.co/Public/Tendering/OpportunityDetail/Index?noticeUID=CO1.NTC.5743533&isFromPublicArea=True&isModal=true&asPopupView=true | E62: CPS | F62: CONTRATACION DIRECTA | G62: Prestación de servicios profesionales y de apoyo a la gestión, o para la ejecución de trabajos artísticos que sólo puedan encomendarse a determinadas personas naturales | H62: PRESTAR SERVICIOS PROFESIONALES AL FONDO DE DESARROLLO LOCAL DE LA CANDELARIA PARA LA OPERACIÓN PRESTACIÓN SEGUIMIENTO Y CUMPLIMIENTO DE LOS PROCEDIMIENTOS ADMINISTRATIVOS OPERATIVOS Y PROGRAMÁTICOS DEL SERVICIO APOYO ECONÓMICO TIPO C QUE CONTRIBUYAN A LA GARANTÍA DE LOS DERECHOS DE LA POBLACIÓN MAYOR EN EL MARCO DE LA POLÍTICA PÚBLICA SOCIAL PARA EL ENVEJECIMIENTO Y LA VEJEZ EN EL DISTRITO CAPITAL A CARGO DE LA ALCALDÍA LOCAL. | I62: INVERSION | J62: Un nuevo contrato social y ambiental para la Bogotá del Siglo XXI | K62: 1 | L62: Subsidios y transferencias para la equidad | M62: Propósito 1. Hacer un nuevo contrato social con igualdad de oportunidades para la inclusiòn social, productiva y polìtica | N62: O23011601010000001605 | O62: 1 | P62: 79579031 | Q62: LILIANA MARITZA BARRERA GROSO | R62: Persona Natural | W62: 19092000 | Y62: 1 | Z62: 4773000 | AA62: 23865000 | AB62: 23865000 | AC62: 2022-01-20 | AD62: 2022-01-20 | AE62: 2022-08-19 | AF62: 120 | AG62: 1 | AH62: 1 MES | AI62: N/A | AJ62: N/A | AK62: N/A | AL62: N/A | AM62: TERMINADO | AN62: 1
A63: FDLC-CPS-050-2024 | B63: 2024 | C63: FDLC-CPS-050-2024 | D63: https://community.secop.gov.co/Public/Tendering/OpportunityDetail/Index?noticeUID=CO1.NTC.5740903&isFromPublicArea=True&isModal=true&asPopupView=true | E63: CPS | F63: CONTRATACION DIRECTA | G63: Prestación de servicios profesionales y de apoyo a la gestión, o para la ejecución de trabajos artísticos que sólo puedan encomendarse a determinadas personas naturales | H63: PRESTAR SERVICIOS ASISTENCIALES AL ÁREA DE GESTIÓN DE DESARROLLO LOCAL EN LOS PROCESOS RELACIONADOS CON LAS ACTIVIDADES DE GESTION ADMINISTRATIVA DE LA ALCALDÍA LOCAL DE LA CANDELARIA | I63: INVERSION | J63: Un nuevo contrato social y ambiental para la Bogotá del Siglo XXI | K63: 57 | L63: Gestión Pública Local | M63: Propósito 5. Construir Bogotà - Regiòn con gobierno abierto, transparente y ciudadanìa consciente. | N63: O23011605570000002021 | O63: 1 | P63: 1026295534 | Q63: JUAN ESTEBAN PINTOR QUINTERO | R63: Persona Natural | W63: 11532000 | Y63: 0 | Z63: 0 | AA63: 11532000 | AB63: 11532000 | AC63: 2022-01-20 | AD63: 2022-01-20 | AE63: 2022-08-19 | AF63: 120 | AH63: NO APLICA | AI63: N/A | AJ63: N/A | AK63: N/A | AL63: N/A | AM63: TERMINADO | AN63: 1
A64: FDLC-CPS-051-2024 | B64: 2024 | C64: FDLC-CPS-051-2024 | D64: https://community.secop.gov.co/Public/Tendering/OpportunityDetail/Index?noticeUID=CO1.NTC.5740595&isFromPublicArea=True&isModal=true&asPopupView=true | E64: CPS | F64: CONTRATACION DIRECTA | G64: Prestación de servicios profesionales y de apoyo a la gestión, o para la ejecución de trabajos artísticos que sólo puedan encomendarse a determinadas personas naturales | H64: PRESTAR SERVICIOS PROFESIONALES PARA BRINDAR ACOMPAÑAMIENTO Y SEGUIMIENTO EN LA IMPLEMENTACIÓN DEL SISTEMA DE GESTIÓN DE SEGURIDAD Y SALUD EN EL TRABAJO DE LA ALCALDIA LOCAL DE LA CANDELARIA | I64: INVERSION | J64: Un nuevo contrato social y ambiental para la Bogotá del Siglo XXI | K64: 57 | L64: Gestión Pública Local | M64: Propósito 5. Construir Bogotà - Regiòn con gobierno abierto, transparente y ciudadanìa consciente. | N64: O23011605570000002021 | O64: 1 | P64: 1010195489 | Q64: NICOLAS ANDRES MARTINEZ AGUILAR | R64: Persona Natural | W64: 20000000 | Y64: 1 | Z64: 10000000 | AA64: 30000000 | AB64: 30000000 | AC64: 2022-01-21 | AD64: 2022-01-21 | AE64: 2022-08-20 | AF64: 120 | AG64: 1 | AH64: 2 MESES | AI64: N/A | AJ64: N/A | AK64: N/A | AL64: N/A | AM64: TERMINADO | AN64: 1
A65: FDLC-CPS-052-2024 | B65: 2024 | C65: FDLC-CPS-052-2024 | D65: https://community.secop.gov.co/Public/Tendering/OpportunityDetail/Index?noticeUID=CO1.NTC.5755168&isFromPublicArea=True&isModal=true&asPopupView=true | E65: CPS | F65: CONTRATACION DIRECTA | G65: Prestación de servicios profesionales y de apoyo a la gestión, o para la ejecución de trabajos artísticos que sólo puedan encomendarse a determinadas personas naturales | H65: PRESTAR LOS SERVICIOS PROFESIONALES PARA APOYAR EN LA ELABORACIÓN GESTIÓN Y PUBLICACIÓN DE CONTENIDOS Y MATERIAL GRÁFICO DE COMUNICACIÓN EN LAS REDES SOCIALES HERRAMIENTAS INSTITUCIONALES DE COMUNICACIÓN DE LA JUNTA ADMINISTRADORA LOCAL DE LA CANDELARIA. | I65: INVERSION | J65: Un nuevo contrato social y ambiental para la Bogotá del Siglo XXI | K65: 57 | L65: Gestión Pública Local | M65: Propósito 5. Construir Bogotà - Regiòn con gobierno abierto, transparente y ciudadanìa consciente. | N65: O23011605570000002021 | O65: 1 | P65: 39781586 | Q65: CARLOS MARIO TORRES HOYOS | R65: Persona Natural | W65: 19092000 | Y65: 1 | Z65: 4773000 | AA65: 23865000 | AB65: 23865000 | AC65: 2022-01-21 | AD65: 2022-01-21 | AE65: 2022-08-20 | AF65: 120 | AG65: 1 | AH65: 1 MES | AI65: N/A | AJ65: N/A | AK65: N/A | AL65: N/A | AM65: TERMINADO | AN65: 1
A66: FDLC-CPS-053-2024 | B66: 2024 | C66: FDLC-CPS-053-2024 | D66: https://community.secop.gov.co/Public/Tendering/OpportunityDetail/Index?noticeUID=CO1.NTC.5743951&isFromPublicArea=True&isModal=true&asPopupView=true | E66: CPS | F66: CONTRATACION DIRECTA | G66: Prestación de servicios profesionales y de apoyo a la gestión, o para la ejecución de trabajos artísticos que sólo puedan encomendarse a determinadas personas naturales | H66: PRESTAR SERVICIOS DE APOYO A LA GESTIÓN AL FONDO DE DESARROLLO LOCAL DE LA CANDELARIA EN EL DESARROLLO DE ACTIVIDADES QUE AYUDEN EN LA PREVENCIÓN MITIGACIÓN Y MONITOREO DE PROBLEMAS AMBIENTALES Y EL FORTALECIMIENTO DE PRÁCTICAS DE LA AGRICULTURA URBANA | I66: INVERSION | J66: Un nuevo contrato social y ambiental para la Bogotá del Siglo XXI | K66: 24 | L66: Bogotá región emprendedora e innovadora | M66: Propósito 1. Hacer un nuevo contrato social con igualdad de oportunidades para la inclusiòn social, productiva y polìtica | N66: O23011601240000001626 | O66: 1 | P66: 79914457 | Q66: JAIME ALIRIO RUIZ CALDERON | R66: Persona Natural | W66: 7520000 | Y66: 1 | Z66: 1880000 | AA66: 9400000 | AB66: 9400000 | AC66: 2022-01-21 | AD66: 2022-01-21 | AE66: 2022-08-20 | AF66: 120 | AG66: 1 | AH66: 1 MES | AI66: N/A | AJ66: N/A | AK66: N/A | AL66: N/A | AM66: TERMINADO | AN66: 1
A67: FDLC-CPS-054-2024 | B67: 2024 | C67: FDLC-CPS-054-2024 | D67: https://community.secop.gov.co/Public/Tendering/OpportunityDetail/Index?noticeUID=CO1.NTC.5773253&isFromPublicArea=True&isModal=False | E67: CPS | F67: CONTRATACION DIRECTA | G67: Prestación de servicios profesionales y de apoyo a la gestión, o para la ejecución de trabajos artísticos que sólo puedan encomendarse a determinadas personas naturales | H67: PRESTAR SERVICIOS PROFESIONALES BRINDANDO APOYO Y ACOMPAÑAMIENTO EN LAS ACTIVIDADES DE TURISMO LOCAL PARA LA CONSERVACIÓN DE LA CANDELARIA COMO ÁREA TURÍSTICA SOSTENIBLE. | I67: INVERSION | J67: Un nuevo contrato social y ambiental para la Bogotá del Siglo XXI | K67: 57 | L67: Gestión Pública Local | M67: Propósito 5. Construir Bogotà - Regiòn con gobierno abierto, transparente y ciudadanìa consciente. | N67: O23011605570000002021 | O67: 1 | P67: 1106786140 | Q67: GIOVANNI ANDRES RAMIREZ HUILA | R67: Persona Natural | W67: 19092000 | Y67: 0 | Z67: 0 | AA67: 19092000 | AB67: 19092000 | AC67: 2022-01-20 | AD67: 2022-01-20 | AE67: 2022-12-30 | AF67: 120 | AG67: 1 | AH67: NO APLICA | AI67: N/A | AJ67: N/A | AK67: N/A | AL67: N/A | AM67: TERMINADO | AN67: 1
A68: FDLC-CPS-055-2024 | B68: 2024 | C68: FDLC-CPS-055-2024 | D68: https://community.secop.gov.co/Public/Tendering/OpportunityDetail/Index?noticeUID=CO1.NTC.5753158&isFromPublicArea=True&isModal=False | E68: CPS | F68: CONTRATACION DIRECTA | G68: Prestación de servicios profesionales y de apoyo a la gestión, o para la ejecución de trabajos artísticos que sólo puedan encomendarse a determinadas personas naturales | H68: PRESTACIÓN DE SERVICIOS PROFESIONALES EN LA IMPLEMENTACIÓN DE ACCIONES Y ESTRATEGIAS DE RECREACIÓN Y DEPORTES ENFOCADAS EN LA LOCALIDAD DE LA CANDELARIA | I68: INVERSION | J68: Un nuevo contrato social y ambiental para la Bogotá del Siglo XXI | K68: 20 | L68: Bogotá, referente en cultura, deporte, recreación y actividad física, con parques para el desarrollo y la salud | M68: Propósito 1. Hacer un nuevo contrato social con igualdad de oportunidades para la inclusiòn social, productiva y polìtica | N68: O23011601200000001611 | O68: 1 | P68: 1032471469 | Q68: HECTOR JULIO CEDANO MARTINEZ | R68: Persona Natural | W68: 24000000 | Y68: 1 | Z68: 6000000 | AA68: 30000000 | AB68: 30000000 | AC68: 2022-01-20 | AD68: 2022-01-20 | AE68: 2022-07-19 | AF68: 120 | AG68: 1 | AH68: 1 MES | AI68: N/A | AJ68: N/A | AK68: N/A | AL68: N/A | AM68: TERMINADO | AN68: 1
A69: FDLC-CPS-056-2024 | B69: 2024 | C69: FDLC-CPS-056-2024 | D69: https://community.secop.gov.co/Public/Tendering/OpportunityDetail/Index?noticeUID=CO1.NTC.5746735&isFromPublicArea=True&isModal=true&asPopupView=true | E69: CPS | F69: CONTRATACION DIRECTA | G69: Prestación de servicios profesionales y de apoyo a la gestión, o para la ejecución de trabajos artísticos que sólo puedan encomendarse a determinadas personas naturales | H69: PRESTAR SERVICIOS ASISTENCIALES AL FONDO DE DESARROLLO LOCAL DE LA CANDELARIA PARA LA ADMINISTRACIÓN DE LA CASA DEL ZIPA DE CONFORMIDAD CON EL ACUERDO LOCAL 034 DE 2021. | I69: INVERSION | J69: Un nuevo contrato social y ambiental para la Bogotá del Siglo XXI | K69: 57 | L69: Gestión Pública Local | M69: Propósito 5. Construir Bogotà - Regiòn con gobierno abierto, transparente y ciudadanìa consciente. | N69: O23011605570000002021 | O69: 1 | P69: 1010221878 | Q69: MARIA NATHALIE INFANTE GOMEZ | R69: Persona Natural | W69: 11532000 | Y69: 2 | Z69: 5766000 | AA69: 17298000 | AB69: 17298000 | AC69: 2022-01-20 | AD69: 2022-01-20 | AE69: 2022-07-19 | AF69: 120 | AG69: 2 | AH69: 2 MESES | AI69: N/A | AJ69: N/A | AK69: N/A | AL69: N/A | AM69: TERMINADO | AN69: 1
A70: FDLC-CPS-057-2024 | B70: 2024 | C70: FDLC-CPS-057-2024 | D70: https://community.secop.gov.co/Public/Tendering/OpportunityDetail/Index?noticeUID=CO1.NTC.5749974&isFromPublicArea=True&isModal=true&asPopupView=true | E70: CPS | F70: CONTRATACION DIRECTA | G70: Prestación de servicios profesionales y de apoyo a la gestión, o para la ejecución de trabajos artísticos que sólo puedan encomendarse a determinadas personas naturales | H70: PRESTAR SERVICIOS PROFESIONALES PARA APOYAR A LA ALCALDÍA LOCAL DE LA CANDELARIA EN LA PROMOCIÓN SEGUIMIENTO ACOMPAÑAMIENTO Y ATENCIÓN DE LAS INSTANCIAS DE PARTICIPACIÓN DE LA LOCALIDAD Y DEMÁS ESPACIOS DE PARTICIPACIÓN DESIGNADOS | I70: INVERSION | J70: Un nuevo contrato social y ambiental para la Bogotá del Siglo XXI | K70: 55 | L70: Fortalecimiento de Cultura Ciudadana y su institucionalidad | M70: Propósito 5. Construir Bogotà - Regiòn con gobierno abierto, transparente y ciudadanìa consciente. | N70: O23011605550000002019 | O70: 1 | P70: 52059942 | Q70: LINA MARCELA HURTADO HOLGUIN | R70: Persona Natural | W70: 22000000 | Y70: 1 | Z70: 11000000 | AA70: 33000000 | AB70: 27866667 | AC70: 2022-01-28 | AD70: 2022-01-28 | AE70: 2022-08-25 | AF70: 120 | AG70: 1 | AH70: 2 MESES | AI70: N/A | AJ70: N/A | AK70: N/A | AL70: N/A | AM70: TERMINADO | AN70: 0.8444444545
A71: FDLC-CPS-058-2024 | B71: 2024 | C71: FDLC-CPS-058-2024 | D71: https://community.secop.gov.co/Public/Tendering/OpportunityDetail/Index?noticeUID=CO1.NTC.5750436&isFromPublicArea=True&isModal=true&asPopupView=true | E71: CPS | F71: CONTRATACION DIRECTA | G71: Prestación de servicios profesionales y de apoyo a la gestión, o para la ejecución de trabajos artísticos que sólo puedan encomendarse a determinadas personas naturales | H71: PRESTAR SERVICIOS PROFESIONALES PARA APOYAR A LA ALCALDÍA LOCAL DE LA CANDELARIA EN LA PROMOCIÓN SEGUIMIENTO ACOMPAÑAMIENTO Y ATENCIÓN DE LAS INSTANCIAS DE PARTICIPACIÓN DE LA LOCALIDAD Y DEMÁS ESPACIOS DE PARTICIPACIÓN DESIGNADOS | I71: INVERSION | J71: Un nuevo contrato social y ambiental para la Bogotá del Siglo XXI | K71: 55 | L71: Fortalecimiento de Cultura Ciudadana y su institucionalidad | M71: Propósito 5. Construir Bogotà - Regiòn con gobierno abierto, transparente y ciudadanìa consciente. | N71: O23011605550000002019 | O71: 1 | P71: 80741660 | Q71: JUANITA SABOGAL | R71: Persona Natural | W71: 22000000 | Y71: 1 | Z71: 5500000 | AA71: 27500000 | AB71: 27500000 | AC71: 2022-01-27 | AD71: 2022-01-27 | AE71: 2022-12-26 | AF71: 120 | AG71: 1 | AH71: 1 MES | AI71: N/A | AJ71: N/A | AK71: N/A | AL71: N/A | AM71: TERMINADO | AN71: 1
A72: FDLC-CPS-059-2024 | B72: 2024 | C72: FDLC-CPS-059-2024 | D72: https://community.secop.gov.co/Public/Tendering/OpportunityDetail/Index?noticeUID=CO1.NTC.5750602&isFromPublicArea=True&isModal=true&asPopupView=true | E72: CPS | F72: CONTRATACION DIRECTA | G72: Prestación de servicios profesionales y de apoyo a la gestión, o para la ejecución de trabajos artísticos que sólo puedan encomendarse a determinadas personas naturales | H72: PRESTAR SERVICIOS DE APOYO EN LAS ACTIVIDADES DE SEGURIDAD Y CONVIVENCIA CIUDADANA DE ACUERDO A LAS NECESIDADES Y ESTRATEGIAS DE LA ALCALDIA LOCAL DE LA CANDELARIA | I72: INVERSION | J72: Un nuevo contrato social y ambiental para la Bogotá del Siglo XXI | K72: 57 | L72: Gestión Pública Local | M72: Propósito 5. Construir Bogotà - Regiòn con gobierno abierto, transparente y ciudadanìa consciente. | N72: O23011605570000002021 | O72: 1 | P72: 1010203707 | Q72: JAIME ROMERO RODRÍGUEZ | R72: Persona Natural | W72: 7520000 | Y72: 2 | Z72: 3760000 | AA72: 11280000 | AB72: 11280000 | AC72: 2022-01-24 | AD72: 2022-01-25 | AE72: 2022-07-23 | AF72: 120 | AG72: 2 | AH72: 2 MESES | AI72: N/A | AJ72: N/A | AK72: N/A | AL72: N/A | AM72: TERMINADO | AN72: 1
A73: FDLC-CPS-060-2024 | B73: 2024 | C73: FDLC-CPS-060-2024 | D73: https://community.secop.gov.co/Public/Tendering/OpportunityDetail/Index?noticeUID=CO1.NTC.5750526&isFromPublicArea=True&isModal=true&asPopupView=true | E73: CPS | F73: CONTRATACION DIRECTA | G73: Prestación de servicios profesionales y de apoyo a la gestión, o para la ejecución de trabajos artísticos que sólo puedan encomendarse a determinadas personas naturales | H73: PRESTAR SERVICIOS DE APOYO EN LAS ACTIVIDADES DE SEGURIDAD Y CONVIVENCIA CIUDADANA DE ACUERDO A LAS NECESIDADES Y ESTRATEGIAS DE LA ALCALDIA LOCAL DE LA CANDELARIA | I73: INVERSION | J73: Un nuevo contrato social y ambiental para la Bogotá del Siglo XXI | K73: 57 | L73: Gestión Pública Local | M73: Propósito 5. Construir Bogotà - Regiòn con gobierno abierto, transparente y ciudadanìa consciente. | N73: O23011605570000002021 | O73: 1 | P73: 1033749239 | Q73: MARIA JEANET ESTEBAN SILVA | R73: Persona Natural | W73: 7520000 | Y73: 2 | Z73: 3760000 | AA73: 11280000 | AB73: 11280000 | AC73: 2022-01-21 | AD73: 2022-01-21 | AE73: 2023-01-23 | AF73: 120 | AG73: 2 | AH73: 2 MESES | AI73: N/A | AJ73: N/A | AK73: N/A | AL73: N/A | AM73: TERMINADO | AN73: 1
A74: FDLC-CPS-061-2024 | B74: 2024 | C74: FDLC-CPS-061-2024 | D74: https://community.secop.gov.co/Public/Tendering/OpportunityDetail/Index?noticeUID=CO1.NTC.5750533&isFromPublicArea=True&isModal=true&asPopupView=true | E74: CPS | F74: CONTRATACION DIRECTA | G74: Prestación de servicios profesionales y de apoyo a la gestión, o para la ejecución de trabajos artísticos que sólo puedan encomendarse a determinadas personas naturales | H74: PRESTAR SERVICIOS DE APOYO EN LAS ACTIVIDADES DE SEGURIDAD Y CONVIVENCIA CIUDADANA DE ACUERDO A LAS NECESIDADES Y ESTRATEGIAS DE LA ALCALDIA LOCAL DE LA CANDELARIA | I74: INVERSION | J74: Un nuevo contrato social y ambiental para la Bogotá del Siglo XXI | K74: 57 | L74: Gestión Pública Local | M74: Propósito 5. Construir Bogotà - Regiòn con gobierno abierto, transparente y ciudadanìa consciente. | N74: O23011605570000002021 | O74: 1 | P74: 1010207254 | Q74: SINUHE WALTARI AYURE VELASQUEZ | R74: Persona Natural | W74: 7520000 | Y74: 0 | Z74: 0 | AA74: 7520000 | AB74: 7520000 | AC74: 2022-01-24 | AD74: 2022-01-25 | AE74: 2022-11-23 | AF74: 120 | AH74: NO APLICA | AI74: N/A | AJ74: N/A | AK74: N/A | AL74: N/A | AM74: TERMINADO | AN74: 1
A75: FDLC-CPS-062-2024 | B75: 2024 | C75: FDLC-CPS-062-2024 | D75: https://community.secop.gov.co/Public/Tendering/OpportunityDetail/Index?noticeUID=CO1.NTC.5750661&isFromPublicArea=True&isModal=true&asPopupView=true | E75: CPS | F75: CONTRATACION DIRECTA | G75: Prestación de servicios profesionales y de apoyo a la gestión, o para la ejecución de trabajos artísticos que sólo puedan encomendarse a determinadas personas naturales | H75: PRESTAR SERVICIOS DE APOYO EN LAS ACTIVIDADES DE SEGURIDAD Y CONVIVENCIA CIUDADANA DE ACUERDO A LAS NECESIDADES Y ESTRATEGIAS DE LA ALCALDIA LOCAL DE LA CANDELARIA | I75: INVERSION | J75: Un nuevo contrato social y ambiental para la Bogotá del Siglo XXI | K75: 57 | L75: Gestión Pública Local | M75: Propósito 5. Construir Bogotà - Regiòn con gobierno abierto, transparente y ciudadanìa consciente. | N75: O23011605570000002021 | O75: 1 | P75: 1032356337 | Q75: ALEXI NORVEI OSORIO RUIZ | R75: Persona Natural | W75: 7520000 | Y75: 2 | Z75: 3760000 | AA75: 11280000 | AB75: 11280000 | AC75: 2022-01-21 | AD75: 2022-01-21 | AE75: 2022-10-20 | AF75: 120 | AG75: 2 | AH75: 2 MESES | AI75: N/A | AJ75: N/A | AK75: N/A | AL75: N/A | AM75: TERMINADO | AN75: 1
A76: FDLC-CPS-063-2024 | B76: 2024 | C76: FDLC-CPS-063-2024 | D76: https://community.secop.gov.co/Public/Tendering/OpportunityDetail/Index?noticeUID=CO1.NTC.5783748&isFromPublicArea=True&isModal=true&asPopupView=true | E76: CPS | F76: CONTRATACION DIRECTA | G76: Prestación de servicios profesionales y de apoyo a la gestión, o para la ejecución de trabajos artísticos que sólo puedan encomendarse a determinadas personas naturales | H76: PRESTAR SERVICIOS ASISTENCIALES AL ÁREA DE GESTIÓN DE DESARROLLO LOCAL EN LOS PROCESOS RELACIONADOS CON LAS ACTIVIDADES DE GESTION ADMINISTRATIVA DE LA ALCALDÍA LOCAL DE LA CANDELARIA | I76: INVERSION | J76: Un nuevo contrato social y ambiental para la Bogotá del Siglo XXI | K76: 57 | L76: Gestión Pública Local | M76: Propósito 5. Construir Bogotà - Regiòn con gobierno abierto, transparente y ciudadanìa consciente. | N76: O23011605570000002021 | O76: 1 | P76: 1010223608 | Q76: DREZZSSHER NOTCREHJVISCH BHAWKT ORTIZ | R76: Persona Natural | W76: 11532000 | Y76: 0 | Z76: 0 | AA76: 11532000 | AB76: 11532000 | AC76: 2022-01-25 | AD76: 2022-01-25 | AE76: 2022-12-24 | AF76: 120 | AH76: NO APLICA | AI76: N/A | AJ76: N/A | AK76: N/A | AL76: N/A | AM76: TERMINADO | AN76: 1
A77: FDLC-CPS-064-2024 | B77: 2024 | C77: FDLC-CPS-064-2024 | D77: https://community.secop.gov.co/Public/Tendering/OpportunityDetail/Index?noticeUID=CO1.NTC.5751145&isFromPublicArea=True&isModal=true&asPopupView=true | E77: CPS | F77: CONTRATACION DIRECTA | G77: Prestación de servicios profesionales y de apoyo a la gestión, o para la ejecución de trabajos artísticos que sólo puedan encomendarse a determinadas personas naturales | H77: PRESTAR SERVICIOS PROFESIONALES PARA APOYAR JURÍDICAMENTE EL DESARROLLO Y CUMPLIMIENTO DE LAS COMISIONES JUDICIALES ORDENADAS AL ALCALDE(SA) LOCAL ASÍ COMO LA ATENCIÓN DE PETICIONES REQUERIMIENTOS Y ACCIONES CONSTITUCIONALES ORIGINADAS EN EL TRÁMITE DE DESPACHOS COMISORIOS. | I77: INVERSION | J77: Un nuevo contrato social y ambiental para la Bogotá del Siglo XXI | K77: 57 | L77: Gestión Pública Local | M77: Propósito 5. Construir Bogotà - Regiòn con gobierno abierto, transparente y ciudadanìa consciente. | N77: O23011605570000002021 | O77: 1 | P77: 53121023 | Q77: LUIS GUILLERMO MURILLO COBOS | R77: Persona Natural | W77: 21836000 | Y77: 1 | Z77: 5459000 | AA77: 27295000 | AB77: 27295000 | AC77: 2022-01-28 | AD77: 2022-01-28 | AE77: 2022-10-27 | AF77: 120 | AG77: 1 | AH77: 1 MES | AI77: N/A | AJ77: N/A | AK77: N/A | AL77: N/A | AM77: TERMINADO | AN77: 1
A78: FDLC-CPS-065-2024 | B78: 2024 | C78: FDLC-CPS-065-2024 | D78: https://community.secop.gov.co/Public/Tendering/OpportunityDetail/Index?noticeUID=CO1.NTC.5751592&isFromPublicArea=True&isModal=true&asPopupView=true | E78: CPS | F78: CONTRATACION DIRECTA | G78: Prestación de servicios profesionales y de apoyo a la gestión, o para la ejecución de trabajos artísticos que sólo puedan encomendarse a determinadas personas naturales | H78: PRESTAR SERVICIOS PROFESIONALES AL FONDO DE DESARROLLO LOCAL DE LA CANDELARIA EN LA PLANEACIÓN SEGUIMIENTO Y EJECUCIÓN DE LAS ACTIVIDADES DE EDUCACIÓN AMBIENTAL EN CUMPLIMIENTO DE LAS METAS DEL PLAN DE DESARROLLO LOCAL. | I78: INVERSION | J78: Un nuevo contrato social y ambiental para la Bogotá del Siglo XXI | K78: 27 | L78: Cambio cultural para la gestión de la crisis climática | M78: Propòsito 2. Cambiar nuestros hàbitos de vida para reverdecer a Bogotà y adaptarnos y mitigar la crisis climàtica. | N78: O23011602270000001700 | O78: 1 | P78: 80249660 | Q78: ALEX ALBERTO ARRIETA VILLABA | R78: Persona Natural | W78: 21836000 | Y78: 1 | Z78: 5459000 | AA78: 27295000 | AB78: 27295000 | AC78: 2022-01-25 | AD78: 2022-01-25 | AE78: 2022-07-24 | AF78: 120 | AG78: 1 | AH78: 1 MES | AI78: N/A | AJ78: N/A | AK78: N/A | AL78: N/A | AM78: TERMINADO | AN78: 1
A79: FDLC-CPS-066-2024 | B79: 2024 | C79: FDLC-CPS-066-2024 | D79: https://community.secop.gov.co/Public/Tendering/OpportunityDetail/Index?noticeUID=CO1.NTC.5773890&isFromPublicArea=True&isModal=False | E79: CPS | F79: CONTRATACION DIRECTA | G79: Prestación de servicios profesionales y de apoyo a la gestión, o para la ejecución de trabajos artísticos que sólo puedan encomendarse a determinadas personas naturales | H79: PRESTAR SERVICIOS DE APOYO A LA GESTIÓN AL FONDO DE DESARROLLO LOCAL DE LA CANDELARIA EN EL DESARROLLO DE ACTIVIDADES QUE AYUDEN EN LA PREVENCIÓN MITIGACIÓN Y MONITOREO DE PROBLEMAS AMBIENTALES Y EL FORTALECIMIENTO DE PRÁCTICAS DE LA AGRICULTURA URBANA | I79: INVERSION | J79: Un nuevo contrato social y ambiental para la Bogotá del Siglo XXI | K79: 24 | L79: Bogotá región emprendedora e innovadora | M79: Propósito 1. Hacer un nuevo contrato social con igualdad de oportunidades para la inclusiòn social, productiva y polìtica | N79: O23011601240000001626 | O79: 1 | P79: 80263860 | Q79: MARIA DEL PILAR SANCHEZ BORBON | R79: Persona Natural | W79: 7520000 | Y79: 0 | Z79: 0 | AA79: 7520000 | AB79: 7520000 | AC79: 2022-01-25 | AD79: 2022-01-25 | AE79: 2022-12-09 | AF79: 120 | AG79: 1 | AH79: NO APLICA | AI79: N/A | AJ79: N/A | AK79: N/A | AL79: N/A | AM79: TERMINADO | AN79: 1
A80: FDLC-CPS-067-2024 | B80: 2024 | C80: FDLC-CPS-067-2024 | D80: https://community.secop.gov.co/Public/Tendering/OpportunityDetail/Index?noticeUID=CO1.NTC.5753134&isFromPublicArea=True&isModal=true&asPopupView=true | E80: CPS | F80: CONTRATACION DIRECTA | G80: Prestación de servicios profesionales y de apoyo a la gestión, o para la ejecución de trabajos artísticos que sólo puedan encomendarse a determinadas personas naturales | H80: PRESTAR SERVICIOS PROFESIONALES PARA APOYAR EN LA FORMULACION TECNICA Y SEGUIMIENTOS DE PLANES POLITICAS PROGRAMAS Y PROYECTOS RELACIONADOS CON OBRAS E INFRAESTRUCTURA QUE DESARROLLE LA ALCALDIA LOCAL DE LA CANDELARIA. | I80: INVERSION | J80: Un nuevo contrato social y ambiental para la Bogotá del Siglo XXI | K80: 49 | L80: Movilidad segura, sostenible y accesible | M80: Propòsito 4. Hacer de Bogotà - Region un modelo de movilidad multimodal, incluyente y sostenible | N80: O23011604490000002020 | O80: 1 | P80: 1013628927 | Q80: BRYAN FELIPE PRIETO MANZANO | R80: Persona Natural | W80: 20000000 | Y80: 1 | Z80: 5000000 | AA80: 25000000 | AB80: 25000000 | AC80: 2022-01-24 | AD80: 2022-01-24 | AE80: 2022-07-23 | AF80: 120 | AG80: 1 | AH80: 1 MES | AI80: N/A | AJ80: N/A | AK80: N/A | AL80: N/A | AM80: TERMINADO | AN80: =IF(ISERROR(AB80/AA80),"-",(AB80/AA80)) -> 1
A81: FDLC-CPS-068-2024 | B81: 2024 | C81: FDLC-CPS-068-2024 | D81: https://community.secop.gov.co/Public/Tendering/OpportunityDetail/Index?noticeUID=CO1.NTC.5768040&isFromPublicArea=True&isModal=true&asPopupView=true | E81: CPS | F81: CONTRATACION DIRECTA | G81: Prestación de servicios profesionales y de apoyo a la gestión, o para la ejecución de trabajos artísticos que sólo puedan encomendarse a determinadas personas naturales | H81: PRESTAR SERVICIOS DE APOYO A LA GESTIÓN EN LAS ACTIVIDADES ASISTENCIALES QUE LE SEAN REQUERIDAS QUE IMPULSEN EN EL DESARROLLO ECONÓMICO DE LAS EMPRESAS Y EMPRENDIMIENTOS CULTURALES Y CREATIVOS DE LA LOCALIDAD | I81: INVERSION | J81: Un nuevo contrato social y ambiental para la Bogotá del Siglo XXI | K81: 57 | L81: Gestión Pública Local | M81: Propósito 5. Construir Bogotà - Regiòn con gobierno abierto, transparente y ciudadanìa consciente. | N81: O23011605570000002021 | O81: 1 | P81: 80166444 | Q81: YEYMY CAMILA OTALORA CAMELO | R81: Persona Natural | W81: 7956000 | Y81: 1 | Z81: 1989000 | AA81: 9945000 | AB81: 9945000 | AC81: 2022-01-24 | AD81: 2022-01-24 | AE81: 2022-08-23 | AF81: 120 | AG81: 1 | AH81: 1 MES | AI81: N/A | AJ81: N/A | AK81: N/A | AL81: N/A | AM81: TERMINADO | AN81: 1
A82: FDLC-CPS-069-2024 | B82: 2024 | C82: FDLC-CPS-069-2024 | D82: https://community.secop.gov.co/Public/Tendering/OpportunityDetail/Index?noticeUID=CO1.NTC.5756621&isFromPublicArea=True&isModal=true&asPopupView=true | E82: CPS | F82: CONTRATACION DIRECTA | G82: Prestación de servicios profesionales y de apoyo a la gestión, o para la ejecución de trabajos artísticos que sólo puedan encomendarse a determinadas personas naturales | H82: PRESTAR SERVICIOS DE APOYO TÉCNICO AL FONDO DE DESARROLLO LOCAL DE LA CANDELARIA EN LOS PROCEDIMIENTOS ADMINISTRATIVOS DERIVADOS DE LOS PROYECTOS SOCIALES Y DE SALUD EN LA LOCALIDAD | I82: INVERSION | J82: Un nuevo contrato social y ambiental para la Bogotá del Siglo XXI | K82: 6 | L82: Sistema Distrital del Cuidado | M82: Propósito 1. Hacer un nuevo contrato social con igualdad de oportunidades para la inclusiòn social, productiva y polìtica | N82: O23011601060000001664 | O82: 1 | P82: 79953773 | Q82: JUAN ANGEL LOPEZ ARDILA | R82: Persona Natural | W82: 11580000 | Y82: 1 | Z82: 2895000 | AA82: 14475000 | AB82: 14475000 | AC82: 2022-01-28 | AD82: 2022-01-28 | AE82: 2022-06-27 | AF82: 120 | AG82: 1 | AH82: 1 MES | AI82: N/A | AJ82: N/A | AK82: N/A | AL82: N/A | AM82: TERMINADO | AN82: 1
A83: FDLC-CPS-070-2024 | B83: 2024 | C83: FDLC-CPS-070-2024 | D83: https://community.secop.gov.co/Public/Tendering/OpportunityDetail/Index?noticeUID=CO1.NTC.5763725&isFromPublicArea=True&isModal=False | E83: CPS | F83: CONTRATACION DIRECTA | G83: Prestación de servicios profesionales y de apoyo a la gestión, o para la ejecución de trabajos artísticos que sólo puedan encomendarse a determinadas personas naturales | H83: APOYAR JURÍDICAMENTE A LA JUNTA ADMINISTRADORA LOCAL CON EL FIN DE CONTRIBUIR AL ADECUADO CUMPLIMIENTO DE LAS ATRIBUCIONES A SU CARGO | I83: INVERSION | J83: Un nuevo contrato social y ambiental para la Bogotá del Siglo XXI | K83: 57 | L83: Gestión Pública Local | M83: Propósito 5. Construir Bogotà - Regiòn con gobierno abierto, transparente y ciudadanìa consciente. | N83: O23011605570000002021 | O83: 1 | P83: 79443949 | Q83: RICHARD ANDRES DIAZ NIÑO | R83: Persona Natural | W83: 20000000 | Y83: 2 | Z83: 10000000 | AA83: 30000000 | AB83: 30000000 | AC83: 2022-01-21 | AD83: 2022-01-24 | AE83: 2022-08-31 | AF83: 120 | AG83: 2 | AH83: 2 MESES | AI83: N/A | AJ83: N/A | AK83: N/A | AL83: N/A | AM83: TERMINADO | AN83: 1
A84: FDLC-CPS-071-2024 | B84: 2024 | C84: FDLC-CPS-071-2024 | D84: https://community.secop.gov.co/Public/Tendering/OpportunityDetail/Index?noticeUID=CO1.NTC.5763008&isFromPublicArea=True&isModal=true&asPopupView=true | E84: CPS | F84: CONTRATACION DIRECTA | G84: Prestación de servicios profesionales y de apoyo a la gestión, o para la ejecución de trabajos artísticos que sólo puedan encomendarse a determinadas personas naturales | H84: PRESTAR SERVICIOS PROFESIONALES AL FONDO DE DESARROLLO LOCAL DE LA CANDELARIA EN LA PLANEACIÓN SEGUIMIENTO Y EJECUCIÓN DE LAS ACTIVIDADES DE PROMOCIÓN MANTENIMIENTO Y PLANTACIÓN DE ARBOLADO URBANO EN LA LOCALIDAD | I84: INVERSION | J84: Un nuevo contrato social y ambiental para la Bogotá del Siglo XXI | K84: 33 | L84: Más árboles y más y mejor espacio público | M84: Propósito 2. Cambiar nuestros hàbitos de vida para reverdecer a Bogotà y adaptarnos y mitigar la crisis climàtica. | N84: O23011602330000001703 | O84: 1 | P84: 52709184 | Q84: CRISTIAN CAMILO VILLABONA FIGUEROA | R84: Persona Natural | W84: 21836000 | Y84: 1 | Z84: 5459000 | AA84: =+W84+X84+Z84 -> 27295000 | AB84: 27295000 | AC84: 2022-01-21 | AD84: 2022-01-24 | AE84: 2022-10-18 | AF84: 120 | AG84: 1 | AH84: 1 MES | AI84: N/A | AJ84: N/A | AK84: N/A | AL84: N/A | AM84: TERMINADO | AN84: 1
A85: FDLC-CPS-072-2024 | B85: 2024 | C85: FDLC-CPS-072-2024-A | D85: https://community.secop.gov.co/Public/Tendering/OpportunityDetail/Index?noticeUID=CO1.NTC.5758775&isFromPublicArea=True&isModal=true&asPopupView=true | E85: CPS | F85: CONTRATACION DIRECTA | G85: Prestación de servicios profesionales y de apoyo a la gestión, o para la ejecución de trabajos artísticos que sólo puedan encomendarse a determinadas personas naturales | H85: PRESTAR LOS SERVICIOS PROFESIONALES PARA APOYAR EN LA ELABORACIÓN GESTIÓN Y PUBLICACIÓN DE CONTENIDOS Y MATERIAL GRÁFICO DE COMUNICACIÓN EN LAS REDES SOCIALES HERRAMIENTAS INSTITUCIONALES DE COMUNICACIÓN DE LA JUNTA ADMINISTRADORA LOCAL DE LA CANDELARIA | I85: INVERSION | J85: Un nuevo contrato social y ambiental para la Bogotá del Siglo XXI | K85: 57 | L85: Gestión Pública Local | M85: Propósito 5. Construir Bogotà - Regiòn con gobierno abierto, transparente y ciudadanìa consciente. | N85: O23011605570000002021 | O85: 1 | P85: 41621560 | Q85: JOHANNI JAVIER MORALES AMAYA | R85: Persona Natural | W85: 19092000 | Y85: 2 | Z85: 9546000 | AA85: 28638000 | AB85: 28638000 | AC85: 2022-01-21 | AD85: 2022-01-21 | AE85: 2022-10-19 | AF85: 120 | AG85: 2 | AH85: 2 MESES | AI85: N/A | AJ85: N/A | AK85: N/A | AL85: N/A | AM85: TERMINADO | AN85: 1
A86: FDLC-CPS-073-2024 | B86: 2024 | C86: FDLC-CPS-073-2024 | D86: https://community.secop.gov.co/Public/Tendering/OpportunityDetail/Index?noticeUID=CO1.NTC.5856746&isFromPublicArea=True&isModal=true&asPopupView=true | E86: CPS | F86: CONTRATACION DIRECTA | G86: Prestación de servicios profesionales y de apoyo a la gestión, o para la ejecución de trabajos artísticos que sólo puedan encomendarse a determinadas personas naturales | H86: PRESTAR SERVICIOS PROFESIONALES PARA APOYAR EN LA FORMULACION TECNICA Y SEGUIMIENTOS DE PLANES POLITICAS PROGRAMAS Y PROYECTOS RELACIONADOS CON OBRAS E INFRAESTRUCTURA QUE DESARROLLE LA ALCALDIA LOCAL DE LA CANDELARIA | I86: INVERSION | J86: Un nuevo contrato social y ambiental para la Bogotá del Siglo XXI | K86: 49 | L86: Movilidad segura, sostenible y accesible | M86: Propòsito 4. Hacer de Bogotà - Region un modelo de movilidad multimodal, incluyente y sostenible | N86: O23011604490000002020 | O86: 1 | P86: 91238879 | Q86: PAOLA ANDREA LEON TORRES | R86: Persona Natural | W86: 20000000 | Y86: 1 | Z86: 5000000 | AA86: =+W86+X86+Z86 -> 25000000 | AB86: 25000000 | AC86: 2022-01-24 | AD86: 2022-01-24 | AE86: 2023-01-09 | AF86: 120 | AG86: 1 | AH86: 1 MES | AI86: N/A | AJ86: N/A | AK86: N/A | AL86: N/A | AM86: TERMINADO | AN86: 1
A87: FDLC-CPS-074-2024 | B87: 2024 | C87: FDLC-CPS-074-2024 | D87: https://community.secop.gov.co/Public/Tendering/OpportunityDetail/Index?noticeUID=CO1.NTC.5759706&isFromPublicArea=True&isModal=true&asPopupView=true | E87: CPS | F87: CONTRATACION DIRECTA | G87: Prestación de servicios profesionales y de apoyo a la gestión, o para la ejecución de trabajos artísticos que sólo puedan encomendarse a determinadas personas naturales | H87: PRESTAR SUS SERVICIOS PROFESIONALES DE APOYO Y ACOMPAÑAMIENTO RELACIONADOS CON LOS PROYECTOS DE OBRA PÚBLICA E INFRAESTRUCTURA PARA LOGRAR EL CUMPLIMIENTO DE LAS METAS DEL PLAN DE DESARROLLO LOCAL 2021-2024 | I87: INVERSION | J87: Un nuevo contrato social y ambiental para la Bogotá del Siglo XXI | K87: 49 | L87: Movilidad segura, sostenible y accesible | M87: Propòsito 4. Hacer de Bogotà - Region un modelo de movilidad multimodal, incluyente y sostenible | N87: O23011604490000002020 | O87: 1 | P87: 51662613 | Q87: CATERINE JOHANNA GUZMAN RINCON | R87: Persona Natural | W87: 29792000 | Y87: 2 | Z87: 14896000 | AA87: 44688000 | AB87: 44688000 | AC87: 2022-01-27 | AD87: 2022-01-28 | AE87: 2022-08-27 | AF87: 120 | AG87: 2 | AH87: 2 MESES | AI87: N/A | AJ87: N/A | AK87: N/A | AL87: N/A | AM87: TERMINADO | AN87: 1
A88: FDLC-CPS-075-2024 | B88: 2024 | C88: FDLC-CPS-075-2024 | D88: https://community.secop.gov.co/Public/Tendering/OpportunityDetail/Index?noticeUID=CO1.NTC.5774914&isFromPublicArea=True&isModal=False | E88: CPS | F88: CONTRATACION DIRECTA | G88: Prestación de servicios profesionales y de apoyo a la gestión, o para la ejecución de trabajos artísticos que sólo puedan encomendarse a determinadas personas naturales | H88: PRESTACIÓN DE SERVICIOS DE APOYO LOGÍSTICO EN LOS EVENTOS Y ACTIVIDADES DE LA ADMINISTRACIÓN LOCAL DE LA LOCALIDAD DE LA CANDELARIA | I88: INVERSION | J88: Un nuevo contrato social y ambiental para la Bogotá del Siglo XXI | K88: 57 | L88: Gestión Pública Local | M88: Propósito 5. Construir Bogotà - Regiòn con gobierno abierto, transparente y ciudadanìa consciente. | N88: O23011605570000002021 | O88: 1 | P88: 79745860 | Q88: EULER GIOVANNY GAVIRIA SANCHEZ | R88: Persona Natural | W88: 11532000 | Y88: 2 | Z88: 5766000 | AA88: 17298000 | AB88: 17298000 | AC88: 2022-01-24 | AD88: 2022-01-24 | AE88: 2022-08-23 | AF88: 120 | AG88: 2 | AH88: 2 MESES | AI88: N/A | AJ88: N/A | AK88: N/A | AL88: N/A | AM88: TERMINADO | AN88: 1
A89: FDLC-CPS-076-2024 | B89: 2024 | C89: FDLC-CPS-076-2024 | D89: https://community.secop.gov.co/Public/Tendering/OpportunityDetail/Index?noticeUID=CO1.NTC.5764456&isFromPublicArea=True&isModal=False | E89: CPS | F89: CONTRATACION DIRECTA | G89: Prestación de servicios profesionales y de apoyo a la gestión, o para la ejecución de trabajos artísticos que sólo puedan encomendarse a determinadas personas naturales | H89: PRESTAR SERVICIOS PROFESIONALES EN EL DESPACHO DE LA ALCALDÍA LOCAL DE LA CANDELARIA PARA EL SEGUIMIENTO JURÍDICO EN MATERIA DE CONTRATACIÓN ESTATAL A LOS PROCESOS DE FORMULACIÓN EJECUCIÓN CONTROL DE POLÍTICAS PLANES Y PROGRAMAS DE INVERSIÓN EN EL MARCO DEL PLAN DE DESARROLLO LOCAL | I89: INVERSION | J89: Un nuevo contrato social y ambiental para la Bogotá del Siglo XXI | K89: 57 | L89: Gestión Pública Local | M89: Propósito 5. Construir Bogotà - Regiòn con gobierno abierto, transparente y ciudadanìa consciente. | N89: O23011605570000002021 | O89: 1 | P89: 1026283437 | Q89: CARLOS MAURICIO PALOMAR COVALEDA | R89: Persona Natural | W89: 29792000 | Y89: 1 | Z89: 7448000 | AA89: =+W89+X89+Z89 -> 37240000 | AB89: 29792000 | AC89: 2022-01-25 | AD89: 2022-01-26 | AE89: 2022-12-25 | AF89: 120 | AG89: 1 | AH89: 1 MES | AI89: N/A | AJ89: N/A | AK89: N/A | AL89: N/A | AM89: TERMINADO | AN89: 0.8
A90: FDLC-CPS-077-2024 | B90: 2024 | C90: FDLC-CPS-077-2024 | D90: https://community.secop.gov.co/Public/Tendering/OpportunityDetail/Index?noticeUID=CO1.NTC.5764045&isFromPublicArea=True&isModal=true&asPopupView=true | E90: CPS | F90: CONTRATACION DIRECTA | G90: Prestación de servicios profesionales y de apoyo a la gestión, o para la ejecución de trabajos artísticos que sólo puedan encomendarse a determinadas personas naturales | H90: PRESTAR SERVICIOS PROFESIONALES ESPECIALIZADOS AL FONDO DE DESARROLLO LOCAL DE LA CANDELARIA COMO ABOGADO DE APOYO AL DESPACHO DE EL Y/O LA ALCALDE (SA) LOCAL EN LAS DIFERENTES ACTIVIDADES Y FUNCIONES QUE LE SEAN ASIGNADAS | I90: INVERSION | J90: Un nuevo contrato social y ambiental para la Bogotá del Siglo XXI | K90: 57 | L90: Gestión Pública Local | M90: Propósito 5. Construir Bogotà - Regiòn con gobierno abierto, transparente y ciudadanìa consciente. | N90: O23011605570000002021 | O90: 1 | P90: 1032462817 | Q90: CONSTANZA DEL PILAR LEYTON RICO | R90: Persona Natural | W90: 34164000 | Y90: 1 | Z90: 17082000 | AA90: 51246000 | AB90: 51246000 | AC90: 2022-01-25 | AD90: 2022-01-25 | AE90: 2022-10-22 | AF90: 120 | AG90: 1 | AH90: 2 MESES | AI90: N/A | AJ90: N/A | AK90: N/A | AL90: N/A | AM90: TERMINADO | AN90: 1
A91: FDLC-CPS-078-2024 | B91: 2024 | C91: FDLC-CPS-078-2024 | D91: https://community.secop.gov.co/Public/Tendering/OpportunityDetail/Index?noticeUID=CO1.NTC.5772997&isFromPublicArea=True&isModal=true&asPopupView=true | E91: CPS | F91: CONTRATACION DIRECTA | G91: Prestación de servicios profesionales y de apoyo a la gestión, o para la ejecución de trabajos artísticos que sólo puedan encomendarse a determinadas personas naturales | H91: PRESTAR SERVICIOS DE APOYO TÉCNICO Y ADMINISTRATIVO RELACIONADOS CON LOS PROYECTOS DE INVERSIÓN Y FUNCIONAMIENTO QUE DESARROLLE LA ALCALDIA LOCAL DE LA CANDELARIA | I91: INVERSION | J91: Un nuevo contrato social y ambiental para la Bogotá del Siglo XXI | K91: 57 | L91: Gestión Pública Local | M91: Propósito 5. Construir Bogotà - Regiòn con gobierno abierto, transparente y ciudadanìa consciente. | N91: O23011605570000002021 | O91: 1 | P91: 79651770 | Q91: ELCY JEANETH PULIDO AMORTEGUI | R91: Persona Natural | W91: 17464000 | Y91: 1 | Z91: 4366000 | AA91: =+W91+X91+Z91 -> 21830000 | AB91: 21830000 | AC91: 2022-01-25 | AD91: 2022-01-26 | AE91: 2022-12-25 | AF91: 120 | AG91: 1 | AH91: 2 MESES | AI91: N/A | AJ91: N/A | AK91: N/A | AL91: N/A | AM91: TERMINADO | AN91: 1
A92: FDLC-CPS-079-2024 | B92: 2024 | C92: FDLC-CPS-079-2024 | D92: https://community.secop.gov.co/Public/Tendering/OpportunityDetail/Index?noticeUID=CO1.NTC.5778787&isFromPublicArea=True&isModal=true&asPopupView=true | E92: CPS | F92: CONTRATACION DIRECTA | G92: Prestación de servicios profesionales y de apoyo a la gestión, o para la ejecución de trabajos artísticos que sólo puedan encomendarse a determinadas personas naturales | H92: PRESTAR SERVICIOS PROFESIONALES AL ÁREA DE GESTIÓN DE DESARROLLO LOCAL DE LA ALCALDÍA LOCAL PARA LA IMPLEMENTACIÓN, EJECUCIÓN Y SEGUIMIENTO DE LAS POLÍTICAS, PROGRAMAS, PLANES Y PROYECTOS RELACIONADOS CON EL DESARROLLO SOSTENIBLE Y REACTIVACION ECONÓMICA EN LA LOCALIDAD | J92: Un nuevo contrato social y ambiental para la Bogotá del Siglo XXI | K92: 57 | L92: Gestión Pública Local | M92: Propósito 5. Construir Bogotà - Regiòn con gobierno abierto, transparente y ciudadanìa consciente. | O92: 1 | P92: 1026566529 | Q92: IVONNE JULIETH ROJAS ROJAS | R92: Persona Natural | W92: 20000000 | Y92: 2 | Z92: 10000000 | AA92: 30000000 | AB92: 30000000 | AC92: 2022-01-24 | AD92: 2022-01-24 | AE92: 2022-10-23 | AF92: 120 | AG92: 2 | AH92: 2 MESES | AI92: N/A | AJ92: N/A | AK92: N/A | AL92: N/A | AM92: TERMINADO | AN92: 1
A93: FDLC-CPS-080-2024 | B93: 2024 | C93: FDLC-CPS-080-2024 | D93: https://community.secop.gov.co/Public/Tendering/OpportunityDetail/Index?noticeUID=CO1.NTC.5779066&isFromPublicArea=True&isModal=true&asPopupView=true | E93: CPS | F93: CONTRATACION DIRECTA | G93: Prestación de servicios profesionales y de apoyo a la gestión, o para la ejecución de trabajos artísticos que sólo puedan encomendarse a determinadas personas naturales | H93: PRESTAR SERVICIOS PROFESIONALES PARA APOYAR TÉCNICAMENTE LAS DISTINTAS ETAPAS DE LOS PROCESOS DE COMPETENCIA DE LA ALCALDÍA LOCAL PARA LA DEPURACIÓN DE ACTUACIONES ADMINITRATIVAS. | I93: INVERSION | J93: Un nuevo contrato social y ambiental para la Bogotá del Siglo XXI | K93: 57 | L93: Gestión Pública Local | M93: Propósito 5. Construir Bogotà - Regiòn con gobierno abierto, transparente y ciudadanìa consciente. | N93: O23011605570000002023 | O93: 1 | P93: 41503480 | Q93: FRANCISCO JAVIER HIGUERA NOVA | R93: Persona Natural | W93: 24000000 | Y93: 2 | Z93: 12000000 | AA93: 36000000 | AB93: 36000000 | AC93: 2022-01-28 | AD93: 2022-01-28 | AE93: 2022-08-27 | AF93: 120 | AG93: 2 | AH93: 2 MESES | AI93: N/A | AJ93: N/A | AK93: N/A | AL93: N/A | AM93: TERMINADO | AN93: 1
A94: FDLC-CPS-081-2024 | B94: 2024 | C94: FDLC-CPS-081-2024 | D94: https://community.secop.gov.co/Public/Tendering/OpportunityDetail/Index?noticeUID=CO1.NTC.5778042&isFromPublicArea=True&isModal=False | E94: CPS | F94: CONTRATACION DIRECTA | G94: Prestación de servicios profesionales y de apoyo a la gestión, o para la ejecución de trabajos artísticos que sólo puedan encomendarse a determinadas personas naturales | H94: APOYAR AL EQUIPO DE PRENSA Y COMUNICACIONES DE LA ALCALDÍA LOCAL EN LA REALIZACIÓN DE PRODUCTOS Y PIEZAS DIGITALES IMPRESAS Y PUBLICITARIAS DE GRAN FORMATO Y DE ANIMACIÓN GRÁFICA ASÍ COMO APOYAR LA PRODUCCIÓN Y MONTAJE DE EVENTOS | I94: INVERSION | J94: Un nuevo contrato social y ambiental para la Bogotá del Siglo XXI | K94: 57 | L94: Gestión Pública Local | M94: Propósito 5. Construir Bogotà - Regiòn con gobierno abierto, transparente y ciudadanìa consciente. | N94: O23011605570000002021 | O94: 1 | P94: 52288993 | Q94: KARINA GUZMAN LEAL | R94: Persona Natural | W94: 20000000 | Y94: 1 | Z94: 5000000 | AA94: 25000000 | AB94: 25000000 | AC94: 2022-01-27 | AD94: 2022-01-28 | AE94: 2022-10-18 | AF94: 120 | AG94: 1 | AH94: 1 MES | AI94: N/A | AJ94: N/A | AK94: N/A | AL94: N/A | AM94: TERMINADO | AN94: 1
A95: FDLC-CPS-082-2024 | B95: 2024 | C95: FDLC-CPS-082-2024 | D95: https://community.secop.gov.co/Public/Tendering/OpportunityDetail/Index?noticeUID=CO1.NTC.5786071&isFromPublicArea=True&isModal=true&asPopupView=true | E95: CPS | F95: CONTRATACION DIRECTA | G95: Prestación de servicios profesionales y de apoyo a la gestión, o para la ejecución de trabajos artísticos que sólo puedan encomendarse a determinadas personas naturales | H95: PRESTAR SERVICIOS PROFESIONALES PARA LA PLANEACIÓN IMPLEMENTACIÓN Y FORTALECIMIENTO DE PROYECTOS RELACIONADOS CON LAS ACTIVIDADES DEL TURISMO LOCAL A TRAVÉS DE LA GESTIÓN ARTICULACIÓN E INTERLOCUCIÓN CON CIUDADANÍA Y ENTIDADES PÚBLICAS Y PRIVADAS LAS EMPRESAS Y EMPRENDIMIENTOS CULTURALES Y CREATIVOS DE LA LOCALIDAD DE LA CANDELARIA | I95: INVERSION | J95: Un nuevo contrato social y ambiental para la Bogotá del Siglo XXI | K95: 57 | L95: Gestión Pública Local | M95: Propósito 5. Construir Bogotà - Regiòn con gobierno abierto, transparente y ciudadanìa consciente. | N95: O23011605570000002021 | O95: 1 | P95: 1105670710 | Q95: PAULA MEDELLIN LEON | R95: Persona Natural | W95: 24000000 | Y95: 1 | Z95: 6000000 | AA95: 30000000 | AB95: 30000000 | AC95: 2022-01-27 | AD95: 2022-01-28 | AE95: 2022-07-27 | AF95: 120 | AG95: 1 | AH95: 1 MES | AI95: N/A | AJ95: N/A | AK95: N/A | AL95: N/A | AM95: TERMINADO | AN95: 1
A96: FDLC-CPS-083-2024 | B96: 2024 | C96: FDLC-CPS-083-2024 | D96: https://community.secop.gov.co/Public/Tendering/OpportunityDetail/Index?noticeUID=CO1.NTC.5782729&isFromPublicArea=True&isModal=true&asPopupView=true | E96: CPS | F96: CONTRATACION DIRECTA | G96: Prestación de servicios profesionales y de apoyo a la gestión, o para la ejecución de trabajos artísticos que sólo puedan encomendarse a determinadas personas naturales | H96: PRESTAR SERVICIOS TÉCNICOS AL FONDO DE DESARROLLO LOCAL DE LA CANDELARIA PARA APOYAR EL SEGUIMIENTO Y EJECUCION DE LOS PROGRAMAS AMBIENTALES EN LA LOCALIDAD | I96: INVERSION | J96: Un nuevo contrato social y ambiental para la Bogotá del Siglo XXI | K96: 33 | L96: Más árboles y más y mejor espacio público | M96: Propósito 2. Cambiar nuestros hàbitos de vida para reverdecer a Bogotà y adaptarnos y mitigar la crisis climàtica. | N96: O23011602330000001703 | O96: 1 | P96: 79507928 | Q96: LAURA VALENTINA MARTINEZ DOMINGUEZ | R96: Persona Natural | W96: 11600000 | Y96: 1 | Z96: 5800000 | AA96: 17400000 | AB96: 17400000 | AC96: 2022-01-25 | AD96: 2022-01-25 | AE96: 2022-10-24 | AF96: 120 | AG96: 1 | AH96: 2 MESES | AI96: N/A | AJ96: N/A | AK96: N/A | AL96: N/A | AM96: TERMINADO | AN96: 1
A97: FDLC-CPS-084-2024 | B97: 2024 | C97: FDLC-CPS-084-2024 | D97: https://community.secop.gov.co/Public/Tendering/OpportunityDetail/Index?noticeUID=CO1.NTC.5790818&isFromPublicArea=True&isModal=False | E97: CPS | F97: CONTRATACION DIRECTA | G97: Prestación de servicios profesionales y de apoyo a la gestión, o para la ejecución de trabajos artísticos que sólo puedan encomendarse a determinadas personas naturales | H97: COORDINAR LA ARTICULACIÓN ASISTENCIA Y ACOMPAÑAMIENTO DE LOS PROCESOS DE PLANEACIÓN LOCAL PARA LA PROMOCIÓN DE LA PARTICIPACIÓN DE LAS MUJERES Y DE LA EQUIDAD DE GÉNERO PARA MATERIALIZAR EN LA LOCALIDAD LAS ESTRATEGIAS DE TERRITORIALIZACIÓN Y TRANSVERSALIZACIÓN DE LA POLÍTICA PUBLICA DE MUJERES Y EQUIDAD DE GÉNERO PPMYEG | I97: INVERSION | J97: Un nuevo contrato social y ambiental para la Bogotá del Siglo XXI | K97: 40 | L97: Más mujeres viven una vida libre de violencias, se sienten seguras y acceden con confianza al sistema de justicia | M97: Propòsito 3. Inspirar confianza y legitimidad para vivir sin miedo y ser epicentro de cultura ciudadana, paz y reconciliaciòn | N97: O23011603400000001781 | O97: 1 | P97: 79951133 | Q97: MAYRA LIZETH DUEÑEZ MONROY | R97: Persona Natural | W97: 24000000 | Y97: 1 | Z97: 12000000 | AA97: =+W97+X97+Z97 -> 36000000 | AB97: 36000000 | AC97: 2022-01-24 | AD97: 2022-01-24 | AE97: 2022-12-23 | AF97: 120 | AG97: 1 | AH97: 2 MESES | AI97: N/A | AJ97: N/A | AK97: N/A | AL97: N/A | AM97: TERMINADO | AN97: 1
A98: FDLC-CPS-085-2024 | B98: 2024 | C98: FDLC-CPS-085-2024 | D98: https://community.secop.gov.co/Public/Tendering/OpportunityDetail/Index?noticeUID=CO1.NTC.5786071&isFromPublicArea=True&isModal=true&asPopupView=true | E98: CPS | F98: CONTRATACION DIRECTA | G98: Prestación de servicios profesionales y de apoyo a la gestión, o para la ejecución de trabajos artísticos que sólo puedan encomendarse a determinadas personas naturales | H98: PRESTAR SERVICIOS PROFESIONALES ESPECIALIZADOS AL FONDO DE DESARROLLO LOCAL DE LA CANDELARIA EN LOS TRÁMITES RELACIONADOS CON LOS PROCESOS DE OBLIGACIONES POR PAGAR Y LIQUIDACIÓNES ASÍ COMO LA GESTION Y SEGUMIENTO DE LOS PROCESOS CONTRACTUALES QUE DESARROLLE EL FONDO. | I98: INVERSION | J98: Un nuevo contrato social y ambiental para la Bogotá del Siglo XXI | K98: 57 | L98: Gestión Pública Local | M98: Propósito 5. Construir Bogotà - Regiòn con gobierno abierto, transparente y ciudadanìa consciente. | N98: O23011605570000002021 | O98: 1 | P98: 80194800 | Q98: CARLOS EDUARDO LINARES CASTELLANOS | R98: Persona Natural | W98: 34000000 | Y98: 1 | Z98: 17000000 | AA98: 51000000 | AB98: 51000000 | AC98: 2022-01-26 | AD98: 2022-01-26 | AE98: 2022-12-25 | AF98: 120 | AG98: 1 | AH98: 2 MESES | AI98: N/A | AJ98: N/A | AK98: N/A | AL98: N/A | AM98: TERMINADO | AN98: 1
A99: FDLC-CPS-086-2024 | B99: 2024 | C99: FDLC-CPS-086-2024 | D99: https://community.secop.gov.co/Public/Tendering/OpportunityDetail/Index?noticeUID=CO1.NTC.5790055&isFromPublicArea=True&isModal=False | E99: CPS | F99: CONTRATACION DIRECTA | G99: Prestación de servicios profesionales y de apoyo a la gestión, o para la ejecución de trabajos artísticos que sólo puedan encomendarse a determinadas personas naturales | H99: PRESTAR SERVICIOS PROFESIONALES AL FONDO DE DESARROLLO LOCAL DE LA CANDELARIA PARA APOYAR EN LA ESTRUCTURACIÓN FORMULACIÓN PRESENTACIÓN EVALUACIÓN Y SEGUIMIENTO DE LOS PROYECTOS DE INVERSIÓN EN LA LOCALIDAD | I99: INVERSION | J99: Un nuevo contrato social y ambiental para la Bogotá del Siglo XXI | K99: 57 | L99: Gestión Pública Local | M99: Propósito 5. Construir Bogotà - Regiòn con gobierno abierto, transparente y ciudadanìa consciente. | N99: O23011605570000002021 | O99: 1 | P99: 43904066 | Q99: MARIA VANESSA JUEZ MORENO | R99: Persona Natural | W99: 15000000 | Y99: 1 | Z99: 7500000 | AA99: 22500000 | AB99: 22333333 | AC99: 2022-01-27 | AD99: 2022-01-28 | AE99: 2022-10-27 | AF99: 120 | AG99: 1 | AH99: 1 mes 15 dias | AI99: 1022352287 | AJ99: CINDY CATALINA OJEDA LOPEZ - | AK99: 2024-07-02 | AL99: 3500000 | AM99: TERMINADO | AN99: 0.9925925778
A100: FDLC-CPS-087-2024 | B100: 2024 | C100: FDLC-CPS-087-2024 | D100: https://community.secop.gov.co/Public/Tendering/OpportunityDetail/Index?noticeUID=CO1.NTC.5789690&isFromPublicArea=True&isModal=False | E100: CPS | F100: CONTRATACION DIRECTA | G100: Prestación de servicios profesionales y de apoyo a la gestión, o para la ejecución de trabajos artísticos que sólo puedan encomendarse a determinadas personas naturales | H100: PRESTAR SERVICIOS DE APOYO ADMINISTRATIVO Y ASISTENCIAL EN LOS PROCESOS DE LOS ASUNTOS JURÍDICOS Y ACTUACIONES ADMINISTRATIVAS ADELANTADOS POR LA ALCALDÍA LOCAL DE LA CANDELARIA | I100: INVERSION | J100: Un nuevo contrato social y ambiental para la Bogotá del Siglo XXI | K100: 57 | L100: Gestión Pública Local | M100: Propósito 5. Construir Bogotà - Regiòn con gobierno abierto, transparente y ciudadanìa consciente. | N100: O23011605570000002023 | O100: 1 | P100: 80108185 | Q100: WILSON HAISBER RAMIREZ REINA | R100: Persona Natural | W100: 11532000 | Y100: 0 | Z100: 0 | AA100: 11532000 | AB100: 11532000 | AC100: 2022-01-27 | AD100: 2022-01-27 | AE100: 2022-10-26 | AF100: 120 | AG100: 1 | AH100: NO APLICA | AI100: N/A | AJ100: N/A | AK100: N/A | AL100: N/A | AM100: TERMINADO | AN100: 1
A101: FDLC-CPS-088-2024 | B101: 2024 | C101: FDLC-CPS-088-2024 | D101: https://community.secop.gov.co/Public/Tendering/OpportunityDetail/Index?noticeUID=CO1.NTC.5793477&isFromPublicArea=True&isModal=False | E101: CPS | F101: CONTRATACION DIRECTA | G101: Prestación de servicios profesionales y de apoyo a la gestión, o para la ejecución de trabajos artísticos que sólo puedan encomendarse a determinadas personas naturales | H101: PRESTAR SERVICIOS PROFESIONALES PARA APOYAR JURÍDICAMENTE EL DESARROLLO Y CUMPLIMIENTO DE LAS COMISIONES JUDICIALES ORDENADAS AL ALCALDE(SA) LOCAL ASÍ COMO LA ATENCIÓN DE PETICIONES REQUERIMIENTOS Y ACCIONES CONSTITUCIONALES ORIGINADAS EN EL TRÁMITE DE DESPACHOS COMISORIOS | I101: INVERSION | J101: Un nuevo contrato social y ambiental para la Bogotá del Siglo XXI | K101: 57 | L101: Gestión Pública Local | M101: Propósito 5. Construir Bogotà - Regiòn con gobierno abierto, transparente y ciudadanìa consciente. | N101: O23011605570000002021 | O101: 1 | P101: 1012339492 | Q101: CAMILO ALBERTO PARDO VERGARA | R101: Persona Natural | W101: 21836000 | Y101: 0 | Z101: 0 | AA101: 21836000 | AB101: 21836000 | AC101: 2022-01-27 | AD101: 2022-01-27 | AE101: 2022-10-26 | AF101: 120 | AG101: 1 | AH101: NO APLICA | AI101: N/A | AJ101: N/A | AK101: N/A | AL101: N/A | AM101: TERMINADO | AN101: 1
A102: FDLC-CPS-089-2024 | B102: 2024 | C102: FDLC-CPS-089-2024 | D102: https://community.secop.gov.co/Public/Tendering/OpportunityDetail/Index?noticeUID=CO1.NTC.5793965&isFromPublicArea=True&isModal=False | E102: CPS | F102: CONTRATACION DIRECTA | G102: Prestación de servicios profesionales y de apoyo a la gestión, o para la ejecución de trabajos artísticos que sólo puedan encomendarse a determinadas personas naturales | H102: PRESTAR SERVICIOS PROFESIONALES AL ÁREA DE GESTIÓN DE DESARROLLO LOCAL DE LA ALCALDÍA LOCAL PARA LA IMPLEMENTACIÓN EJECUCIÓN Y SEGUIMIENTO DE LAS POLÍTICAS PROGRAMAS PLANES Y PROYECTOS RELACIONADOS CON EL DESARROLLO SOSTENIBLE Y REACTIVACION ECONÓMICA EN LA LOCALIDAD | I102: INVERSION | J102: Un nuevo contrato social y ambiental para la Bogotá del Siglo XXI | K102: 57 | L102: Gestión Pública Local | M102: Propósito 5. Construir Bogotà - Regiòn con gobierno abierto, transparente y ciudadanìa consciente. | N102: O23011605570000002021 | O102: 1 | P102: 1030563592 | Q102: JAIME ANDRES JIMENEZ POLANIA | R102: Persona Natural | W102: 20000000 | Y102: 1 | Z102: 10000000 | AA102: 30000000 | AB102: 30000000 | AC102: 2022-01-24 | AD102: 2022-01-25 | AE102: 2022-12-05 | AF102: 120 | AG102: 1 | AH102: 2 MESES | AI102: N/A | AJ102: N/A | AK102: N/A | AL102: N/A | AM102: TERMINADO | AN102: 1
A103: FDLC-CPS-090-2024 | B103: 2024 | C103: FDLC-CPS-090-2024 | D103: https://community.secop.gov.co/Public/Tendering/OpportunityDetail/Index?noticeUID=CO1.NTC.5800732&isFromPublicArea=True&isModal=true&asPopupView=true | E103: CPS | F103: CONTRATACION DIRECTA | G103: Prestación de servicios profesionales y de apoyo a la gestión, o para la ejecución de trabajos artísticos que sólo puedan encomendarse a determinadas personas naturales | H103: PRESTAR SERVICIOS ASISTENCIALES Y ADMINISTRATIVOS PARA APOYAR LAS ACTIVIDADES RELACIONADAS CON LA PROTECCIÓN Y EL BIENESTAR ANIMAL EN LA LOCALIDAD DE LA CANDELARIA | I103: INVERSION | J103: Un nuevo contrato social y ambiental para la Bogotá del Siglo XXI | K103: 34 | L103: Bogotá protectora de los animales | M103: Propòsito 2. Cambiar nuestros hàbitos de vida para reverdecer a Bogotà y adaptarnos y mitigar la crisis climàtica. | N103: O23011602340000001704 | O103: 1 | P103: 1010235642 | Q103: CARLOS MARIO MARMOLEJO CARRASCAL | R103: Persona Natural | W103: 10000000 | Y103: 0 | Z103: 0 | AA103: 10000000 | AB103: 10000000 | AC103: 2022-01-24 | AD103: 2022-01-25 | AE103: 2022-07-24 | AF103: 120 | AH103: NO APLICA | AI103: N/A | AJ103: N/A | AK103: N/A | AL103: N/A | AM103: TERMINADO | AN103: 1
A104: FDLC-CPS-091-2024 | B104: 2024 | C104: FDLC-CPS-091-2024 | D104: https://community.secop.gov.co/Public/Tendering/OpportunityDetail/Index?noticeUID=CO1.NTC.5804047&isFromPublicArea=True&isModal=true&asPopupView=true | E104: CPS | F104: CONTRATACION DIRECTA | G104: Prestación de servicios profesionales y de apoyo a la gestión, o para la ejecución de trabajos artísticos que sólo puedan encomendarse a determinadas personas naturales | H104: PRESTAR SERVICIOS PROFESIONALES AL FONDO DE DESARROLLO LOCAL DE LA CANDELARIA PARA APOYAR EN LA ESTRUCTURACIÓN FORMULACION PRESENTACIÓN EVALUACIÓN Y SEGUIMIENTO DE LOS PROYECTOS DE INVERSION EN LA LOCALIDAD | I104: INVERSION | J104: Un nuevo contrato social y ambiental para la Bogotá del Siglo XXI | K104: 57 | L104: Gestión Pública Local | M104: Propósito 5. Construir Bogotà - Regiòn con gobierno abierto, transparente y ciudadanìa consciente. | N104: O23011605570000002021 | O104: 1 | P104: 1020729068 | Q104: MANUELA LOPEZ GIRALDO | R104: Persona Natural | W104: 15000000 | Y104: 0 | Z104: 0 | AA104: 15000000 | AB104: 15000000 | AC104: 2022-01-24 | AD104: 2022-01-25 | AE104: 2022-07-24 | AF104: 90 | AH104: NO APLICA | AI104: N/A | AJ104: N/A | AK104: N/A | AL104: N/A | AM104: TERMINADO | AN104: 1
A105: FDLC-CPS-092-2024 | B105: 2024 | C105: FDLC-CPS-092-2024 | D105: https://community.secop.gov.co/Public/Tendering/OpportunityDetail/Index?noticeUID=CO1.NTC.5805663&isFromPublicArea=True&isModal=true&asPopupView=true | E105: CPS | F105: CONTRATACION DIRECTA | G105: Prestación de servicios profesionales y de apoyo a la gestión, o para la ejecución de trabajos artísticos que sólo puedan encomendarse a determinadas personas naturales | H105: PRESTAR SERVICIOS PROFESIONALES AL FONDO DE DESARROLLO LOCAL DE LA CANDELARIA PARA APOYAR EL SEGUIMIENTO LIQUIDACIÓN DEPURACIÓN Y CONSOLIDACIÓN DE LA INFORMACIÓN DE LAS OBLIGACIONES POR PAGAR ASI COMO LAS DEMAS ACTIVIDADES DERIVADAS DE LA GESTIÓN CONTRACTUAL REQUERIDAS POR LA ENTIDAD | I105: INVERSION | J105: Un nuevo contrato social y ambiental para la Bogotá del Siglo XXI | K105: 57 | L105: Gestión Pública Local | M105: Propósito 5. Construir Bogotà - Regiòn con gobierno abierto, transparente y ciudadanìa consciente. | N105: O23011605570000002021 | O105: 1 | P105: 79594412 | Q105: DORIS MARINA MORENO CASAS | R105: Persona Natural | W105: 20000000 | Y105: 0 | Z105: 0 | AA105: 20000000 | AB105: 20000000 | AC105: 2022-01-25 | AD105: 2022-01-25 | AE105: 2022-12-30 | AF105: 120 | AH105: NO APLICA | AI105: N/A | AJ105: N/A | AK105: N/A | AL105: N/A | AM105: TERMINADO | AN105: 1
A106: FDLC-CPS-093-2024 | B106: 2024 | C106: FDLC-CPS-093-2024 | D106: https://community.secop.gov.co/Public/Tendering/OpportunityDetail/Index?noticeUID=CO1.NTC.5802122&isFromPublicArea=True&isModal=true&asPopupView=true | E106: CPS | F106: CONTRATACION DIRECTA | G106: Prestación de servicios profesionales y de apoyo a la gestión, o para la ejecución de trabajos artísticos que sólo puedan encomendarse a determinadas personas naturales | H106: PRESTAR SERVICIOS ASISTENCIALES AL ÁREA DE GESTIÓN DE DESARROLLO LOCAL EN LOS PROCESOS Y ACTIVIDADES DE GESTIÓN ADMINISTRATIVA DE LOS PROYECTOS CULTURALES ARTÍSTICOS Y PATRIMONIALES DE LA ENTIDAD Y DEMÁS ASIGNADOS POR EL ÁREA DE GESTIÓN DEL DESARROLLO LOCAL | I106: INVERSION | J106: Un nuevo contrato social y ambiental para la Bogotá del Siglo XXI | K106: 21 | L106: Creación y vida cotidiana: Apropiación ciudadana del arte, la cultura y el patrimonio, para la democracia cultural | M106: Propósito 1. Hacer un nuevo contrato social con igualdad de oportunidades para la inclusiòn social, productiva y polìtica | N106: O23011601210000001625 | O106: 1 | P106: 79594412 | Q106: LUZ MYRIAM TELLEZ PERILLA | R106: Persona Natural | W106: 11000000 | Y106: 2 | Z106: 5500000 | AA106: 16500000 | AB106: 16500000 | AC106: 2022-01-25 | AD106: 2022-01-25 | AE106: 2022-12-30 | AF106: 120 | AG106: 2 | AH106: 2 MESES | AI106: N/A | AJ106: N/A | AK106: N/A | AL106: N/A | AM106: TERMINADO | AN106: 1
A107: FDLC-CPS-094-2024 | B107: 2024 | C107: FDLC-CPS-094-2024 | D107: https://community.secop.gov.co/Public/Tendering/OpportunityDetail/Index?noticeUID=CO1.NTC.5801984&isFromPublicArea=True&isModal=true&asPopupView=true | E107: CPS | F107: CONTRATACION DIRECTA | G107: Prestación de servicios profesionales y de apoyo a la gestión, o para la ejecución de trabajos artísticos que sólo puedan encomendarse a determinadas personas naturales | H107: PRESTAR SERVICIOS PROFESIONALES AL FONDO DE DESARROLLO LOCAL DE LA CANDELARIA PARA APOYAR EN LA ESTRUCTURACIÓN FORMULACIÓN PRESENTACIÓN EVALUACIÓN Y SEGUIMIENTO DE LOS PROYECTOS DE INVERSIÓN EN LA LOCALIDAD | I107: INVERSION | J107: Un nuevo contrato social y ambiental para la Bogotá del Siglo XXI | K107: 57 | L107: Gestión Pública Local | M107: Propósito 5. Construir Bogotà - Regiòn con gobierno abierto, transparente y ciudadanìa consciente. | N107: O23011605570000002021 | O107: 1 | P107: 19459477 | Q107: YESID FERNANDO BUSTOS AGUILAR | R107: Persona Natural | W107: 15000000 | Y107: 0 | Z107: 0 | AA107: =+W107+X107+Z107 -> 15000000 | AB107: 15000000 | AC107: 2022-01-26 | AD107: 2022-01-27 | AE107: 2022-07-26 | AF107: 90 | AH107: NO APLICA | AI107: N/A | AJ107: N/A | AK107: N/A | AL107: N/A | AM107: TERMINADO | AN107: 1
A108: FDLC-CPS-095-2024 | B108: 2024 | C108: FDLC-CPS-095-2024 | D108: https://community.secop.gov.co/Public/Tendering/OpportunityDetail/Index?noticeUID=CO1.NTC.5817407&isFromPublicArea=True&isModal=true&asPopupView=true | E108: CPS | F108: CONTRATACION DIRECTA | G108: Prestación de servicios profesionales y de apoyo a la gestión, o para la ejecución de trabajos artísticos que sólo puedan encomendarse a determinadas personas naturales | H108: PRESTAR SERVICIOS DE APOYO EN LAS ACTIVIDADES DE SEGURIDAD Y CONVIVENCIA CIUDADANA DE ACUERDO A LAS NECESIDADES Y ESTRATEGIAS DE LA ALCALDIA LOCAL DE LA CANDELARIA | I108: INVERSION | J108: Un nuevo contrato social y ambiental para la Bogotá del Siglo XXI | K108: 57 | L108: Gestión Pública Local | M108: Propósito 5. Construir Bogotà - Regiòn con gobierno abierto, transparente y ciudadanìa consciente. | N108: O23011605570000002021 | O108: 1 | P108: 80729376 | Q108: LAURA CATALINA MORA NIETO | R108: Persona Natural | W108: 7520000 | Y108: 0 | Z108: 0 | AA108: 7520000 | AB108: 7520000 | AC108: 2022-01-26 | AD108: 2022-01-27 | AE108: 2022-07-26 | AF108: 120 | AH108: NO APLICA | AI108: N/A | AJ108: N/A | AK108: N/A | AL108: N/A | AM108: TERMINADO | AN108: 1
A109: FDLC-CPS-096-2024 | B109: 2024 | C109: FDLC-CPS-096-2024 | D109: https://community.secop.gov.co/Public/Tendering/OpportunityDetail/Index?noticeUID=CO1.NTC.5815155&isFromPublicArea=True&isModal=true&asPopupView=true | E109: CPS | F109: CONTRATACION DIRECTA | G109: Prestación de servicios profesionales y de apoyo a la gestión, o para la ejecución de trabajos artísticos que sólo puedan encomendarse a determinadas personas naturales | H109: PRESTAR SERVICIOS PROFESIONALES PARA APOYAR JURÍDICAMENTE LA EJECUCIÓN DE LAS ACCIONES REQUERIDAS PARA LA DEPURACIÓN DE LAS ACTUACIONES ADMINISTRATIVAS QUE CURSAN EN LA ALCALDÍA LOCAL DE LA CANDELARIA | I109: INVERSION | J109: Un nuevo contrato social y ambiental para la Bogotá del Siglo XXI | K109: 57 | L109: Gestión Pública Local | M109: Propósito 5. Construir Bogotà - Regiòn con gobierno abierto, transparente y ciudadanìa consciente. | N109: O23011605570000002023 | O109: 1 | P109: 36313634 | Q109: DAVID ANTONIO RODRIGUEZ PULIDO | R109: Persona Natural | W109: 21836000 | Y109: 1 | Z109: 10918000 | AA109: 32754000 | AB109: 32754000 | AC109: 2022-01-28 | AD109: 2022-01-28 | AE109: 2022-09-27 | AF109: 120 | AG109: 1 | AH109: 2 MESES | AI109: N/A | AJ109: N/A | AK109: N/A | AL109: N/A | AM109: TERMINADO | AN109: 1
A110: FDLC-CPS-097-2024 | B110: 2024 | C110: FDLC-CPS-097-2024 | D110: https://community.secop.gov.co/Public/Tendering/OpportunityDetail/Index?noticeUID=CO1.NTC.5821199&isFromPublicArea=True&isModal=true&asPopupView=true | E110: CPS | F110: CONTRATACION DIRECTA | G110: Prestación de servicios profesionales y de apoyo a la gestión, o para la ejecución de trabajos artísticos que sólo puedan encomendarse a determinadas personas naturales | H110: APOYAR AL ALCALDE (SA) LOCAL EN LA PROMOCIÓN ACOMPAÑAMIENTO COORDINACIÓN Y ATENCIÓN DE LAS INSTANCIAS DE COORDINACIÓN INTERINSTITUCIONALES Y LAS INSTANCIAS DE PARTICIPACIÓN LOCALES ASÍ COMO LOS PROCESOS COMUNITARIOS EN LA LOCALIDAD | I110: INVERSION | J110: Un nuevo contrato social y ambiental para la Bogotá del Siglo XXI | K110: 55 | L110: Fortalecimiento de Cultura Ciudadana y su institucionalidad | M110: Propósito 5. Construir Bogotà - Regiòn con gobierno abierto, transparente y ciudadanìa consciente. | N110: O23011605550000002019 | O110: 1 | P110: 1085290304 | Q110: MONICA ANDREA LEAL DIAZ | R110: Persona Natural | W110: 29792000 | Y110: 1 | Z110: 14896000 | AA110: 44688000 | AB110: 41708800 | AC110: 2022-01-26 | AD110: 2022-01-26 | AE110: 2022-09-26 | AF110: 120 | AG110: 1 | AH110: 2 MESES | AI110: N/A | AJ110: N/A | AK110: N/A | AL110: N/A | AM110: TERMINADO | AN110: 0.9333333333
A111: FDLC-CPS-098-2024 | B111: 2024 | C111: FDLC-CPS-098-2024 | D111: https://community.secop.gov.co/Public/Tendering/OpportunityDetail/Index?noticeUID=CO1.NTC.5820904&isFromPublicArea=True&isModal=true&asPopupView=true | E111: CPS | F111: CONTRATACION DIRECTA | G111: Prestación de servicios profesionales y de apoyo a la gestión, o para la ejecución de trabajos artísticos que sólo puedan encomendarse a determinadas personas naturales | H111: PRESTAR SERVICIOS PROFESIONALES PARA APOYAR A LA ALCALDÍA LOCAL DE LA CANDELARIA EN LA PROMOCIÓN SEGUIMIENTO ACOMPAÑAMIENTO Y ATENCIÓN DE LAS INSTANCIAS DE PARTICIPACIÓN JUVENIL DE LA LOCALIDAD ASI COMO LOS PROCESOS COMUNITARIOS DE JUVENTUDES Y DEMÁS ESPACIOS DE PARTICIPACIÓN DESIGNADOS | I111: INVERSION | J111: Un nuevo contrato social y ambiental para la Bogotá del Siglo XXI | K111: 57 | L111: Gestión Pública Local | M111: Propósito 5. Construir Bogotà - Regiòn con gobierno abierto, transparente y ciudadanìa consciente. | N111: O23011605570000002021 | O111: 1 | P111: 1085280532 | Q111: YAHARA VALENTINA SILVA VELAZCO | R111: Persona Natural | W111: 19092000 | Y111: 0 | Z111: 0 | AA111: 19092000 | AB111: 19092000 | AC111: 2022-01-27 | AD111: 2022-01-27 | AE111: 2022-12-26 | AF111: 120 | AH111: NO APLICA | AI111: N/A | AJ111: N/A | AK111: N/A | AL111: N/A | AM111: TERMINADO | AN111: 1
A112: FDLC-CPS-099-2024 | B112: 2024 | C112: FDLC-CPS-099-2024 | D112: https://community.secop.gov.co/Public/Tendering/OpportunityDetail/Index?noticeUID=CO1.NTC.5819436&isFromPublicArea=True&isModal=true&asPopupView=true | E112: CPS | F112: CONTRATACION DIRECTA | G112: Prestación de servicios profesionales y de apoyo a la gestión, o para la ejecución de trabajos artísticos que sólo puedan encomendarse a determinadas personas naturales | H112: PRESTAR SERVICIOS PROFESIONALES AL FONDO DE DESARROLLO LOCAL DE LA CANDELARIA PARA APOYAR TÉCNICAMENTE A LOS RESPONSABLES E INTEGRANTES DE LOS PROCESOS EN LA IMPLEMENTACIÓN DE HERRAMIENTAS DE GESTIÓN SIGUIENDO LOS LINEAMIENTOS METODOLÓGICOS ESTABLECIDOS POR LA OFICINA ASESORA DE PLANEACIÓN DE LA SECRETARÍA DISTRITAL DE GOBIERNO | I112: INVERSION | J112: Un nuevo contrato social y ambiental para la Bogotá del Siglo XXI | K112: 57 | L112: Gestión Pública Local | M112: Propósito 5. Construir Bogotà - Regiòn con gobierno abierto, transparente y ciudadanìa consciente. | N112: O23011605570000002021 | O112: 1 | P112: 80236435 | Q112: GLORIA INES CASTILLO PAEZ | R112: Persona Natural | W112: 24000000 | Y112: 1 | Z112: 6000000 | AA112: =+W112+X112+Z112 -> 30000000 | AB112: 30000000 | AC112: 2022-01-26 | AD112: 2022-01-26 | AE112: 2022-11-25 | AF112: 120 | AG112: 1 | AH112: 1 MES | AI112: N/A | AJ112: N/A | AK112: N/A | AL112: N/A | AM112: TERMINADO | AN112: 1
A113: FDLC-CPS-100-2024 | B113: 2024 | C113: FDLC-CPS-100-2024 | D113: https://community.secop.gov.co/Public/Tendering/OpportunityDetail/Index?noticeUID=CO1.NTC.5835074&isFromPublicArea=True&isModal=true&asPopupView=true | E113: CPS | F113: CONTRATACION DIRECTA | G113: Prestación de servicios profesionales y de apoyo a la gestión, o para la ejecución de trabajos artísticos que sólo puedan encomendarse a determinadas personas naturales | H113: PRESTAR SERVICIOS DE APOYO AL FONDO DE DESARROLLO LOCAL DE LA CANDELARIA EN LA ADMINISTRACIÓN DE LAS CASAS COMUNITARIAS DE LA LOCALIDAD DE LA CANDELARIA DE CONFORMIDAD CON EL ACUERDO LOCAL 006 DE 2013 | I113: INVERSION | J113: Un nuevo contrato social y ambiental para la Bogotá del Siglo XXI | K113: 57 | L113: Gestión Pública Local | M113: Propósito 5. Construir Bogotà - Regiòn con gobierno abierto, transparente y ciudadanìa consciente. | N113: O23011605570000002021 | O113: 1 | P113: 79907754 | Q113: JESSICA LISETH RINCON RODRIGUEZ | R113: Persona Natural | W113: 11532000 | Y113: 1 | Z113: 2883000 | AA113: 14415000 | AB113: 14415000 | AC113: 2022-01-26 | AD113: 2022-01-27 | AE113: 2022-07-26 | AF113: 120 | AG113: 1 | AH113: 1 MES | AI113: N/A | AJ113: N/A | AK113: N/A | AL113: N/A | AM113: TERMINADO | AN113: 1
A114: FDLC-CPS-101-2024 | B114: 2024 | C114: FDLC-CPS-101-2024 | D114: https://community.secop.gov.co/Public/Tendering/OpportunityDetail/Index?noticeUID=CO1.NTC.5837653&isFromPublicArea=True&isModal=true&asPopupView=true | E114: CPS | F114: CONTRATACION DIRECTA | G114: Prestación de servicios profesionales y de apoyo a la gestión, o para la ejecución de trabajos artísticos que sólo puedan encomendarse a determinadas personas naturales | H114: PRESTAR SERVICIOS PROFESIONALES AL FONDO DE DESARROLLO LOCAL DE LA CANDELARIA PARA APOYAR Y FORTALECER LAS GESTIONES CONTABLES DE LA ENTIDAD | I114: INVERSION | J114: Un nuevo contrato social y ambiental para la Bogotá del Siglo XXI | K114: 57 | L114: Gestión Pública Local | M114: Propósito 5. Construir Bogotà - Regiòn con gobierno abierto, transparente y ciudadanìa consciente. | N114: O23011605570000002021 | O114: 1 | P114: 1001281981 | Q114: CARLOS MARIO MARTINEZ DIAZ | R114: Persona Natural | W114: 23200000 | Y114: 1 | Z114: 11600000 | AA114: =+W114+X114+Z114 -> 34800000 | AB114: 20493333 | AC114: 2022-01-27 | AD114: 2022-01-28 | AE114: 2022-12-27 | AF114: 120 | AG114: 1 | AH114: 2 MESES | AI114: 52520044 | AJ114: PAOLA ANDREA OYUELA VARGAS CESION DE | AK114: 2024-04-05 | AL114: 2706667 | AM114: TERMINADO | AN114: 0.5888888793
A115: FDLC-CPS-102-2024 | B115: 2024 | C115: FDLC-CPS-102-2024 | D115: https://community.secop.gov.co/Public/Tendering/OpportunityDetail/Index?noticeUID=CO1.NTC.5832210&isFromPublicArea=True&isModal=true&asPopupView=true | E115: CPS | F115: CONTRATACION DIRECTA | G115: Prestación de servicios profesionales y de apoyo a la gestión, o para la ejecución de trabajos artísticos que sólo puedan encomendarse a determinadas personas naturales | H115: PRESTAR SERVICIOS ESPECIALIZADOS DE PLANEACIÓN ESTRATÉGICA EN EL DESPACHO DE LA ALCALDÍA LOCAL DE LA CANDELARIA PARA LA COORDINACIÓN ESTRUCTURACIÓN FORMULACIÓN EJECUCIÓN Y CONTROL DE POLÍTICAS PLANES Y PROGRAMAS DE INVERSIÓN EN EL MARCO DEL CUMPLIMIENTO DEL PLAN DE DESARROLLO LOCAL | I115: INVERSION | J115: Un nuevo contrato social y ambiental para la Bogotá del Siglo XXI | K115: 57 | L115: Gestión Pública Local | M115: Propósito 5. Construir Bogotà - Regiòn con gobierno abierto, transparente y ciudadanìa consciente. | N115: O23011605570000002021 | O115: 1 | P115: 51838961 | Q115: DELIO ALCIBIADES LADINO PEÑA | R115: Persona Natural | W115: 34164000 | Y115: 1 | Z115: 17082000 | AA115: 51246000 | AB115: 51246000 | AC115: 2022-01-27 | AD115: 2022-01-28 | AE115: 2022-10-27 | AF115: 120 | AG115: 1 | AH115: 2 MESES | AI115: N/A | AJ115: N/A | AK115: N/A | AL115: N/A | AM115: TERMINADO | AN115: 1
A116: FDLC-CPS-103-2024 | B116: 2024 | C116: FDLC-CPS-103-2024 | D116: https://community.secop.gov.co/Public/Tendering/OpportunityDetail/Index?noticeUID=CO1.NTC.5827189&isFromPublicArea=True&isModal=true&asPopupView=true | E116: CPS | F116: CONTRATACION DIRECTA | G116: Prestación de servicios profesionales y de apoyo a la gestión, o para la ejecución de trabajos artísticos que sólo puedan encomendarse a determinadas personas naturales | H116: PRESTAR SERVICIOS TÉCNICOS AL ÁREA DE GESTIÓN POLICIVA DE LA ALCALDÍA LOCAL DE LA CANDELARIA EN LAS LABORES OPERATIVAS DE IMPULSO DE LAS ACTUACIONES ADMINISTRATIVAS | I116: INVERSION | J116: Un nuevo contrato social y ambiental para la Bogotá del Siglo XXI | K116: 57 | L116: Gestión Pública Local | M116: Propósito 5. Construir Bogotà - Regiòn con gobierno abierto, transparente y ciudadanìa consciente. | N116: O23011605570000002023 | O116: 1 | P116: 37626367 | Q116: NEREIDA HERNANDEZ FLOREZ | R116: Persona Natural | W116: 14400000 | Y116: 1 | Z116: 7200000 | AA116: 21600000 | AB116: 21600000 | AC116: 2022-02-01 | AD116: 2022-01-28 | AE116: 2022-10-27 | AF116: 120 | AG116: 1 | AH116: 2 MESES | AI116: N/A | AJ116: N/A | AK116: N/A | AL116: N/A | AM116: TERMINADO | AN116: 1
A117: FDLC-CPS-104-2024 | B117: 2024 | C117: FDLC-CPS-104-2024 | D117: https://community.secop.gov.co/Public/Tendering/OpportunityDetail/Index?noticeUID=CO1.NTC.5864855&isFromPublicArea=True&isModal=true&asPopupView=true | E117: CPS | F117: CONTRATACION DIRECTA | G117: Prestación de servicios profesionales y de apoyo a la gestión, o para la ejecución de trabajos artísticos que sólo puedan encomendarse a determinadas personas naturales | H117: PRESTAR EL APOYO SECRETARIAL A LA JUNTA ADMINISTRADORA LOCAL | I117: INVERSION | J117: Un nuevo contrato social y ambiental para la Bogotá del Siglo XXI | K117: 57 | L117: Gestión Pública Local | M117: Propósito 5. Construir Bogotà - Regiòn con gobierno abierto, transparente y ciudadanìa consciente. | N117: O23011605570000002021 | O117: 1 | P117: 1024571510 | Q117: SARA EDITH LIS RAMIREZ | R117: Persona Natural | W117: 9200000 | Y117: 0 | Z117: 0 | AA117: 9200000 | AB117: 9200000 | AC117: 2022-01-28 | AD117: 2022-01-28 | AE117: 2022-11-27 | AF117: 120 | AH117: NO APLICA | AI117: N/A | AJ117: N/A | AK117: N/A | AL117: N/A | AM117: TERMINADO | AN117: 1
A118: FDLC-CPS-105-2024 | B118: 2024 | C118: FDLC-CPS-105-2024 | D118: https://community.secop.gov.co/Public/Tendering/OpportunityDetail/Index?noticeUID=CO1.NTC.5867799&isFromPublicArea=True&isModal=true&asPopupView=true | E118: CPS | F118: CONTRATACION DIRECTA | G118: Prestación de servicios profesionales y de apoyo a la gestión, o para la ejecución de trabajos artísticos que sólo puedan encomendarse a determinadas personas naturales | H118: PRESTAR SERVICIOS DE APOYO TÉCNICO Y ADMINISTRATIVO RELACIONADOS CON LOS PROYECTOS DE INVERSION Y FUNCIONAMIENTO QUE DESARROLLE LA ALCALDIA LOCAL DE LA CANDELARIA | I118: INVERSION | J118: Un nuevo contrato social y ambiental para la Bogotá del Siglo XXI | K118: 57 | L118: Gestión Pública Local | M118: Propósito 5. Construir Bogotà - Regiòn con gobierno abierto, transparente y ciudadanìa consciente. | N118: O23011605570000002021 | O118: 1 | P118: 80844806 | Q118: MARÍA ADELAIDA LUNA BUENAVENTURA | R118: Persona Natural | W118: 12400000 | Y118: 0 | Z118: 0 | AA118: 12400000 | AB118: 12400000 | AC118: 2022-01-26 | AD118: 2022-01-26 | AE118: 2022-07-25 | AF118: 120 | AH118: NO APLICA | AI118: N/A | AJ118: N/A | AK118: N/A | AL118: N/A | AM118: TERMINADO | AN118: 1
A119: FDLC-CPS-106-2024 | B119: 2024 | C119: FDLC-CPS-106-2024 | D119: https://community.secop.gov.co/Public/Tendering/OpportunityDetail/Index?noticeUID=CO1.NTC.5891448&isFromPublicArea=True&isModal=true&asPopupView=true | E119: CPS | F119: CONTRATACION DIRECTA | G119: Prestación de servicios profesionales y de apoyo a la gestión, o para la ejecución de trabajos artísticos que sólo puedan encomendarse a determinadas personas naturales | H119: PRESTAR SERVICIOS PROFESIONALES AL FONDO DE DESARROLLO LOCAL DE LA CANDELARIA PARA APOYAR EN LA ESTRUCTURACIÓN FORMULACIÓN PRESENTACIÓN EVALUACIÓN Y SEGUIMIENTO DE LOS PROYECTOS DE INVERSIÓN EN LA LOCALIDAD | I119: INVERSION | J119: Un nuevo contrato social y ambiental para la Bogotá del Siglo XXI | K119: 57 | L119: Gestión Pública Local | M119: Propósito 5. Construir Bogotà - Regiòn con gobierno abierto, transparente y ciudadanìa consciente. | N119: O23011605570000002021 | O119: 1 | P119: 93236642 | Q119: ERICA MILENA VARGAS MEDINA | R119: Persona Natural | W119: 14319000 | Y119: 1 | Z119: 7159500 | AA119: 21478500 | AB119: 21478500 | AC119: 2022-01-28 | AD119: 2022-01-28 | AE119: 2023-06-11 | AF119: 120 | AG119: 1 | AH119: 1 MES 15 DIAS | AI119: N/A | AJ119: N/A | AK119: N/A | AL119: N/A | AM119: TERMINADO | AN119: 1
A120: FDLC-CPS-107-2024 | B120: 2024 | C120: FDLC-CPS-107-2024 | D120: https://community.secop.gov.co/Public/Tendering/OpportunityDetail/Index?noticeUID=CO1.NTC.5892136&isFromPublicArea=True&isModal=true&asPopupView=true | E120: CPS | F120: CONTRATACION DIRECTA | G120: Prestación de servicios profesionales y de apoyo a la gestión, o para la ejecución de trabajos artísticos que sólo puedan encomendarse a determinadas personas naturales | H120: PRESTACIÓN DE SERVICIOS DE APOYO ADMINISTRATIVO Y ASISTENCIAL A LA ALCALDIA LOCAL DE LA CANDELARIA EN LOS PROCESOS DE FORMACIÓN PARA LA PARTICIPACIÓN. | I120: INVERSION | J120: Un nuevo contrato social y ambiental para la Bogotá del Siglo XXI | K120: 55 | L120: Fortalecimiento de Cultura Ciudadana y su institucionalidad | M120: Propósito 5. Construir Bogotà - Regiòn con gobierno abierto, transparente y ciudadanìa consciente. | N120: O23011605550000002019 | O120: 1 | P120: 80807404 | Q120: LIZDENIA ROBLEDO MÁRQUEZ | R120: Persona Natural | W120: 11532000 | Y120: 0 | Z120: 0 | AA120: 11532000 | AB120: 11532000 | AC120: 2022-01-28 | AD120: 2022-01-28 | AE120: 2022-10-27 | AF120: 120 | AH120: NO APLICA | AI120: N/A | AJ120: N/A | AK120: N/A | AL120: N/A | AM120: TERMINADO | AN120: 1
A121: FDLC-CPS-108-2024 | B121: 2024 | C121: FDLC-CPS-108-2024 | D121: https://community.secop.gov.co/Public/Tendering/OpportunityDetail/Index?noticeUID=CO1.NTC.5867710&isFromPublicArea=True&isModal=true&asPopupView=true | E121: CPS | F121: CONTRATACION DIRECTA | G121: Prestación de servicios profesionales y de apoyo a la gestión, o para la ejecución de trabajos artísticos que sólo puedan encomendarse a determinadas personas naturales | H121: PRESTAR SERVICIOS DE APOYO EN LAS ACTIVIDADES DE SEGURIDAD Y CONVIVENCIA CIUDADANA DE ACUERDO A LAS NECESIDADES Y ESTRATEGIAS DE LA ALCALDÍA LOCAL DE LA CANDELARIA | I121: INVERSION | J121: Un nuevo contrato social y ambiental para la Bogotá del Siglo XXI | K121: 57 | L121: Gestión Pública Local | M121: Propósito 5. Construir Bogotà - Regiòn con gobierno abierto, transparente y ciudadanìa consciente. | N121: O23011605570000002021 | O121: 1 | P121: 19458700 | Q121: FRANCI LILIANA GAMBOA AVELLA | R121: Persona Natural | W121: 7520000 | Y121: 0 | Z121: 0 | AA121: 7520000 | AB121: 7520000 | AC121: 2022-01-28 | AD121: 2022-01-28 | AE121: 2022-12-27 | AF121: 120 | AH121: NO APLICA | AI121: N/A | AJ121: N/A | AK121: N/A | AL121: N/A | AM121: TERMINADO | AN121: 1
A122: FDLC-CPS-109-2024 | B122: 2024 | C122: FDLC-CPS-109-2024 | D122: https://community.secop.gov.co/Public/Tendering/OpportunityDetail/Index?noticeUID=CO1.NTC.5864309&isFromPublicArea=True&isModal=true&asPopupView=true | E122: CPS | F122: CONTRATACION DIRECTA | G122: Prestación de servicios profesionales y de apoyo a la gestión, o para la ejecución de trabajos artísticos que sólo puedan encomendarse a determinadas personas naturales | H122: APOYAR AL (LA) ALCALDE (SA) LOCAL EN LA PROMOCIÓN ARTICULACIÓN ACOMPAÑAMIENTO Y SEGUIMIENTO PARA LA ATENCIÓN Y PROTECCIÓN DE LOS ANIMALES DOMÉSTICOS Y SILVESTRES DE LA LOCALIDAD | I122: INVERSION | J122: Un nuevo contrato social y ambiental para la Bogotá del Siglo XXI | K122: 34 | L122: Bogotá protectora de los animales | M122: Propòsito 2. Cambiar nuestros hàbitos de vida para reverdecer a Bogotà y adaptarnos y mitigar la crisis climàtica. | N122: O23011602340000001704 | O122: 1 | P122: 1022408072 | Q122: DAISSY TATIANA FAJARDO VELASCO | R122: Persona Natural | W122: 29792000 | Y122: 1 | Z122: 14896000 | AA122: 44688000 | AB122: 44868000 | AC122: 2022-01-28 | AD122: 2022-01-28 | AE122: 2022-09-28 | AF122: 120 | AG122: 1 | AH122: 2 MESES | AI122: N/A | AJ122: N/A | AK122: N/A | AL122: N/A | AM122: TERMINADO | AN122: 1.004027927
A123: FDLC-CPS-110-2024 | B123: 2024 | C123: FDLC-CPS-110-2024 | D123: https://community.secop.gov.co/Public/Tendering/OpportunityDetail/Index?noticeUID=CO1.NTC.5868665&isFromPublicArea=True&isModal=true&asPopupView=true | E123: CPS | F123: CONTRATACION DIRECTA | G123: Prestación de servicios profesionales y de apoyo a la gestión, o para la ejecución de trabajos artísticos que sólo puedan encomendarse a determinadas personas naturales | H123: PRESTAR SERVICIOS DE APOYO EN LAS ACTIVIDADES DE SEGURIDAD Y CONVIVENCIA CIUDADANA DE ACUERDO A LAS NECESIDADES Y ESTRATEGIAS DE LA ALCALDIA LOCAL DE LA CANDELARIA | I123: INVERSION | J123: Un nuevo contrato social y ambiental para la Bogotá del Siglo XXI | K123: 57 | L123: Gestión Pública Local | M123: Propósito 5. Construir Bogotà - Regiòn con gobierno abierto, transparente y ciudadanìa consciente. | N123: O23011605570000002021 | O123: 1 | P123: 11203378 | Q123: LUCIENY CASTRILLON GRANADA | R123: Persona Natural | W123: 7520000 | Y123: 1 | Z123: 1880000 | AA123: 9400000 | AB123: 9400000 | AC123: 2022-01-28 | AD123: 2022-01-28 | AE123: 2022-07-27 | AF123: 120 | AG123: 1 | AH123: 1 MES | AI123: N/A | AJ123: N/A | AK123: N/A | AL123: N/A | AM123: TERMINADO | AN123: 1
A124: FDLC-CPS-111-2024 | B124: 2024 | C124: FDLC-CPS-111-2024 | D124: https://community.secop.gov.co/Public/Tendering/OpportunityDetail/Index?noticeUID=CO1.NTC.5890067&isFromPublicArea=True&isModal=true&asPopupView=true | E124: CPS | F124: CONTRATACION DIRECTA | G124: Prestación de servicios profesionales y de apoyo a la gestión, o para la ejecución de trabajos artísticos que sólo puedan encomendarse a determinadas personas naturales | H124: PRESTAR SERVICIOS DE APOYO EN LAS ACTIVIDADES DE SEGURIDAD Y CONVIVENCIA CIUDADANA DE ACUERDO A LAS NECESIDADES Y ESTRATEGIAS DE LA ALCALDIA LOCAL DE LA CANDELARIA | I124: INVERSION | J124: Un nuevo contrato social y ambiental para la Bogotá del Siglo XXI | K124: 57 | L124: Gestión Pública Local | M124: Propósito 5. Construir Bogotà - Regiòn con gobierno abierto, transparente y ciudadanìa consciente. | N124: O23011605570000002021 | O124: 1 | P124: 1024462041 | Q124: ORLANDO GOMEZ ROMERO | R124: Persona Natural | W124: 7520000 | Y124: 1 | Z124: 1880000 | AA124: =+W124+X124+Z124 -> 9400000 | AB124: 9400000 | AC124: 2022-01-28 | AD124: 2022-01-28 | AE124: 2022-07-27 | AF124: 120 | AG124: 1 | AH124: 1 MES | AI124: N/A | AJ124: N/A | AK124: N/A | AL124: N/A | AM124: TERMINADO | AN124: 1
A125: FDLC-CPS-112-2024 | B125: 2024 | C125: FDLC-CPS-112-2024 | D125: https://community.secop.gov.co/Public/Tendering/OpportunityDetail/Index?noticeUID=CO1.NTC.5868685&isFromPublicArea=True&isModal=true&asPopupView=true | E125: CPS | F125: CONTRATACION DIRECTA | G125: Prestación de servicios profesionales y de apoyo a la gestión, o para la ejecución de trabajos artísticos que sólo puedan encomendarse a determinadas personas naturales | H125: PRESTAR SERVICIOS PROFESIONALES AL FONDO DE DESARROLLO LOCAL DE LA CANDELARIA PARA APOYAR EN LA ESTRUCTURACIÓN FORMULACION PRESENTACIÓN EVALUACIÓN Y SEGUIMIENTO DE LOS PROYECTOS DE INVERSION EN LA LOCALIDAD | I125: INVERSION | J125: Un nuevo contrato social y ambiental para la Bogotá del Siglo XXI | K125: 57 | L125: Gestión Pública Local | M125: Propósito 5. Construir Bogotà - Regiòn con gobierno abierto, transparente y ciudadanìa consciente. | N125: O23011605570000002021 | O125: 1 | P125: 1121847787 | Q125: IVETTE ALEJANDRA CARPENTIER HENAO | R125: Persona Natural | W125: 15000000 | Y125: 1 | Z125: 5000000 | AA125: 20000000 | AB125: 20000000 | AC125: 2022-01-28 | AD125: 2022-01-28 | AE125: 2022-06-27 | AF125: 120 | AG125: 1 | AH125: 1 MES | AI125: N/A | AJ125: N/A | AK125: N/A | AL125: N/A | AM125: TERMINADO | AN125: 1
A126: FDLC-CPS-113-2024 | B126: 2024 | C126: FDLC-CPS-113-2024 | D126: https://community.secop.gov.co/Public/Tendering/OpportunityDetail/Index?noticeUID=CO1.NTC.5868122&isFromPublicArea=True&isModal=true&asPopupView=true | E126: CPS | F126: CONTRATACION DIRECTA | G126: Prestación de servicios profesionales y de apoyo a la gestión, o para la ejecución de trabajos artísticos que sólo puedan encomendarse a determinadas personas naturales | H126: PRESTAR SERVICIOS PROFESIONALES DE APOYO EN LA COORDINACIÓN DE LAS CASAS COMUNITARIAS DE LA LOCALIDAD DE LA CANDELARIA DE CONFORMIDAD CON EL ACUERDO LOCAL 006 DE 2013 | I126: INVERSION | J126: Un nuevo contrato social y ambiental para la Bogotá del Siglo XXI | K126: 57 | L126: Gestión Pública Local | M126: Propósito 5. Construir Bogotà - Regiòn con gobierno abierto, transparente y ciudadanìa consciente. | N126: O23011605570000002021 | O126: 1 | P126: 1010246196 | Q126: MARIA TERESA BECERRA | R126: Persona Natural | W126: 19092000 | Y126: 1 | Z126: 4773000 | AA126: 23865000 | AB126: 23865000 | AC126: 2022-01-28 | AD126: 2022-01-28 | AE126: 2022-07-27 | AF126: 120 | AG126: 1 | AH126: 1 MES | AI126: N/A | AJ126: N/A | AK126: N/A | AL126: N/A | AM126: TERMINADO | AN126: 1
A127: FDLC-CPS-114-2024 | B127: 2024 | C127: FDLC-CPS-114-2024 | D127: https://community.secop.gov.co/Public/Tendering/OpportunityDetail/Index?noticeUID=CO1.NTC.5868112&isFromPublicArea=True&isModal=true&asPopupView=true | E127: CPS | F127: CONTRATACION DIRECTA | G127: Prestación de servicios profesionales y de apoyo a la gestión, o para la ejecución de trabajos artísticos que sólo puedan encomendarse a determinadas personas naturales | H127: PRESTAR SERVICIOS DE APOYO AL FONDO DE DESARROLLO LOCAL DE LA CANDELARIA EN LA ADMINISTRACIÓN DE LAS CASAS COMUNITARIAS DE LA LOCALIDAD DE LA CANDELARIA DE CONFORMIDAD CON EL ACUERDO LOCAL 006 DE 2013 | I127: INVERSION | J127: Un nuevo contrato social y ambiental para la Bogotá del Siglo XXI | K127: 57 | L127: Gestión Pública Local | M127: Propósito 5. Construir Bogotà - Regiòn con gobierno abierto, transparente y ciudadanìa consciente. | N127: O23011605570000002021 | O127: 1 | P127: 1022928883 | Q127: KIMBERLY SANTAMARIA ACERO | R127: Persona Natural | W127: 11532000 | Y127: 1 | Z127: 2883000 | AA127: 14415000 | AB127: 14415000 | AC127: 2022-01-28 | AD127: 2022-01-28 | AE127: 2022-07-27 | AF127: 120 | AG127: 1 | AH127: 1 MES | AI127: N/A | AJ127: N/A | AK127: N/A | AL127: N/A | AM127: TERMINADO | AN127: 1
A128: FDLC-CPS-115-2024 | B128: 2024 | C128: FDLC-CPS-115-2024 | D128: https://community.secop.gov.co/Public/Tendering/OpportunityDetail/Index?noticeUID=CO1.NTC.5868128&isFromPublicArea=True&isModal=true&asPopupView=true | E128: CPS | F128: CONTRATACION DIRECTA | G128: Prestación de servicios profesionales y de apoyo a la gestión, o para la ejecución de trabajos artísticos que sólo puedan encomendarse a determinadas personas naturales | H128: PRESTAR SERVICIOS DE APOYO AL FONDO DE DESARROLLO LOCAL DE LA CANDELARIA EN LA ADMINISTRACIÓN DE LAS CASAS COMUNITARIAS DE LA LOCALIDAD DE LA CANDELARIA DE CONFORMIDAD CON EL ACUERDO LOCAL 006 DE 2013 | I128: INVERSION | J128: Un nuevo contrato social y ambiental para la Bogotá del Siglo XXI | K128: 57 | L128: Gestión Pública Local | M128: Propósito 5. Construir Bogotà - Regiòn con gobierno abierto, transparente y ciudadanìa consciente. | N128: O23011605570000002021 | O128: 1 | P128: 1054121677 | Q128: JENNIFER JULIETH TORRALBA MARTINEZ | R128: Persona Natural | W128: 11532000 | Y128: 1 | Z128: 2883000 | AA128: 14415000 | AB128: 14415000 | AC128: 2022-01-28 | AD128: 2022-01-28 | AE128: 2022-07-27 | AF128: 120 | AG128: 1 | AH128: 1 MES | AI128: N/A | AJ128: N/A | AK128: N/A | AL128: N/A | AM128: TERMINADO | AN128: 1
A129: FDLC-CPS-116-2024 | B129: 2024 | C129: FDLC-CPS-116-2024 | D129: https://community.secop.gov.co/Public/Tendering/OpportunityDetail/Index?noticeUID=CO1.NTC.5936843&isFromPublicArea=True&isModal=False | E129: CPS | F129: CONTRATACION DIRECTA | G129: Prestación de servicios profesionales y de apoyo a la gestión, o para la ejecución de trabajos artísticos que sólo puedan encomendarse a determinadas personas naturales | H129: PRESTAR SUS SERVICIOS PROFESIONALES DE APOYO Y ACOMPAÑAMIENTO RELACIONADOS CON LOS PROYECTOS DE OBRA PÚBLICA E INFRAESTRUCTURA PARA LOGRAR EL CUMPLIMIENTO DE LAS METAS DEL PLAN DE DESARROLLO LOCAL 2021-2024 | I129: INVERSION | J129: Un nuevo contrato social y ambiental para la Bogotá del Siglo XXI | K129: 49 | L129: Movilidad segura, sostenible y accesible | M129: Propòsito 4. Hacer de Bogotà - Region un modelo de movilidad multimodal, incluyente y sostenible | N129: O23011604490000002020 | O129: 1 | P129: 52808825 | Q129: JUAN PABLO SANABRIA VEGA | R129: Persona Natural | W129: 29792000 | Y129: 0 | Z129: 0 | AA129: 29792000 | AB129: 29792000 | AC129: 2022-01-28 | AD129: 2022-01-28 | AE129: 2022-07-16 | AF129: 120 | AG129: 1 | AH129: NO APLICA | AI129: N/A | AJ129: N/A | AK129: N/A | AL129: N/A | AM129: TERMINADO | AN129: 1
A130: FDLC-CPS-117-2024 | B130: 2024 | C130: FDLC-CPS-117-2024 | D130: https://community.secop.gov.co/Public/Tendering/OpportunityDetail/Index?noticeUID=CO1.NTC.5881015&isFromPublicArea=True&isModal=true&asPopupView=true | E130: CPS | F130: CONTRATACION DIRECTA | G130: Subasta inversa | H130: PRESTAR SERVICIOS PROFESIONALES AL FONDO DE DESARROLLO LOCAL PARA APOYAR LA FORMULACIÓN EJECUCIÓN SEGUIMIENTO Y MEJORA CONTINUA DE LAS HERRAMIENTAS QUE CONFORMAN LA GESTIÓN AMBIENTAL INSTITUCIONAL DE LA ALCALDIA LOCAL. | I130: INVERSION | J130: Un nuevo contrato social y ambiental para la Bogotá del Siglo XXI | K130: 57 | L130: Gestión Pública Local | M130: Propósito 5. Construir Bogotà - Regiòn con gobierno abierto, transparente y ciudadanìa consciente. | N130: O23011605570000002021 | O130: 1 | P130: 79976027 | Q130: DIANA CAROLINA MARTINEZ NOVOA | R130: Persona Natural | W130: 20000000 | Y130: 2 | Z130: 10000000 | AA130: 30000000 | AB130: 30000000 | AC130: 2022-01-28 | AD130: 2022-01-28 | AE130: 2022-07-27 | AF130: 120 | AG130: 2 | AH130: 2 MESES | AI130: N/A | AJ130: N/A | AK130: N/A | AL130: N/A | AM130: TERMINADO | AN130: 1
A131: FDLC-CPS-118-2024 | B131: 2024 | C131: FDLC-CPS-118-2024 | D131: https://community.secop.gov.co/Public/Tendering/OpportunityDetail/Index?noticeUID=CO1.NTC.5878584&isFromPublicArea=True&isModal=true&asPopupView=true | E131: CPS | F131: CONTRATACION DIRECTA | G131: Decreto 92 de 2017 | H131: PRESTAR SERVICIOS PARA APOYAR EL FUNCIONAMIENTO Y LAS ACTIVIDADES DESARROLLADAS EN LA CASA- SEDE DE LA ALCALDÍA LOCAL DE LA CANDELARI | I131: INVERSION | J131: Un nuevo contrato social y ambiental para la Bogotá del Siglo XXI | K131: 57 | L131: Gestión Pública Local | M131: Propósito 5. Construir Bogotà - Regiòn con gobierno abierto, transparente y ciudadanìa consciente. | N131: O23011605570000002021 | O131: 1 | P131: 830103828 | Q131: MARGARITA POLO GUTIERREZ | R131: Persona Jurídica | W131: 11200000 | Y131: 1 | Z131: 5600000 | AA131: 16800000 | AB131: 14466667 | AC131: 2022-02-25 | AD131: 2022-03-15 | AE131: 2023-01-21 | AF131: 120 | AG131: 1 | AH131: 2 MESES | AI131: N/A | AJ131: N/A | AK131: N/A | AL131: N/A | AM131: TERMINADO | AN131: 0.861111131
A132: FDLC-CPS-119-2024 | B132: 2024 | C132: FDLC-CPS-119-2024 | D132: https://community.secop.gov.co/Public/Tendering/OpportunityDetail/Index?noticeUID=CO1.NTC.5876809&isFromPublicArea=True&isModal=False | E132: CPS | F132: CONTRATACION DIRECTA | G132: Decreto 92 de 2017 | H132: PRESTAR SERVICIOS DE APOYO A LA GESTIÓN AL FONDO DE DESARROLLO LOCAL DE LA CANDELARIA EN EL DESARROLLO DE ACTIVIDADES QUE AYUDEN EN LA PREVENCIÓN MITIGACIÓN Y MONITOREO DE PROBLEMAS AMBIENTALES Y EL FORTALECIMIENTO DE PRÁCTICAS DE LA AGRICULTURA URBANA. | I132: INVERSION | J132: Un nuevo contrato social y ambiental para la Bogotá del Siglo XXI | K132: 24 | L132: Bogotá región emprendedora e innovadora | M132: Propósito 1. Hacer un nuevo contrato social con igualdad de oportunidades para la inclusiòn social, productiva y polìtica | N132: O23011601240000001626 | O132: 1 | P132: 800185549 | Q132: JOHANA KATERINE AHUMADA ROZO | R132: Persona Jurídica | W132: 7520000 | Y132: 0 | Z132: 0 | AA132: 7520000 | AB132: 7520000 | AC132: 2022-02-25 | AD132: 2022-03-15 | AE132: 2022-11-09 | AF132: 120 | AG132: 2 | AH132: NO APLICA | AI132: N/A | AJ132: N/A | AK132: N/A | AL132: N/A | AM132: TERMINADO | AN132: 1
A133: FDLC-CPS-120-2024 | B133: 2024 | C133: FDLC-CPS-120-2024 | D133: https://community.secop.gov.co/Public/Tendering/OpportunityDetail/Index?noticeUID=CO1.NTC.5875643&isFromPublicArea=True&isModal=true&asPopupView=true | E133: CPS | F133: CONTRATACION DIRECTA | G133: Acuerdo marco de precios | H133: PRESTAR SERVICIOS ASISTENCIALES AL ÁREA DE GESTIÓN DE DESARROLLO LOCAL EN LOS PROCESOS Y ACTIVIDADES DE GESTIÓN ADMINISTRATIVA DE LOS PROYECTOS CULTURALES ARTÍSTICOS Y PATRIMONIALES DE LA ENTIDAD Y DEMÁS ASIGNADOS POR EL ÁREA DE GESTIÓN DEL DESARROLLO LOCAL | I133: INVERSION | J133: Un nuevo contrato social y ambiental para la Bogotá del Siglo XXI | K133: 21 | L133: Creación y vida cotidiana: Apropiación ciudadana del arte, la cultura y el patrimonio, para la democracia cultural | M133: Propósito 1. Hacer un nuevo contrato social con igualdad de oportunidades para la inclusiòn social, productiva y polìtica | N133: O23011601210000001625 | O133: 1 | P133: 901351386 | Q133: LADY TATIANA SEPÚLVEDA AGUILAR | R133: Unión Temporal | W133: 11000000 | Y133: 0 | Z133: 0 | AA133: 11000000 | AB133: 11000000 | AC133: 2022-03-30 | AD133: 2022-03-31 | AE133: 2022-10-30 | AF133: 120 | AG133: 2 | AH133: NO APLICA | AI133: N/A | AJ133: N/A | AK133: N/A | AL133: N/A | AM133: TERMINADO | AN133: 1
A134: FDLC-CPS-121-2024 | B134: 2024 | C134: FDLC-CPS-121-2024 | D134: https://community.secop.gov.co/Public/Tendering/OpportunityDetail/Index?noticeUID=CO1.NTC.5881716&isFromPublicArea=True&isModal=False | E134: CPS | F134: CONTRATACION DIRECTA | G134: Acuerdo marco de precios | H134: PRESTAR SERVICIOS DE APOYO EN LAS ACTIVIDADES DE SEGURIDAD Y CONVIVENCIA CIUDADANA DE ACUERDO A LAS NECESIDADES Y ESTRATEGIAS DE LA ALCALDIA LOCAL DE LA CANDELARIA | I134: INVERSION | J134: Un nuevo contrato social y ambiental para la Bogotá del Siglo XXI | K134: 57 | L134: Gestión Pública Local | M134: Propósito 5. Construir Bogotà - Regiòn con gobierno abierto, transparente y ciudadanìa consciente. | N134: O23011605570000002021 | O134: 1 | P134: 900353659 | Q134: JOSE ALEXANDER PARRA HERNÁNDEZ | R134: Persona Jurídica | W134: 7520000 | Y134: 1 | Z134: 1880000 | AA134: 9400000 | AB134: 9400000 | AC134: 2022-03-30 | AD134: 2022-03-31 | AE134: 2022-04-30 | AF134: 120 | AG134: 1 | AH134: 1 MES | AI134: N/A | AJ134: N/A | AK134: N/A | AL134: N/A | AM134: TERMINADO | AN134: 1
A135: FDLC-CPS-122-2024 | B135: 2024 | C135: FDLC-CPS-122-2024 | D135: https://community.secop.gov.co/Public/Tendering/OpportunityDetail/Index?noticeUID=CO1.NTC.5880357&isFromPublicArea=True&isModal=False | E135: CPS | F135: CONTRATACION DIRECTA | G135: No aplica | H135: PRESTAR SUS SERVICIOS PROFESIONALES DE APOYO Y ACOMPAÑAMIENTO RELACIONADOS CON LOS PROYECTOS DE OBRA PÚBLICA E INFRAESTRUCTURA PARA LOGRAR EL CUMPLIMIENTO DE LAS METAS DEL PLAN DE DESARROLLO LOCAL 2021-2024 | I135: INVERSION | J135: Un nuevo contrato social y ambiental para la Bogotá del Siglo XXI | K135: 49 | L135: Movilidad segura, sostenible y accesible | M135: Propòsito 4. Hacer de Bogotà - Region un modelo de movilidad multimodal, incluyente y sostenible | N135: O23011604490000002020 | O135: 4 | P135: 800018165 | Q135: OSCAR JAVIER OVALLE RIVERA | R135: Persona Jurídica | W135: 29792000 | Y135: 1 | Z135: 7448000 | AA135: 37240000 | AB135: 37240000 | AC135: 2022-04-04 | AD135: 2022-04-07 | AE135: 2022-12-06 | AF135: 120 | AG135: 1 | AH135: 1 MES | AI135: N/A | AJ135: N/A | AK135: N/A | AL135: N/A | AM135: TERMINADO | AN135: 1
A136: FDLC-CPS-123-2024 | B136: 2024 | C136: FDLC-CPS-123-2024 | D136: https://community.secop.gov.co/Public/Tendering/OpportunityDetail/Index?noticeUID=CO1.NTC.5882519&isFromPublicArea=True&isModal=true&asPopupView=true | E136: CPS | F136: CONTRATACION DIRECTA | G136: Selección abreviada por menor cuantía | H136: PRESTAR SERVICIOS DE APOYO EN LAS ACTIVIDADES DE SEGURIDAD Y CONVIVENCIA CIUDADANA DE ACUERDO A LAS NECESIDADES Y ESTRATEGIAS DE LA ALCALDIA LOCAL DE LA CANDELARIA | I136: INVERSION | J136: Un nuevo contrato social y ambiental para la Bogotá del Siglo XXI | K136: 57 | L136: Gestión Pública Local | M136: Propósito 5. Construir Bogotà - Regiòn con gobierno abierto, transparente y ciudadanìa consciente. | N136: O23011605570000002021 | O136: 5 | P136: 900359095 | Q136: JUAN ALEXANDER ZAPATA PAEZ | R136: Sin ánimo de lucro | W136: 7520000 | Y136: 0 | Z136: 0 | AA136: 7520000 | AB136: 7520000 | AC136: 2022-06-08 | AD136: 2022-06-10 | AE136: 2022-12-09 | AF136: 120 | AH136: NO APLICA | AI136: N/A | AJ136: N/A | AK136: N/A | AL136: N/A | AM136: TERMINADO | AN136: 1
A137: FDLC-CPS-124-2024 | B137: 2024 | C137: FDLC-CPS-124-2024 | D137: https://community.secop.gov.co/Public/Tendering/OpportunityDetail/Index?noticeUID=CO1.NTC.5881755&isFromPublicArea=True&isModal=true&asPopupView=true | E137: CPS | F137: CONTRATACION DIRECTA | G137: Acuerdo marco de precios | H137: PRESTAR SERVICIOS ASISTENCIALES AL ÁREA DE GESTIÓN DE DESARROLLO LOCAL EN LOS PROCESOS RELACIONADOS CON LAS ACTIVIDADES DE GESTION ADMINISTRATIVA DE LA ALCALDÍA LOCAL DE LA CANDELARIA | I137: INVERSION | J137: Un nuevo contrato social y ambiental para la Bogotá del Siglo XXI | K137: 57 | L137: Gestión Pública Local | M137: Propósito 5. Construir Bogotà - Regiòn con gobierno abierto, transparente y ciudadanìa consciente. | N137: O23011605570000002021 | O137: 1 | P137: 830073623 | Q137: JORGE ENRIQUE CARDONA RODRIGUEZ | R137: Persona Jurídica | W137: 11532000 | Y137: 0 | Z137: 0 | AA137: 11532000 | AB137: 11532000 | AC137: 2022-06-17 | AD137: 2022-06-17 | AE137: 2022-08-16 | AF137: 120 | AH137: NO APLICA | AI137: 78762424 | AJ137: JOSE LUIS ALMANZA RUIZ - CESION DE | AM137: TERMINADO | AN137: 1
A138: FDLC-CPS-125-2024 | B138: 2024 | C138: FDLC-CPS-125-2024 | D138: https://community.secop.gov.co/Public/Tendering/OpportunityDetail/Index?noticeUID=CO1.NTC.5920712&isFromPublicArea=True&isModal=False | E138: CPS | F138: CONTRATACION DIRECTA | G138: Selección abreviada por menor cuantía | H138: PRESTAR SERVICIOS DE APOYO A LA GESTIÓN AL FONDO DE DESARROLLO LOCAL DE LA CANDELARIA EN EL DESARROLLO DE ACTIVIDADES QUE AYUDEN EN LA PREVENCIÓN MITIGACIÓN Y MONITOREO DE PROBLEMAS AMBIENTALES Y EL FORTALECIMIENTO DE PRÁCTICAS DE LA AGRICULTURA URBANA. | I138: INVERSION | J138: Un nuevo contrato social y ambiental para la Bogotá del Siglo XXI | K138: 24 | L138: Bogotá región emprendedora e innovadora | M138: Propósito 1. Hacer un nuevo contrato social con igualdad de oportunidades para la inclusiòn social, productiva y polìtica | N138: O23011601240000001626 | O138: 7 | P138: 811022703 | Q138: ANGEL RODRIGO PEREZ LEMUS | R138: Persona Jurídica | W138: 7520000 | Y138: 1 | Z138: 1880000 | AA138: 9400000 | AB138: 8961333 | AC138: 2022-06-15 | AD138: 2022-06-23 | AE138: 2022-11-22 | AF138: 120 | AG138: 1 | AH138: 1 MES | AI138: N/A | AJ138: N/A | AK138: N/A | AL138: N/A | AM138: TERMINADO | AN138: 0.9533332979
A139: FDLC-CPS-126-2024 | B139: 2024 | C139: FDLC-CPS-126-2024 | D139: https://community.secop.gov.co/Public/Tendering/OpportunityDetail/Index?noticeUID=CO1.NTC.5882295&isFromPublicArea=True&isModal=true&asPopupView=true | E139: CPS | F139: CONTRATACION DIRECTA | G139: No aplica | H139: PRESTAR SERVICIOS PROFESIONALES PARA APOYAR JURÍDICAMENTE LA EJECUCIÓN DE LAS ACCIONES REQUERIDAS PARA LA DEPURACIÓN DE LAS ACTUACIONES ADMINISTRATIVAS QUE CURSAN EN LA ALCALDÍA LOCAL DE LA CANDELARIA | I139: INVERSION | J139: Un nuevo contrato social y ambiental para la Bogotá del Siglo XXI | K139: 57 | L139: Gestión Pública Local | M139: Propósito 5. Construir Bogotà - Regiòn con gobierno abierto, transparente y ciudadanìa consciente. | N139: O23011605570000002023 | O139: 3 | P139: 800081700 | Q139: CESAR AUGUSTO RODRIGUEZ PINILLA | R139: Persona Jurídica | W139: 21836000 | Y139: 1 | Z139: 10918000 | AA139: =+W139+X139+Z139 -> 32754000 | AB139: 32754000 | AC139: 2022-06-23 | AD139: 2022-06-23 | AE139: 2022-11-22 | AF139: 120 | AG139: 1 | AH139: 2 MESES | AI139: N/A | AJ139: N/A | AK139: N/A | AL139: N/A | AM139: TERMINADO | AN139: 1
A140: FDLC-CPS-127-2024 | B140: 2024 | C140: FDLC-CPS-127-2024 | D140: https://community.secop.gov.co/Public/Tendering/OpportunityDetail/Index?noticeUID=CO1.NTC.5884107&isFromPublicArea=True&isModal=true&asPopupView=true | E140: CPS | F140: CONTRATACION DIRECTA | G140: Subasta inversa | H140: PRESTACION DE SERVICIOS PROFESIONALES DE APOYO EN LA ADMINISTRACION DEL PUNTO VIVE DIGITAL DE LA LOCALIDAD LA CANDELARIA PARA FOMENTAR EN LA COMUNIDAD EL USO DE LAS TICS COMO ESTRATEGIA DE APOYO A LOS EMPRENDIMIENTOS CULTURALES Y CREATIVOS LOCALES | I140: INVERSION | J140: Un nuevo contrato social y ambiental para la Bogotá del Siglo XXI | K140: 57 | L140: Gestión Pública Local | M140: Propósito 5. Construir Bogotà - Regiòn con gobierno abierto, transparente y ciudadanìa consciente. | N140: O23011605570000002021 | O140: 6 | P140: 901142692 | Q140: JESUS ESGUERRA DELGADO | R140: Persona Jurídica | W140: 20000000 | Y140: 0 | Z140: 0 | AA140: =+W140+X140+Z140 -> 20000000 | AB140: 20000000 | AC140: 2022-07-06 | AD140: 2022-07-06 | AE140: 2022-09-05 | AF140: 120 | AH140: NO APLICA | AI140: N/A | AJ140: N/A | AK140: N/A | AL140: N/A | AM140: TERMINADO | AN140: 1
A141: FDLC-CPS-128-2024 | B141: 2024 | C141: FDLC-CPS-128-2024 | D141: https://community.secop.gov.co/Public/Tendering/OpportunityDetail/Index?noticeUID=CO1.NTC.5887334&isFromPublicArea=True&isModal=true&asPopupView=true | E141: CPS | F141: CONTRATACION DIRECTA | G141: Subasta inversa | H141: PRESTACION DE SERVICIOS PROFESIONALES DE APOYO EN LA ADMINISTRACION DEL PUNTO VIVE DIGITAL DE LA LOCALIDAD LA CANDELARIA PARA FOMENTAR EN LA COMUNIDAD EL USO DE LAS TICS COMO ESTRATEGIA DE APOYO A LOS EMPRENDIMIENTOS CULTURALES Y CREATIVOS LOCALES | I141: INVERSION | J141: Un nuevo contrato social y ambiental para la Bogotá del Siglo XXI | K141: 57 | L141: Gestión Pública Local | M141: Propósito 5. Construir Bogotà - Regiòn con gobierno abierto, transparente y ciudadanìa consciente. | N141: O23011605570000002021 | O141: 6 | P141: 900007203 | Q141: FROILAN GONZALEZ ROA | R141: Persona Jurídica | W141: 20000000 | Y141: 0 | Z141: 0 | AA141: 20000000 | AB141: 20000000 | AC141: 2022-07-06 | AD141: 2022-07-06 | AE141: 2022-09-05 | AF141: 120 | AH141: NO APLICA | AI141: N/A | AJ141: N/A | AK141: N/A | AL141: N/A | AM141: TERMINADO | AN141: 1
A142: FDLC-CPS-129-2024 | B142: 2024 | C142: FDLC-CPS-129-2024 | D142: https://community.secop.gov.co/Public/Tendering/OpportunityDetail/Index?noticeUID=CO1.NTC.5884577&isFromPublicArea=True&isModal=true&asPopupView=true | E142: CPS | F142: CONTRATACION DIRECTA | G142: Subasta inversa | H142: PRESTAR SERVICIOS PROFESIONALES AL FONDO DE DESARROLLO LOCAL DE LA CANDELARIA PARA APOYAR LA GESTION DE LOS ASUNTOS RELACIONADOS CON LA DESTINACIÓN DEL ESPACIO PÚBLICO SEGURIDAD CIUDADANA Y CONVIVENCIA EN LA LOCALIDAD. | I142: INVERSION | J142: Un nuevo contrato social y ambiental para la Bogotá del Siglo XXI | K142: 57 | L142: Gestión Pública Local | M142: Propósito 5. Construir Bogotà - Regiòn con gobierno abierto, transparente y ciudadanìa consciente. | N142: O23011605570000002023 | O142: 6 | P142: 900954187 | Q142: JOSE MARIA CONDE AREVALO | R142: Persona Jurídica | W142: 21836000 | Y142: 0 | Z142: 0 | AA142: 21836000 | AB142: 21836000 | AC142: 2022-07-06 | AD142: 2022-07-06 | AE142: 2022-09-05 | AF142: 120 | AH142: NO APLICA | AI142: N/A | AJ142: N/A | AK142: N/A | AL142: N/A | AM142: TERMINADO | AN142: 1
A143: FDLC-CPS-130-2024 | B143: 2024 | C143: FDLC-CPS-130-2024 | D143: https://community.secop.gov.co/Public/Tendering/OpportunityDetail/Index?noticeUID=CO1.NTC.5884283&isFromPublicArea=True&isModal=true&asPopupView=true | E143: CPS | F143: CONTRATACION DIRECTA | G143: Subasta inversa | H143: PRESTAR SERVICIOS PROFESIONALES AL FONDO DE DESARROLLO LOCAL DE LA CANDELARIA PARA APOYAR EN LA ESTRUCTURACIÓN FORMULACION PRESENTACIÓN EVALUACIÓN Y SEGUIMIENTO DE LOS PROYECTOS DE INVERSION EN LA LOCALIDAD | I143: INVERSION | J143: Un nuevo contrato social y ambiental para la Bogotá del Siglo XXI | K143: 57 | L143: Gestión Pública Local | M143: Propósito 5. Construir Bogotà - Regiòn con gobierno abierto, transparente y ciudadanìa consciente. | N143: O23011605570000002021 | O143: 6 | P143: 901142692 | Q143: CRISTHIAN CAMILO GÓMEZ LÓPEZ | R143: Persona Jurídica | W143: 15000000 | Y143: 1 | Z143: 7500000 | AA143: 22500000 | AB143: 22500000 | AC143: 2022-07-06 | AD143: 2022-07-06 | AE143: 2022-09-05 | AF143: 90 | AG143: 1 | AH143: 1 MES 15 DIAS | AI143: N/A | AJ143: N/A | AK143: N/A | AL143: N/A | AM143: TERMINADO | AN143: 1
A144: FDLC-CPS-131-2024 | B144: 2024 | C144: FDLC-CPS-131-2024 | D144: https://community.secop.gov.co/Public/Tendering/OpportunityDetail/Index?noticeUID=CO1.NTC.5886198&isFromPublicArea=True&isModal=true&asPopupView=true | E144: CPS | F144: CONTRATACION DIRECTA | G144: Subasta inversa | H144: PRESTACIÓN DE SERVICIOS PROFESIONALES AL FONDO DE DESARROLLO LOCAL DE LA CANDELARIA PARA ATENDER LAS PETICIONES QUEJAS RECLAMOS YO SOLICITUDES PRESENTADAS POR LA CIUDADANÍA DE CONFORMIDAD CON LOS TÉRMINOS LEGALES ESTABLECIDOS Y APOYAR LAS RESPUESTAS REQUERIDAS POR LOS ENTES DE CONTROL | I144: INVERSION | J144: Un nuevo contrato social y ambiental para la Bogotá del Siglo XXI | K144: 57 | L144: Gestión Pública Local | M144: Propósito 5. Construir Bogotà - Regiòn con gobierno abierto, transparente y ciudadanìa consciente. | N144: O23011605570000002021 | O144: 6 | P144: 900007203 | Q144: ANDRÉS MAURICIO VALENCIA JIMENEZ | R144: Persona Jurídica | W144: 20000000 | Y144: 0 | Z144: 0 | AA144: 20000000 | AC144: 2022-07-06 | AD144: 2022-07-06 | AE144: 2022-09-05 | AF144: 120 | AH144: NO APLICA | AI144: N/A | AJ144: N/A | AK144: N/A | AL144: N/A | AM144: TERMINADO | AN144: 0
A145: FDLC-CPS-132-2024 | B145: 2024 | C145: FDLC-CPS-132-2024 | D145: https://community.secop.gov.co/Public/Tendering/OpportunityDetail/Index?noticeUID=CO1.NTC.5886504&isFromPublicArea=True&isModal=true&asPopupView=true | E145: CPS | F145: CONTRATACION DIRECTA | G145: Subasta inversa | H145: PRESTAR SERVICIOS PROFESIONALES PARA APOYAR JURÍDICAMENTE LA EJECUCIÓN DE LAS ACCIONES REQUERIDAS PARA LA DEPURACIÓN DE LAS ACTUACIONES ADMINISTRATIVAS QUE CURSAN EN LA ALCALDÍA LOCAL DE LA CANDELARIA | I145: INVERSION | J145: Un nuevo contrato social y ambiental para la Bogotá del Siglo XXI | K145: 57 | L145: Gestión Pública Local | M145: Propósito 5. Construir Bogotà - Regiòn con gobierno abierto, transparente y ciudadanìa consciente. | N145: O23011605570000002023 | O145: 1 | P145: 80879007 | Q145: INGRID PATRICIA RIVEROS FUNEME | R145: Persona Natural | W145: 21836000 | Y145: 0 | Z145: 0 | AA145: 21836000 | AB145: 21836000 | AC145: 2022-07-01 | AD145: 2022-07-06 | AE145: 2023-01-04 | AF145: 120 | AG145: 2 | AH145: NO APLICA | AI145: N/A | AJ145: N/A | AK145: N/A | AL145: N/A | AM145: TERMINADO | AN145: =IF(ISERROR(AB145/AA145),"-",(AB145/AA145)) -> 1
A146: FDLC-CPS-133-2024 | B146: 2024 | C146: FDLC-CPS-133-2024 | D146: https://community.secop.gov.co/Public/Tendering/OpportunityDetail/Index?noticeUID=CO1.NTC.5883716&isFromPublicArea=True&isModal=true&asPopupView=true | E146: CPS | F146: CONTRATACION DIRECTA | G146: Selección abreviada por menor cuantía | H146: PRESTAR SUS SERVICIOS PROFESIONALES DE APOYO Y ACOMPAÑAMIENTO RELACIONADOS CON LOS PROYECTOS DE OBRA PÚBLICA E INFRAESTRUCTURA PARA LOGRAR EL CUMPLIMIENTO DE LAS METAS DEL PLAN DE DESARROLLO LOCAL 2021-2024 | I146: INVERSION | J146: Un nuevo contrato social y ambiental para la Bogotá del Siglo XXI | K146: 49 | L146: Movilidad segura, sostenible y accesible | M146: Propòsito 4. Hacer de Bogotà - Region un modelo de movilidad multimodal, incluyente y sostenible | N146: O23011604490000002020 | O146: 6 | P146: 900572437 | Q146: LAURA DANIELA JACOME HERNANDEZ | R146: Sin ánimo de lucro | W146: 29792000 | Y146: 1 | Z146: 14896000 | AA146: 44688000 | AB146: 44688000 | AC146: 2022-07-06 | AD146: 2022-07-08 | AE146: 2023-01-05 | AF146: 120 | AG146: 1 | AH146: 2 MESES | AI146: N/A | AJ146: N/A | AK146: N/A | AL146: N/A | AM146: TERMINADO | AN146: 1
A147: FDLC-CPS-134-2024 | B147: 2024 | C147: FDLC-CPS-134-2024 | D147: https://community.secop.gov.co/Public/Tendering/OpportunityDetail/Index?noticeUID=CO1.NTC.5883476&isFromPublicArea=True&isModal=true&asPopupView=true | E147: CPS | F147: CONTRATACION DIRECTA | G147: No aplica | H147: PRESTAR SUS SERVICIOS PROFESIONALES DE APOYO Y ACOMPAÑAMIENTO RELACIONADOS CON LOS PROYECTOS DE OBRA PÚBLICA E INFRAESTRUCTURA PARA LOGRAR EL CUMPLIMIENTO DE LAS METAS DEL PLAN DE DESARROLLO LOCAL 2021-2024 | I147: INVERSION | J147: Un nuevo contrato social y ambiental para la Bogotá del Siglo XXI | K147: 49 | L147: Movilidad segura, sostenible y accesible | M147: Propòsito 4. Hacer de Bogotà - Region un modelo de movilidad multimodal, incluyente y sostenible | N147: O23011604490000002020 | O147: 5 | P147: 800250589 | Q147: JHON EDWIN MORALES HERRERA | R147: Persona Jurídica | W147: 29792000 | Y147: 2 | Z147: 14896000 | AA147: 44688000 | AB147: 44688000 | AC147: 2022-07-06 | AD147: 2022-07-06 | AE147: 2022-12-31 | AF147: 120 | AG147: 2 | AH147: 2 MESES | AI147: N/A | AJ147: N/A | AK147: N/A | AL147: N/A | AM147: TERMINADO | AN147: 1
A148: FDLC-CPS-135-2024 | B148: 2024 | C148: FDLC-CPS-135-2024 | D148: https://community.secop.gov.co/Public/Tendering/OpportunityDetail/Index?noticeUID=CO1.NTC.5891609&isFromPublicArea=True&isModal=true&asPopupView=true | E148: CPS | F148: CONTRATACION DIRECTA | G148: Selección abreviada por menor cuantía | H148: PRESTAR SERVICIOS DE APOYO EN LAS ACTIVIDADES DE SEGURIDAD Y CONVIVENCIA CIUDADANA DE ACUERDO A LAS NECESIDADES Y ESTRATEGIAS DE LA ALCALDIA LOCAL DE LA CANDELARIA | I148: INVERSION | J148: Un nuevo contrato social y ambiental para la Bogotá del Siglo XXI | K148: 57 | L148: Gestión Pública Local | M148: Propósito 5. Construir Bogotà - Regiòn con gobierno abierto, transparente y ciudadanìa consciente. | N148: O23011605570000002021 | O148: 2 | P148: 860002184 | Q148: JAVIER ENRIQUE GUZMAN CAMARGO | R148: Persona Jurídica | W148: 7520000 | Y148: 0 | Z148: 0 | AA148: 7520000 | AB148: 7520000 | AC148: 2022-07-08 | AD148: 2022-07-08 | AE148: 2023-09-16 | AF148: 120 | AH148: NO APLICA | AI148: N/A | AJ148: N/A | AK148: N/A | AL148: N/A | AM148: TERMINADO | AN148: 1
A149: FDLC-CPS-136-2024 | B149: 2024 | C149: FDLC-CPS-136-2024 | D149: https://community.secop.gov.co/Public/Tendering/OpportunityDetail/Index?noticeUID=CO1.NTC.5891287&isFromPublicArea=True&isModal=true&asPopupView=true | E149: CPS | F149: CONTRATACION DIRECTA | G149: Prestación de servicios profesionales y de apoyo a la gestión, o para la ejecución de trabajos artísticos que sólo puedan encomendarse a determinadas personas naturales | H149: PRESTAR SERVICIOS PROFESIONALES AL ÁREA DE GESTIÓN DE DESARROLLO LOCAL EN LOS PROCESOS Y ACTIVIDADES DE GESTIÓN ADMINISTRATIVA Y OPERATIVA DE LOS PROYECTOS DE RECREACIÓN Y DEPORTES DE LA ENTIDAD Y DEMÁS ASIGNADOS POR EL ÁREA DE GESTIÓN DEL DESARROLLO LOCAL | I149: INVERSION | J149: Un nuevo contrato social y ambiental para la Bogotá del Siglo XXI | K149: 20 | L149: Bogotá, referente en cultura, deporte, recreación y actividad física, con parques para el desarrollo y la salud | M149: Propósito 1. Hacer un nuevo contrato social con igualdad de oportunidades para la inclusiòn social, productiva y polìtica | N149: O23011601200000001611 | O149: 1 | P149: 1090424977 | Q149: OSCAR EDUARDO SAMBONI MINA | R149: Persona Natural | W149: 19092000 | Z149: 0 | AA149: =+W149+X149+Z149 -> 19092000 | AB149: 19087000 | AC149: 2022-07-07 | AD149: 2022-07-07 | AE149: 2022-11-06 | AF149: 120 | AH149: NO APLICA | AI149: N/A | AJ149: N/A | AK149: N/A | AL149: N/A | AM149: TERMINADO | AN149: 0.9997381102
A150: FDLC-CPS-137-2024 | B150: 2024 | C150: FDLC-CPS-137-2024 | D150: https://community.secop.gov.co/Public/Tendering/OpportunityDetail/Index?noticeUID=CO1.NTC.5891976&isFromPublicArea=True&isModal=true&asPopupView=true | E150: CPS | F150: CONTRATACION DIRECTA | G150: Prestación de servicios profesionales y de apoyo a la gestión, o para la ejecución de trabajos artísticos que sólo puedan encomendarse a determinadas personas naturales | H150: PRESTAR SERVICIOS PROFESIONALES AL FONDO DE DESARROLLO LOCAL DE LA CANDELARIA PARA APOYAR EN LA FORMULACIÓN IMPLEMENTACIÓN EJECUCIÓN Y SEGUIMIENTO DE PLANES POLITICAS PROGRAMAS Y PROYECTOS DE INVERSIÓN RELACIONADOS CON EL DESARROLLO ECONÓMICO DE LAS EMPRESAS Y EMPRENDIMIENTOS DE LA LOCALIDAD | I150: INVERSION | J150: Un nuevo contrato social y ambiental para la Bogotá del Siglo XXI | K150: 57 | L150: Gestión Pública Local | M150: Propósito 5. Construir Bogotà - Regiòn con gobierno abierto, transparente y ciudadanìa consciente. | N150: O23011605570000002021 | O150: 1 | P150: 52709886 | Q150: ROMULO SIMON ESTRELLA PANTOJA | R150: Persona Natural | W150: 26000000 | Y150: 1 | Z150: 13000000 | AA150: 39000000 | AB150: 39000000 | AC150: 2022-07-12 | AD150: 2022-07-12 | AE150: 2022-11-11 | AF150: 120 | AG150: 1 | AH150: 2 MESES | AI150: N/A | AJ150: N/A | AK150: N/A | AL150: N/A | AM150: TERMINADO | AN150: 1
A151: FDLC-CPS-138-2024 | B151: 2024 | C151: FDLC-CPS-138-2024 | D151: https://community.secop.gov.co/Public/Tendering/OpportunityDetail/Index?noticeUID=CO1.NTC.5900512&isFromPublicArea=True&isModal=true&asPopupView=true | E151: CPS | F151: CONTRATACION DIRECTA | G151: Prestación de servicios profesionales y de apoyo a la gestión, o para la ejecución de trabajos artísticos que sólo puedan encomendarse a determinadas personas naturales | H151: PRESTAR SERVICIOS PROFESIONALES EN MATERIA JURIDICA Y EN ARTICULACIÓN INTERINSTITUCIONAL A LA ALCALDIA LOCAL DE LA CANDELARIA | I151: INVERSION | J151: Un nuevo contrato social y ambiental para la Bogotá del Siglo XXI | K151: 57 | L151: Gestión Pública Local | M151: Propósito 5. Construir Bogotà - Regiòn con gobierno abierto, transparente y ciudadanìa consciente. | N151: O23011605570000002021 | O151: 1 | P151: 1015395116 | Q151: LILIANA BASTIDAS LINARES | R151: Persona Natural | W151: 26000000 | Y151: 0 | Z151: 0 | AA151: 26000000 | AB151: 26000000 | AC151: 2022-07-13 | AD151: 2022-07-14 | AE151: 2023-01-12 | AF151: 120 | AG151: 2 | AH151: NO APLICA | AI151: N/A | AJ151: N/A | AK151: N/A | AL151: N/A | AM151: TERMINADO | AN151: 1
A152: FDLC-CPS-139-2024 | B152: 2024 | C152: FDLC-CPS-139-2024 | D152: https://community.secop.gov.co/Public/Tendering/OpportunityDetail/Index?noticeUID=CO1.NTC.5900632&isFromPublicArea=True&isModal=true&asPopupView=true | E152: CPS | F152: CONTRATACION DIRECTA | G152: Prestación de servicios profesionales y de apoyo a la gestión, o para la ejecución de trabajos artísticos que sólo puedan encomendarse a determinadas personas naturales | H152: PRESTAR SERVICIOS PROFESIONALES EN MATERIA JURIDICA Y EN ARTICULACIÓN INTERINSTITUCIONAL A LA ALCALDIA LOCAL DE LA CANDELARIA | I152: INVERSION | J152: Un nuevo contrato social y ambiental para la Bogotá del Siglo XXI | K152: 57 | L152: Gestión Pública Local | M152: Propósito 5. Construir Bogotà - Regiòn con gobierno abierto, transparente y ciudadanìa consciente. | N152: O23011605570000002021 | O152: 1 | P152: 52514816 | Q152: LISETH VIVIANA GUERRA GONZALEZ | R152: Persona Natural | W152: 26000000 | Y152: 0 | Z152: 0 | AA152: 26000000 | AB152: 26000000 | AC152: 2022-07-13 | AD152: 2022-07-13 | AE152: 2022-11-12 | AF152: 120 | AH152: NO APLICA | AI152: N/A | AJ152: N/A | AK152: N/A | AL152: N/A | AM152: TERMINADO | AN152: 1
A153: FDLC-CPS-140-2024 | B153: 2024 | C153: FDLC-CPS-140-2024 | D153: https://community.secop.gov.co/Public/Tendering/OpportunityDetail/Index?noticeUID=CO1.NTC.5899898&isFromPublicArea=True&isModal=true&asPopupView=true | E153: CPS | F153: CONTRATACION DIRECTA | G153: No aplica | H153: PRESTAR SUS SERVICIOS PROFESIONALES PARA LA IMPLEMENTACIÓN DE LAS ACCIONES Y LINEAMIENTOS TÉCNICOS SURTIDOS DEL PROGRAMA DE GESTIÓN DOCUMENTAL Y DEMÁS INSTRUMENTOS TÉCNICOS ARCHIVÍSTICOS | I153: INVERSION | J153: Un nuevo contrato social y ambiental para la Bogotá del Siglo XXI | K153: 57 | L153: Gestión Pública Local | M153: Propósito 5. Construir Bogotà - Regiòn con gobierno abierto, transparente y ciudadanìa consciente. | N153: O23011605570000002021 | O153: 15 | P153: 830073899 | Q153: NATALIA SORIANO HINCAPIE | R153: Persona Jurídica | W153: 21872000 | Y153: 2 | Z153: 10936000 | AA153: 32808000 | AB153: 32808000 | AC153: 2022-07-14 | AD153: 2022-07-19 | AE153: 2023-03-13 | AF153: 120 | AG153: 2 | AH153: 2 MESES | AI153: N/A | AJ153: N/A | AK153: N/A | AL153: N/A | AM153: TERMINADO | AN153: 1
A154: FDLC-CPS-141-2024 | B154: 2024 | C154: FDLC-CPS-141-2024 | D154: https://community.secop.gov.co/Public/Tendering/OpportunityDetail/Index?noticeUID=CO1.NTC.5900445&isFromPublicArea=True&isModal=true&asPopupView=true | E154: CPS | F154: CONTRATACION DIRECTA | G154: Prestación de servicios profesionales y de apoyo a la gestión, o para la ejecución de trabajos artísticos que sólo puedan encomendarse a determinadas personas naturales | H154: PRESTAR SERVICIOS PROFESIONALES PARA APOYAR JURÍDICAMENTE LA EJECUCIÓN DE LAS ACCIONES REQUERIDAS PARA LA DEPURACIÓN DE LAS ACTUACIONES ADMINISTRATIVAS QUE CURSAN EN LA ALCALDÍA LOCAL DE LA CANDELARIA | I154: INVERSION | J154: Un nuevo contrato social y ambiental para la Bogotá del Siglo XXI | K154: 57 | L154: Gestión Pública Local | M154: Propósito 5. Construir Bogotà - Regiòn con gobierno abierto, transparente y ciudadanìa consciente. | N154: O23011605570000002023 | O154: 1 | P154: 1022370301 | Q154: FABIO HERNÁN DAZA MORENO | R154: Persona Natural | W154: 21836000 | Z154: 0 | AA154: 21836000 | AB154: 21836000 | AC154: 2022-07-14 | AD154: 2022-07-14 | AE154: 2022-11-13 | AF154: 120 | AH154: NO APLICA | AI154: N/A | AJ154: N/A | AK154: N/A | AL154: N/A | AM154: TERMINADO | AN154: 1
A155: FDLC-CPS-142-2024 | B155: 2024 | C155: FDLC-CPS-142-2024 | D155: https://community.secop.gov.co/Public/Tendering/OpportunityDetail/Index?noticeUID=CO1.NTC.5902863&isFromPublicArea=True&isModal=true&asPopupView=true | E155: CPS | F155: CONTRATACION DIRECTA | G155: Prestación de servicios profesionales y de apoyo a la gestión, o para la ejecución de trabajos artísticos que sólo puedan encomendarse a determinadas personas naturales | H155: PRESTAR SERVICIOS PROFESIONALES AL FONDO DE DESARROLLO LOCAL DE LA CANDELARIA PARA APOYAR EN LA ESTRUCTURACIÓN FORMULACION PRESENTACIÓN EVALUACIÓN Y SEGUIMIENTO DE LOS PROYECTOS DE INVERSION EN LA LOCALIDAD | I155: INVERSION | J155: Un nuevo contrato social y ambiental para la Bogotá del Siglo XXI | K155: 57 | L155: Gestión Pública Local | M155: Propósito 5. Construir Bogotà - Regiòn con gobierno abierto, transparente y ciudadanìa consciente. | N155: O23011605570000002021 | O155: 1 | P155: 52260662 | Q155: SANTIAGO ANDRES MURILLO GOMEZ | R155: Persona Natural | W155: 15000000 | Z155: 0 | AA155: 15000000 | AB155: 15000000 | AC155: 2022-07-21 | AD155: 2022-07-21 | AE155: 2022-11-20 | AF155: 120 | AH155: NO APLICA | AI155: N/A | AJ155: N/A | AK155: N/A | AL155: N/A | AM155: TERMINADO | AN155: 1
A156: FDLC-CPS-143-2024 | B156: 2024 | C156: FDLC-CPS-143-2024 | D156: https://community.secop.gov.co/Public/Tendering/OpportunityDetail/Index?noticeUID=CO1.NTC.5903033&isFromPublicArea=True&isModal=true&asPopupView=true | E156: CPS | F156: CONTRATACION DIRECTA | G156: Prestación de servicios profesionales y de apoyo a la gestión, o para la ejecución de trabajos artísticos que sólo puedan encomendarse a determinadas personas naturales | H156: PRESTAR SERVICIOS PROFESIONALES AL FONDO DE DESARROLLO LOCAL DE LA CANDELARIA PARA APOYAR EN LA ESTRUCTURACIÓN FORMULACION PRESENTACIÓN EVALUACIÓN Y SEGUIMIENTO DE LOS PROYECTOS DE INVERSION EN LA LOCALIDAD | I156: INVERSION | J156: Un nuevo contrato social y ambiental para la Bogotá del Siglo XXI | K156: 57 | L156: Gestión Pública Local | M156: Propósito 5. Construir Bogotà - Regiòn con gobierno abierto, transparente y ciudadanìa consciente. | N156: O23011605570000002021 | O156: 1 | P156: 1121847787 | Q156: MIGUEL ANDRES BAUTISTA DAZA | R156: Persona Natural | W156: 15000000 | Y156: 1 | Z156: 5000000 | AA156: 20000000 | AB156: 20000000 | AC156: 2022-07-19 | AD156: 2022-07-19 | AE156: 2022-11-18 | AF156: 90 | AG156: 1 | AH156: 1 MES | AI156: N/A | AJ156: N/A | AK156: N/A | AL156: N/A | AM156: TERMINADO | AN156: 1
A157: FDLC-CPS-144-2024 | B157: 2024 | C157: FDLC-CPS-144-2024 | D157: https://community.secop.gov.co/Public/Tendering/OpportunityDetail/Index?noticeUID=CO1.NTC.5919751&isFromPublicArea=True&isModal=False | E157: CPS | F157: CONTRATACION DIRECTA | G157: Contratos interadministrativos | H157: PRESTAR SERVICIOS DE APOYO ADMINISTRATIVO Y ASISTENCIAL AL ​​FONDO DE DESARROLLO LOCAL DE LA CANDELARIA EN EL CENTRO DE INFORMACIÓN Y DOCUMENTACIÓN (CDI) PARA LA NOTIFICACIÓN DE CORRESPONDENCIA DE LA ENTIDAD. | I157: INVERSION | J157: Un nuevo contrato social y ambiental para la Bogotá del Siglo XXI | K157: 57 | L157: Gestión Pública Local | M157: Propósito 5. Construir Bogotà - Regiòn con gobierno abierto, transparente y ciudadanìa consciente. | N157: O23011605570000002021 | O157: 1 | P157: 860044113 | Q157: DIEGO FERNANDO FORERO SEDANO | R157: Persona Jurídica | W157: 11532000 | Z157: 0 | AA157: 11532000 | AB157: 11532000 | AC157: 2022-07-08 | AD157: 2022-07-18 | AE157: 2023-08-31 | AF157: 120 | AH157: NO APLICA | AI157: N/A | AJ157: N/A | AK157: N/A | AL157: N/A | AM157: TERMINADO | AN157: 1
A158: FDLC-CPS-145-2024 | B158: 2024 | C158: FDLC-CPS-145-2024 | D158: https://community.secop.gov.co/Public/Tendering/OpportunityDetail/Index?noticeUID=CO1.NTC.5903971&isFromPublicArea=True&isModal=true&asPopupView=true | E158: CPS | F158: CONTRATACION DIRECTA | G158: No aplica | H158: PRESTAR SERVICIOS PROFESIONALES AL FONDO DE DESARROLLO LOCAL DE LA CANDELARIA PARA LA OPERACIÓN PRESTACIÓN SEGUIMIENTO Y CUMPLIMIENTO DE LOS PROCEDIMIENTOS ADMINISTRATIVOS OPERATIVOS Y PROGRAMÁTICOS DEL SERVICIO APOYO ECONÓMICO TIPO C QUE CONTRIBUYAN A LA GARANTÍA DE LOS DERECHOS DE LA POBLACIÓN MAYOR EN EL MARCO DE LA POLÍTICA PÚBLICA SOCIAL PARA EL ENVEJECIMIENTO Y LA VEJEZ EN EL DISTRITO CAPITAL A CARGO DE LA ALCALDÍA LOCAL. | I158: INVERSION | J158: Un nuevo contrato social y ambiental para la Bogotá del Siglo XXI | K158: 55 | L158: Fortalecimiento de Cultura Ciudadana y su institucionalidad | M158: Propósito 5. Construir Bogotà - Regiòn con gobierno abierto, transparente y ciudadanìa consciente. | N158: O23011601010000001605 - O23011605550000002019 | O158: 7 | P158: 1070917551 | Q158: AZUCENA SALAZAR GIRALDO | R158: Persona Natural | W158: 26000000 | Y158: 1 | Z158: 13000000 | AA158: 39000000 | AB158: 39000000 | AC158: 2022-08-01 | AD158: 2022-08-02 | AE158: 2022-12-01 | AF158: 120 | AG158: 1 | AH158: 1 MES | AI158: N/A | AJ158: N/A | AK158: N/A | AL158: N/A | AM158: TERMINADO | AN158: 1
A159: FDLC-CPS-146-2024 | B159: 2024 | C159: FDLC-IMC-001-2024 | D159: https://community.secop.gov.co/Public/Tendering/OpportunityDetail/Index?noticeUID=CO1.NTC.5867926&isFromPublicArea=True&isModal=False | E159: PRESTACION DE SERVICIOS | F159: MINIMA CUANTIA | G159: Prestación de servicios profesionales y de apoyo a la gestión, o para la ejecución de trabajos artísticos que sólo puedan encomendarse a determinadas personas naturales | H159: PRESTAR SERVICIOS LOGISTICOS PARA ADELANTAR LOS DIFERENTES ESPACIOS DE RENDICIÓN DE CUENTAS CONTROL SOCIAL DIÁLOGO Y PARTICIPACIÓN CIUDADANA DE LA LOCALIDAD DE LA CANDELARIA EN LA VIGENCIA 2024 | I159: INVERSION | J159: Un nuevo contrato social y ambiental para la Bogotá del Siglo XXI | K159: 57 | L159: Gestión Pública Local | M159: Propósito 5. Construir Bogotà - Regiòn con gobierno abierto, transparente y ciudadanìa consciente. | N159: O23011605570000002021 | O159: 1 | P159: 1022931048 | Q159: INFRALOGISTIC SAS | R159: Persona Natural | W159: 20745000 | Y159: 0 | Z159: 0 | AA159: 20745000 | AB159: 16693000 | AC159: 2022-08-04 | AD159: 2022-08-04 | AE159: 2022-12-24 | AF159: 150 | AG159: 1 | AH159: NO APLICA | AI159: N/A | AJ159: N/A | AK159: N/A | AL159: N/A | AM159: TERMINADO | AN159: 0.8046758255
A160: FDLC-CPS-147-2024 | B160: 2024 | C160: FDLC-CPS-147-2024 | D160: https://community.secop.gov.co/Public/Tendering/OpportunityDetail/Index?noticeUID=CO1.NTC.5915562&isFromPublicArea=True&isModal=False | E160: CPS | F160: CONTRATACION DIRECTA | G160: Prestación de servicios profesionales y de apoyo a la gestión, o para la ejecución de trabajos artísticos que sólo puedan encomendarse a determinadas personas naturales | H160: PRESTAR LOS SERVICIOS PROFESIONALES PARA APOYAR EN LA ESTRUCTURACIÓN DE LA GESTIÓN PRECONTRACTUAL Y LA PROGRAMACIÓN DE LAS ACTIVIDADES RELACIONADAS CON LA FORMULACIÓN DE PROYECTOS DE INVERSIÓN Y FUNCIONAMIENTO QUE ADELANTE EL FONDO DE DESARROLLO LOCAL DE LA CANDELARIA | I160: INVERSION | J160: Un nuevo contrato social y ambiental para la Bogotá del Siglo XXI | K160: 57 | L160: Gestión Pública Local | M160: Propósito 5. Construir Bogotà - Regiòn con gobierno abierto, transparente y ciudadanìa consciente. | N160: O23011605570000002021 | O160: 1 | P160: 80239278 | Q160: GABRIEL GUTIERREZ GARCIA | R160: Persona Natural | W160: 26000000 | Y160: 1 | Z160: 13000000 | AA160: 39000000 | AB160: 39000000 | AC160: 2022-08-10 | AD160: 2022-08-10 | AE160: 2022-11-09 | AF160: 120 | AG160: 1 | AH160: 2 MESES | AI160: N/A | AJ160: N/A | AK160: N/A | AL160: N/A | AM160: TERMINADO | AN160: 1
A161: FDLC-CPS-148-2024 | B161: 2024 | C161: FDLC-CPS-148-2024 | D161: https://community.secop.gov.co/Public/Tendering/OpportunityDetail/Index?noticeUID=CO1.NTC.5920958&isFromPublicArea=True&isModal=False | E161: CPS | F161: CONTRATACION DIRECTA | G161: Prestación de servicios profesionales y de apoyo a la gestión, o para la ejecución de trabajos artísticos que sólo puedan encomendarse a determinadas personas naturales | H161: PRESTAR SERVICIOS PROFESIONALES AL FONDO DE DESARROLLO LOCAL DE LA CANDELARIA COMO ADMINISTRADOR DE RED LOCAL Y COMO ENLACE CON LA SECRETARÍA DISTRITAL DE GOBIERNO BRINDANDO SOPORTE EN MATERIA DE SISTEMAS (SOFTWARE Y HARDWARE) A LOS USUARIOS INTERNOS Y EXTERNOS DE LA ENTIDAD. | I161: INVERSION | J161: Un nuevo contrato social y ambiental para la Bogotá del Siglo XXI | K161: 57 | L161: Gestión Pública Local | M161: Propósito 5. Construir Bogotà - Regiòn con gobierno abierto, transparente y ciudadanìa consciente. | N161: O23011605570000002021 | O161: 1 | P161: 1032380605 | Q161: AGUSTIN LARA BELTRAN | R161: Persona Natural | W161: 28000000 | Y161: 1 | Z161: 14000000 | AA161: 42000000 | AB161: 42000000 | AC161: 2022-08-11 | AD161: 2022-08-11 | AE161: 2022-11-10 | AF161: 120 | AG161: 1 | AH161: 2 MESES | AI161: N/A | AJ161: N/A | AK161: N/A | AL161: N/A | AM161: TERMINADO | AN161: 1
A162: FDLC-CPS-149-2024 | B162: 2024 | C162: FDLC-CPS-149-2024 | D162: https://community.secop.gov.co/Public/Tendering/OpportunityDetail/Index?noticeUID=CO1.NTC.5919319&isFromPublicArea=True&isModal=False | E162: CPS | F162: CONTRATACION DIRECTA | G162: Contratos interadministrativos | H162: PRESTACIÓN DE SERVICIOS PROFESIONALES AL FONDO DE DESARROLLO LOCAL DE LA CANDELARIA PARA ATENDER LAS PETICIONES QUEJAS RECLAMOS YO SOLICITUDES PRESENTADAS POR LA CIUDADANÍA DE CONFORMIDAD CON LOS TÉRMINOS LEGALES ESTABLECIDOS Y APOYAR LAS RESPUESTAS REQUERIDAS POR LOS ENTES DE CONTROL | I162: INVERSION | J162: Un nuevo contrato social y ambiental para la Bogotá del Siglo XXI | K162: 57 | L162: Gestión Pública Local | M162: Propósito 5. Construir Bogotà - Regiòn con gobierno abierto, transparente y ciudadanìa consciente. | N162: O23011605570000002021 | O162: 1 | P162: 899999061 | Q162: ALBA RUBIELA DIAZ MENDEZ | R162: Persona Jurídica | W162: 20000000 | Z162: 0 | AA162: 20000000 | AB162: 20000000 | AC162: 2022-08-08 | AD162: 2022-08-08 | AE162: 2022-08-07 | AF162: 120 | AH162: NO APLICA | AI162: N/A | AJ162: N/A | AK162: N/A | AL162: N/A | AM162: TERMINADO | AN162: 1
A163: FDLC-CPS-150-2024 | B163: 2024 | C163: FDLC-IMC-002-2024 | D163: https://community.secop.gov.co/Public/Tendering/OpportunityDetail/Index?noticeUID=CO1.NTC.5905618&isFromPublicArea=True&isModal=False | E163: PRESTACION DE SERVICIOS | F163: MINIMA CUANTIA | G163: Prestación de servicios profesionales y de apoyo a la gestión, o para la ejecución de trabajos artísticos que sólo puedan encomendarse a determinadas personas naturales | H163: PRESTAR LOS SERVICIOS LOGISTICOS PARA LA REALIZACIÓN DE LOS ENCUENTROS CIUDADANOS EN LA LOCALIDAD DE LA CANDELARIA EN EL MARCO DEL PROCESO DE FORMULACIÓN DEL PLAN DE DESARROLLO LOCAL 2025-2028 | I163: INVERSION | J163: Un nuevo contrato social y ambiental para la Bogotá del Siglo XXI | K163: 55 | L163: Fortalecimiento de Cultura Ciudadana y su institucionalidad | M163: Propósito 5. Construir Bogotà - Regiòn con gobierno abierto, transparente y ciudadanìa consciente. | N163: O23011605550000002019 | O163: 1 | P163: 80249660 | Q163: JYF INVERSIONES S.A.S | R163: Persona Natural | W163: 26897382 | Z163: 0 | AA163: 26897382 | AB163: 23832539 | AC163: 2022-08-12 | AD163: 2022-08-12 | AE163: 2022-11-11 | AF163: 180 | AH163: NO APLICA | AI163: N/A | AJ163: N/A | AK163: N/A | AL163: N/A | AM163: TERMINADO | AN163: 0.8860542264
A164: FDLC-CPS-151-2024 | B164: 2024 | C164: FDLC-CPS-151-2024 | D164: https://community.secop.gov.co/Public/Tendering/OpportunityDetail/Index?noticeUID=CO1.NTC.5945547&isFromPublicArea=True&isModal=False | E164: CPS | F164: CONTRATACION DIRECTA | G164: Prestación de servicios profesionales y de apoyo a la gestión, o para la ejecución de trabajos artísticos que sólo puedan encomendarse a determinadas personas naturales | H164: PRESTAR SERVICIOS PROFESIONALES AL FONDO DE DESARROLLO LOCAL DE LA CANDELARIA EN LA PLANEACIÓN SEGUIMIENTO Y EJECUCIÓN DE LAS ACTIVIDADES DE PROMOCIÓN MATENIMIENO Y PLANTACIÓN DE ARBOLADO URBANO EN LA LOCALIDAD | I164: INVERSION | J164: Un nuevo contrato social y ambiental para la Bogotá del Siglo XXI | K164: 33 | L164: Más árboles y más y mejor espacio público | M164: Propósito 2. Cambiar nuestros hàbitos de vida para reverdecer a Bogotà y adaptarnos y mitigar la crisis climàtica. | N164: O23011602330000001703 | O164: 1 | P164: 1010203707 | Q164: MARTHA JANNETH TRIANA RUBIANO | R164: Persona Natural | W164: 21836000 | Y164: 1 | Z164: 5459000 | AA164: 27295000 | AB164: 27295000 | AC164: 2022-08-16 | AD164: 2022-08-16 | AE164: 2022-12-30 | AF164: 120 | AG164: 1 | AH164: 1 MES | AI164: N/A | AJ164: N/A | AK164: N/A | AL164: N/A | AM164: TERMINADO | AN164: 1
A165: FDLC-CPS-152-2024 | B165: 2024 | C165: FDLC-CPS-152-2024 | D165: https://community.secop.gov.co/Public/Tendering/OpportunityDetail/Index?noticeUID=CO1.NTC.5951013&isFromPublicArea=True&isModal=False | E165: CPS | F165: CONTRATACION DIRECTA | G165: Prestación de servicios profesionales y de apoyo a la gestión, o para la ejecución de trabajos artísticos que sólo puedan encomendarse a determinadas personas naturales | H165: PRESTAR SERVICIOS PROFESIONALES PARA APOYAR EN LA FORMULACION TECNICA Y SEGUIMIENTOS DE PLANES POLITICAS PROGRAMAS Y PROYECTOS RELACIONADOS CON OBRAS E INFRAESTRUCTURA QUE DESARROLLE LA ALCALDIA LOCAL DE LA CANDELARIA. | I165: INVERSION | J165: Un nuevo contrato social y ambiental para la Bogotá del Siglo XXI | K165: 49 | L165: Movilidad segura, sostenible y accesible | M165: Propòsito 4. Hacer de Bogotà - Region un modelo de movilidad multimodal, incluyente y sostenible | N165: O23011604490000002020 | O165: 1 | P165: 80729376 | Q165: JORGE ALBERTO OJEDA GONZALEZ | R165: Persona Natural | W165: 24000000 | Y165: 1 | Z165: 6000000 | AA165: 30000000 | AB165: 30000000 | AC165: 2022-08-16 | AD165: 2022-08-16 | AE165: 2022-11-15 | AF165: 120 | AG165: 1 | AH165: 1 MES | AI165: N/A | AJ165: N/A | AK165: N/A | AL165: N/A | AM165: TERMINADO | AN165: 1
A166: FDLC-CPS-153-2024 | B166: 2024 | C166: FDLC-CPS-153-2024 | D166: https://community.secop.gov.co/Public/Tendering/OpportunityDetail/Index?noticeUID=CO1.NTC.5950092&isFromPublicArea=True&isModal=False | E166: CPS | F166: CONTRATACION DIRECTA | G166: Prestación de servicios profesionales y de apoyo a la gestión, o para la ejecución de trabajos artísticos que sólo puedan encomendarse a determinadas personas naturales | H166: PRESTAR SERVICIOS DE APOYO TÉCNICO EN LA IMPLEMENTACIÓN DE ACCIONES Y ESTRATEGIAS DE LOS PROYECTOS DE RECREACIÓN Y DEPORTES QUE DESARROLLE EL FONDO DE DESARROLLO LOCAL DE LA CANDELARIA | I166: INVERSION | J166: Un nuevo contrato social y ambiental para la Bogotá del Siglo XXI | K166: 20 | L166: Bogotá, referente en cultura, deporte, recreación y actividad física, con parques para el desarrollo y la salud | M166: Propósito 1. Hacer un nuevo contrato social con igualdad de oportunidades para la inclusiòn social, productiva y polìtica | N166: O23011601200000001611 | O166: 1 | P166: 1013628927 | Q166: JUAN DAVID BARRIOS GUZMAN | R166: Persona Natural | W166: 11576000 | Z166: 0 | AA166: 11576000 | AB166: 11576000 | AC166: 2022-08-17 | AD166: 2022-08-17 | AE166: 2022-11-16 | AF166: 120 | AH166: NO APLICA | AI166: N/A | AJ166: N/A | AK166: N/A | AL166: N/A | AM166: TERMINADO | AN166: 1
A167: FDLC-CPS-154-2024 | B167: 2024 | C167: FDLC-CPS-154-2024-A | D167: https://community.secop.gov.co/Public/Tendering/OpportunityDetail/Index?noticeUID=CO1.NTC.5954730&isFromPublicArea=True&isModal=False | E167: CPS | F167: CONTRATACION DIRECTA | G167: Prestación de servicios profesionales y de apoyo a la gestión, o para la ejecución de trabajos artísticos que sólo puedan encomendarse a determinadas personas naturales | H167: PRESTAR SERVICIOS DE APOYO TÉCNICO EN LA IMPLEMENTACIÓN DE ACCIONES Y ESTRATEGIAS DE LOS PROYECTOS DE OBRAS PUBLICAS E INFRAESTRUCTURA QUE DESARROLLE EL FONDO DE DESARROLLO LOCAL DE LA CANDELARIA | I167: INVERSION | J167: Un nuevo contrato social y ambiental para la Bogotá del Siglo XXI | K167: 49 | L167: Movilidad segura, sostenible y accesible | M167: Propòsito 4. Hacer de Bogotà - Region un modelo de movilidad multimodal, incluyente y sostenible | N167: O23011604490000002020 | O167: 1 | P167: 1019091360 | Q167: JUAN CAMILO REYES MARTINEZ | R167: Persona Natural | W167: 11576000 | Z167: 0 | AA167: 11576000 | AB167: 11576000 | AC167: 2022-08-17 | AD167: 2022-08-17 | AE167: 2022-11-16 | AF167: 120 | AH167: NO APLICA | AI167: N/A | AJ167: N/A | AK167: N/A | AL167: N/A | AM167: TERMINADO | AN167: 1
A168: FDLC-CPS-155-2024 | B168: 2024 | C168: FDLC-CPS-155-2024 | D168: https://community.secop.gov.co/Public/Tendering/OpportunityDetail/Index?noticeUID=CO1.NTC.5965623&isFromPublicArea=True&isModal=False | E168: CPS | F168: CONTRATACION DIRECTA | G168: Contratos interadministrativos | H168: PRESTAR SERVICIOS ASISTENCIALES PARA APOYAR EN LA ELABORACIÓN GESTIÓN Y PUBLICACIÓN DE CONTENIDOS Y MATERIAL GRÁFICO DE COMUNICACIÓN EN LAS REDES SOCIALES Y HERRAMIENTAS INSTITUCIONALES DE COMUNICACIÓN DE LA ALCALDÍA LOCAL DE LA CANDELARIA | I168: INVERSION | J168: Un nuevo contrato social y ambiental para la Bogotá del Siglo XXI | K168: 57 | L168: Gestión Pública Local | M168: Propósito 5. Construir Bogotà - Regiòn con gobierno abierto, transparente y ciudadanìa consciente. | N168: O23011605570000002021 | O168: 1 | P168: 800250713 | Q168: EDGAR SANTIAGO ALARCON TALERO | R168: Persona Jurídica | W168: 11532000 | Z168: 0 | AA168: 11532000 | AB168: 11532000 | AC168: 2022-08-18 | AD168: 2022-09-02 | AE168: 2023-05-01 | AF168: 120 | AH168: NO APLICA | AI168: N/A | AJ168: N/A | AK168: N/A | AL168: N/A | AM168: TERMINADO | AN168: 1
A169: FDLC-CPS-156-2024 | B169: 2024 | C169: FDLC-CPS-156-2024 | D169: https://community.secop.gov.co/Public/Tendering/OpportunityDetail/Index?noticeUID=CO1.NTC.5987281&isFromPublicArea=True&isModal=true&asPopupView=true | E169: CPS | F169: CONTRATACION DIRECTA | G169: Prestación de servicios profesionales y de apoyo a la gestión, o para la ejecución de trabajos artísticos que sólo puedan encomendarse a determinadas personas naturales | H169: PRESTAR SERVICIOS PROFESIONALES BRINDANDO APOYO Y ACOMPAÑAMIENTO EN LAS ACTIVIDADES DE TURISMO LOCAL PARA LA CONSERVACIÓN DE LA CANDELARIA COMO ÁREA TURÍSTICA SOSTENIBLE | I169: INVERSION | J169: Un nuevo contrato social y ambiental para la Bogotá del Siglo XXI | K169: 57 | L169: Gestión Pública Local | M169: Propósito 5. Construir Bogotà - Regiòn con gobierno abierto, transparente y ciudadanìa consciente. | N169: O23011605570000002021 | O169: 1 | P169: 1032488659 | Q169: ANDREA DEL PILAR AREVALO VASQUEZ | R169: Persona Natural | W169: 19092000 | Y169: 1 | Z169: 4773000 | AA169: 23865000 | AB169: 23865000 | AC169: 2022-08-18 | AD169: 2022-08-18 | AE169: 2022-11-17 | AF169: 120 | AG169: 1 | AH169: 1 MES | AI169: N/A | AJ169: N/A | AK169: N/A | AL169: N/A | AM169: TERMINADO | AN169: 1
A170: FDLC-CPS-157-2024 | B170: 2024 | C170: FDLC-CPS-157-2024 | D170: https://community.secop.gov.co/Public/Tendering/OpportunityDetail/Index?noticeUID=CO1.NTC.5982142&isFromPublicArea=True&isModal=true&asPopupView=true | E170: CPS | F170: CONTRATACION DIRECTA | G170: Prestación de servicios profesionales y de apoyo a la gestión, o para la ejecución de trabajos artísticos que sólo puedan encomendarse a determinadas personas naturales | H170: PRESTAR SERVICIOS PROFESIONALES AL FONDO DE DESARROLLO LOCAL DE LA CANDELARIA PARA LA PLANEACIÓN FORMULACIÓN EVALUACIÓN ARTICULACIÓN ACOMPAÑAMIENTO Y SEGUIMIENTO DE LOS PROYECTOS DE INVERSIÓN DE EDUCACIÓN INICIAL Y DE LOS DEMÁS QUE LE SEAN DESIGNADOS PARA EL CUMPLIMIENTO DEL PLAN DE DESARROLLO LOCAL. | I170: INVERSION | J170: Un nuevo contrato social y ambiental para la Bogotá del Siglo XXI | K170: 17 | L170: Jóvenes con capacidades: Proyecto de vida para la ciudadanía, la innovación y el trabajo del siglo XXI | M170: Propósito 1. Hacer un nuevo contrato social con igualdad de oportunidades para la inclusiòn social, productiva y polìtica | N170: O23011601170000001607 | O170: 1 | P170: 1014177764 | Q170: GERALDINE NUÑEZ MONROY | R170: Persona Natural | W170: 20000000 | Z170: 0 | AA170: 20000000 | AB170: 20000000 | AC170: 2022-08-18 | AD170: 2022-08-18 | AE170: 2022-12-17 | AF170: 120 | AG170: 1 | AH170: NO APLICA | AI170: N/A | AJ170: N/A | AK170: N/A | AL170: N/A | AM170: TERMINADO | AN170: 1
A171: FDLC-CPS-158-2024 | B171: 2024 | C171: FDLC-CPS-158-2024 | D171: https://community.secop.gov.co/Public/Tendering/OpportunityDetail/Index?noticeUID=CO1.NTC.5984792&isFromPublicArea=True&isModal=true&asPopupView=true | E171: CPS | F171: CONTRATACION DIRECTA | G171: Prestación de servicios profesionales y de apoyo a la gestión, o para la ejecución de trabajos artísticos que sólo puedan encomendarse a determinadas personas naturales | H171: PRESTAR SERVICIOS PROFESIONALES AL FONDO DE DESARROLLO LOCAL DE LA CANDELARIA PARA LA PLANEACIÓN FORMULACIÓN EVALUACIÓN ARTICULACIÓN EJECUCIÓN Y SEGUIMIENTO DEL PROYECTO DE INVERSIÓN 1787 LA CANDELARIA SEGURA: ACCESO A LA JUSTICIA INTEGRAL | I171: INVERSION | J171: Un nuevo contrato social y ambiental para la Bogotá del Siglo XXI | K171: 48 | L171: Plataforma institucional para la seguridad y justicia | M171: Propòsito 3. Inspirar confianza y legitimidad para vivir sin miedo y ser epicentro de cultura ciudadana, paz y reconciliaciòn | N171: O23011603480000001787 | O171: 1 | P171: 1024462041 | Q171: ANGIE MELISSA HERRERA CASTIBLANCO | R171: Persona Natural | W171: 19092000 | Z171: 0 | AA171: 19092000 | AB171: 19032000 | AC171: 2022-08-18 | AD171: 2022-08-19 | AE171: 2022-12-18 | AF171: 120 | AG171: 1 | AH171: NO APLICA | AI171: N/A | AJ171: N/A | AK171: N/A | AL171: N/A | AM171: TERMINADO | AN171: 0.9968573224
A172: FDLC-CPS-159-2024 | B172: 2024 | C172: FDLC-CPS-159-2024 | D172: https://community.secop.gov.co/Public/Tendering/OpportunityDetail/Index?noticeUID=CO1.NTC.6017625&isFromPublicArea=True&isModal=true&asPopupView=true | E172: CPS | F172: CONTRATACION DIRECTA | G172: Selección abreviada por menor cuantía | H172: PRESTAR SERVICIOS PROFESIONALES ESPECIALIZADOS PARA APOYAR LA IMPLEMENTACIÓN Y EL SEGUIMIENTO A LOS PLANES Y PROGRAMAS RELACIONADOS CON LA GESTIÓN EN SEGURIDAD Y SALUD EN EL TRABAJO DE LA ALCALDÍA LOCAL CONFORME CON LOS LINEAMIENTOS DEFINIDOS DESDE EL NIVEL CENTRAL DE LA SDG Y LA NORMATIVA VIGENTE | I172: INVERSION | J172: Un nuevo contrato social y ambiental para la Bogotá del Siglo XXI | K172: 57 | L172: Gestión Pública Local | M172: Propósito 5. Construir Bogotà - Regiòn con gobierno abierto, transparente y ciudadanìa consciente. | N172: O23011605570000002021 | O172: 3 | P172: 901288767 | Q172: MARIA MARGARITA CARDENAS SANCHEZ | R172: Persona Jurídica | W172: 29828000 | Z172: 0 | AA172: 29828000 | AB172: 29828000 | AC172: 2022-08-18 | AD172: 2022-08-25 | AE172: 2023-01-24 | AF172: 120 | AH172: NO APLICA | AI172: N/A | AJ172: N/A | AK172: N/A | AL172: N/A | AM172: TERMINADO | AN172: 1
A173: FDLC-CPS-160-2024 | B173: 2024 | C173: FDLC-CPS-160-2024 | D173: https://community.secop.gov.co/Public/Tendering/OpportunityDetail/Index?noticeUID=CO1.NTC.6005877&isFromPublicArea=True&isModal=true&asPopupView=true | E173: CPS | F173: CONTRATACION DIRECTA | G173: Prestación de servicios profesionales y de apoyo a la gestión, o para la ejecución de trabajos artísticos que sólo puedan encomendarse a determinadas personas naturales | H173: PRESTAR SERVICIOS DE APOYO EN LAS ACTIVIDADES DE SEGURIDAD Y CONVIVENCIA CIUDADANA DE ACUERDO A LAS NECESIDADES Y ESTRATEGIAS DE LA ALCALDIA LOCAL DE LA CANDELARIA | I173: INVERSION | J173: Un nuevo contrato social y ambiental para la Bogotá del Siglo XXI | K173: 57 | L173: Gestión Pública Local | M173: Propósito 5. Construir Bogotà - Regiòn con gobierno abierto, transparente y ciudadanìa consciente. | N173: O23011605570000002021 | O173: 1 | P173: 1105670710 | Q173: YULIANA ELISA BERNAL PRADO | R173: Persona Natural | W173: 7520000 | Z173: 0 | AA173: 7520000 | AB173: 7520000 | AC173: 2022-08-22 | AD173: 2022-08-23 | AE173: 2022-12-22 | AF173: 120 | AG173: 1 | AH173: NO APLICA | AI173: N/A | AJ173: N/A | AK173: N/A | AL173: N/A | AM173: TERMINADO | AN173: 1
A174: FDLC-CPS-161-2024 | B174: 2024 | C174: FDLC-CPS-161-2024 | D174: https://community.secop.gov.co/Public/Tendering/OpportunityDetail/Index?noticeUID=CO1.NTC.6007074&isFromPublicArea=True&isModal=true&asPopupView=true | E174: CPS | F174: CONTRATACION DIRECTA | G174: Prestación de servicios profesionales y de apoyo a la gestión, o para la ejecución de trabajos artísticos que sólo puedan encomendarse a determinadas personas naturales | H174: PRESTAR SERVICIOS DE APOYO TÉCNICO EN LA IMPLEMENTACIÓN DE ACCIONES Y ESTRATEGIAS DE LOS PROYECTOS DE OBRAS PUBLICAS E INFRAESTRUCTURA QUE DESARROLLE EL FONDO DE DESARROLLO LOCAL DE LA CANDELARIA | I174: INVERSION | J174: Un nuevo contrato social y ambiental para la Bogotá del Siglo XXI | K174: 49 | L174: Movilidad segura, sostenible y accesible | M174: Propòsito 4. Hacer de Bogotà - Region un modelo de movilidad multimodal, incluyente y sostenible | N174: O23011604490000002020 | O174: 1 | P174: 1010235642 | Q174: DANIEL FELIPE GALVIS WALTEROS | R174: Persona Natural | W174: 11576000 | Z174: 0 | AA174: 11576000 | AB174: 11576000 | AC174: 2022-08-24 | AD174: 2022-08-25 | AE174: 2022-12-24 | AF174: 120 | AG174: 1 | AH174: NO APLICA | AI174: N/A | AJ174: N/A | AK174: N/A | AL174: N/A | AM174: TERMINADO | AN174: 1
A175: FDLC-CPS-162-2024 | B175: 2024 | C175: FDLC-LP-001-2024 | D175: https://community.secop.gov.co/Public/Tendering/OpportunityDetail/Index?noticeUID=CO1.NTC.5904421&isFromPublicArea=True&isModal=False | E175: PRESTACION DE SERVICIOS | F175: LICITACION PUBLICA | G175: Prestación de servicios profesionales y de apoyo a la gestión, o para la ejecución de trabajos artísticos que sólo puedan encomendarse a determinadas personas naturales | H175: PRESTAR EL SERVICIO INTEGRAL DE VIGILANCIA Y SEGURIDAD PRIVADA PERMANENTE PARA TODOS LOS BIENES MUEBLES E INMUEBLES DE LOS QUE LEGALMENTE ES O LLEGARE A SER RESPONSABLE EL FONDO DE DESARROLLO LOCAL DE LA CANDELARIA | I175: FUNCIONAMIENTO - INVERSION | J175: Un nuevo contrato social y ambiental para la Bogotá del Siglo XXI | K175: 49 | L175: Movilidad segura, sostenible y accesible | M175: Propòsito 4. Hacer de Bogotà - Region un modelo de movilidad multimodal, incluyente y sostenible | N175: O23011604490000002020 - O21202020080585250 | O175: 1 | P175: 1054121677 | Q175: RONDACOL LTDA | R175: Persona Natural | W175: 1113300079 | Y175: 1 | Z175: 195345811 | AA175: 1308645890 | AB175: 897230298 | AC175: 2022-08-24 | AD175: 2022-08-26 | AE175: 2022-12-25 | AF175: 243 | AG175: 1 | AH175: 2 MESES 5 DIAS | AI175: N/A | AJ175: N/A | AK175: N/A | AL175: N/A | AM175: TERMINADO | AN175: 0.6856173277
A176: FDLC-CCV-163-2024 | B176: 2024 | C176: FDLC-IMC-003-2024 | D176: https://community.secop.gov.co/Public/Tendering/OpportunityDetail/Index?noticeUID=CO1.NTC.6002177&isFromPublicArea=True&isModal=true&asPopupView=true | E176: COMPRAVENTA | F176: MINIMA CUANTIA | G176: Contratos interadministrativos | H176: ADQUISICIÓN DE INSUMOS CONSUMIBLES PARA LOS EQUIPOS DE IMPRESIÓN DE LA ALCALDÍA LOCAL DE LA CANDELARIA (CARTUCHOS TONER) | I176: FUNCIONAMIENTO | J176: Un nuevo contrato social y ambiental para la Bogotá del Siglo XXI | K176: No aplica | L176: No aplica | M176: No aplica | N176: O2120201003063649028 | O176: 1 | P176: 901508361 | Q176: SISTEMAS Y DISTRIBUCIONES FORMACON SAS | R176: Persona Jurídica | W176: 13326430 | Y176: 1 | Z176: 6663215 | AA176: 19989645 | AB176: 19966662 | AC176: 2022-08-25 | AD176: 2022-08-25 | AE176: 2029-12-30 | AF176: 30 | AG176: 1 | AH176: 1 MES | AI176: N/A | AJ176: N/A | AK176: N/A | AL176: N/A | AM176: TERMINADO | AN176: 0.9988502547
A177: FDLC-CPS-164-2024 | B177: 2024 | C177: FDLC-CPS-164-2024 | D177: https://community.secop.gov.co/Public/Tendering/OpportunityDetail/Index?noticeUID=CO1.NTC.6073478&isFromPublicArea=True&isModal=true&asPopupView=true | E177: CPS | F177: CONTRATACION DIRECTA | G177: Prestación de servicios profesionales y de apoyo a la gestión, o para la ejecución de trabajos artísticos que sólo puedan encomendarse a determinadas personas naturales | H177: PRESTAR SERVICIOS PROFESIONALES AL FONDO DE DESARROLLO LOCAL DE LA CANDELARIA PARA LA PLANEACIÓN FORMULACIÓN EVALUACIÓN ARTICULACIÓN EJECUCIÓN Y SEGUIMIENTO DEL PROYECTO DE INVERSIÓN 1787 LA CANDELARIA SEGURA: ACCESO A LA JUSTICIA INTEGRAL | I177: INVERSION | J177: Un nuevo contrato social y ambiental para la Bogotá del Siglo XXI | K177: 48 | L177: Plataforma institucional para la seguridad y justicia | M177: Propòsito 3. Inspirar confianza y legitimidad para vivir sin miedo y ser epicentro de cultura ciudadana, paz y reconciliaciòn | N177: O23011603480000001787 | O177: 1 | P177: 93118919 | Q177: DANIEL ALFONSO TRIVIÑO VILLABÓN | R177: Persona Natural | W177: 19092000 | Z177: 0 | AA177: 19092000 | AB177: 19092000 | AC177: 2022-08-25 | AD177: 2022-08-26 | AE177: 2022-11-25 | AF177: 120 | AH177: NO APLICA | AI177: N/A | AJ177: N/A | AK177: N/A | AL177: N/A | AM177: TERMINADO | AN177: 1
A178: FDLC-CPS-165-2024 | B178: 2024 | C178: FDLC-CPS-165-2024 | D178: https://community.secop.gov.co/Public/Tendering/OpportunityDetail/Index?noticeUID=CO1.NTC.6088519&isFromPublicArea=True&isModal=true&asPopupView=true | E178: CPS | F178: CONTRATACION DIRECTA | G178: No aplica | H178: PRESTACIÓN DE SERVICIOS PROFESIONALES EN LA IMPLEMENTACIÓN DE ACCIONES Y ESTRATEGIAS CULTURALES MUSICALES Y ARTÍSTICAS ENFOCADAS A LAS INSTANCIAS DE PARTICIPACIÓN DE LA LOCALIDAD LA CANDELARIA DE ACUERDO AL PROYECTO 1625 "LA CANDELARIA CULTURAL ARTISTICA Y PATRIMONIAL | I178: INVERSION | J178: Un nuevo contrato social y ambiental para la Bogotá del Siglo XXI | K178: 21 | L178: Creación y vida cotidiana: Apropiación ciudadana del arte, la cultura y el patrimonio, para la democracia cultural | M178: Propósito 1. Hacer un nuevo contrato social con igualdad de oportunidades para la inclusiòn social, productiva y polìtica | N178: O23011601210000001625 | O178: 7 | P178: 901495284 | Q178: BRAYAN IVAN PAIPA MARTINEZ | R178: Persona Jurídica | W178: 19092000 | Z178: 0 | AA178: 19092000 | AB178: 19092000 | AC178: 2022-08-29 | AD178: 2022-08-30 | AE178: 2022-09-29 | AF178: 120 | AG178: 1 | AH178: NO APLICA | AI178: N/A | AJ178: N/A | AK178: N/A | AL178: N/A | AM178: TERMINADO | AN178: 1
A179: FDLC-CPS-166-2024 | B179: 2024 | C179: FDLC-CPS-166-2024 | D179: https://community.secop.gov.co/Public/Tendering/OpportunityDetail/Index?noticeUID=CO1.NTC.6096406&isFromPublicArea=True&isModal=true&asPopupView=true | E179: CPS | F179: CONTRATACION DIRECTA | G179: Prestación de servicios profesionales y de apoyo a la gestión, o para la ejecución de trabajos artísticos que sólo puedan encomendarse a determinadas personas naturales | H179: PRESTAR SERVICIOS PROFESIONALES PARA APOYAR JURÍDICAMENTE LA EJECUCIÓN DE LAS ACCIONES REQUERIDAS PARA LA DEPURACIÓN DE LAS ACTUACIONES ADMINISTRATIVAS QUE CURSAN EN LA ALCALDÍA LOCAL DE LA CANDELARIA | I179: INVERSION | J179: Un nuevo contrato social y ambiental para la Bogotá del Siglo XXI | K179: 57 | L179: Gestión Pública Local | M179: Propósito 5. Construir Bogotà - Regiòn con gobierno abierto, transparente y ciudadanìa consciente. | N179: O23011605570000002023 | O179: 1 | P179: 1018430013 | Q179: CARLOS LIBARDO CASTRO MEDINA | R179: Persona Natural | W179: 21836000 | Y179: 1 | Z179: 5459000 | AA179: 27295000 | AB179: 24565600 | AC179: 2022-08-29 | AD179: 2022-08-30 | AE179: 2022-11-30 | AF179: 120 | AG179: 1 | AH179: 1 MES | AI179: N/A | AJ179: N/A | AK179: N/A | AL179: N/A | AM179: TERMINADO | AN179: 0.9000036637
A180: FDCL-OC-167-2024 | B180: 2024 | C180: ORDEN DE COMPRA 128538 | D180: https://www.colombiacompra.gov.co/tienda-virtual-del-estado-colombiano/ordenes-compra/128538 | E180: ORDEN DE COMPRA | F180: SELECCION ABREVIADA ACUERDO MARCO DE PRECIOS | G180: Prestación de servicios profesionales y de apoyo a la gestión, o para la ejecución de trabajos artísticos que sólo puedan encomendarse a determinadas personas naturales | H180: ADQUISICION DE PRODUCTOS DE PAPELERÍA ARTICULOS DE ESCRITORIO Y ELEMENTOS DE OFICINA NECESARIOS PARA EL CUMPLIMIENTO DE LAS FUNCIONES ADMINISTRATIVAS Y MISIONALES DE LA ALCALDÍA LOCAL DE LA CANDELARIA | I180: FUNCIONAMIENTO | J180: Un nuevo contrato social y ambiental para la Bogotá del Siglo XXI | K180: No aplica | L180: No aplica | M180: No aplica | N180: O2120201003023212801-O2120201003083899998-O2120201004024291305 | O180: 1 | P180: 1010207593 | Q180: CLARYICON S.A.S | R180: Persona Natural | W180: 13774250 | Z180: 0 | AA180: 13774250 | AB180: =+X180+Y180+AA180 -> 13774250 | AC180: 2022-09-07 | AD180: 2022-09-08 | AE180: 2022-12-30 | AF180: 15 | AG180: 1 | AH180: NO APLICA | AI180: N/A | AJ180: N/A | AK180: N/A | AL180: N/A | AM180: TERMINADO | AN180: 1
A181: FDCL-OC-168-2024 | B181: 2024 | C181: ORDEN DE COMPRA 128537 | D181: https://www.colombiacompra.gov.co/tienda-virtual-del-estado-colombiano/ordenes-compra/128537 | E181: ORDEN DE COMPRA | F181: SELECCION ABREVIADA ACUERDO MARCO DE PRECIOS | G181: Prestación de servicios profesionales y de apoyo a la gestión, o para la ejecución de trabajos artísticos que sólo puedan encomendarse a determinadas personas naturales | H181: ADQUISICION DE PRODUCTOS DE PAPELERÍA ARTICULOS DE ESCRITORIO Y ELEMENTOS DE OFICINA NECESARIOS PARA EL CUMPLIMIENTO DE LAS FUNCIONES ADMINISTRATIVAS Y MISIONALES DE LA ALCALDÍA LOCAL DE LA CANDELARIA | I181: FUNCIONAMIENTO | J181: Un nuevo contrato social y ambiental para la Bogotá del Siglo XXI | K181: No aplica | L181: No aplica | M181: No aplica | N181: O2120201003063692002-O2120201004054516003 | O181: 1 | P181: 1014200533 | Q181: GS - Polyflex | R181: Persona Natural | W181: 8381000 | Z181: 0 | AA181: 8381000 | AB181: 8381000 | AC181: 2022-09-08 | AD181: 2022-09-08 | AE181: 2022-12-07 | AF181: 15 | AH181: NO APLICA | AI181: N/A | AJ181: N/A | AK181: N/A | AL181: N/A | AM181: TERMINADO | AN181: 1
A182: FDCL-OC-169-2024 | B182: 2024 | C182: ORDEN DE COMPRA 128536 | D182: https://www.colombiacompra.gov.co/tienda-virtual-del-estado-colombiano/ordenes-compra/128536 | E182: ORDEN DE COMPRA | F182: SELECCION ABREVIADA ACUERDO MARCO DE PRECIOS | G182: Prestación de servicios profesionales y de apoyo a la gestión, o para la ejecución de trabajos artísticos que sólo puedan encomendarse a determinadas personas naturales | H182: ADQUISICION DE PRODUCTOS DE PAPELERÍA ARTICULOS DE ESCRITORIO Y ELEMENTOS DE OFICINA NECESARIOS PARA EL CUMPLIMIENTO DE LAS FUNCIONES ADMINISTRATIVAS Y MISIONALES DE LA ALCALDÍA LOCAL DE LA CANDELARIA | I182: FUNCIONAMIENTO | J182: Un nuevo contrato social y ambiental para la Bogotá del Siglo XXI | K182: No aplica | L182: No aplica | M182: No aplica | N182: O2120201003083899998-O2120201003063692007 | O182: 1 | P182: 1045707561 | Q182: PANAMERICANA LIBRERÍA Y PAPELERÍA S.A. | R182: Persona Natural | W182: 3836979 | Z182: 0 | AA182: 3836979 | AB182: =+X182+Y182+AA182 -> 3836979 | AC182: 2022-09-09 | AD182: 2022-09-09 | AE182: 2022-12-08 | AF182: 15 | AH182: NO APLICA | AI182: N/A | AJ182: N/A | AK182: N/A | AL182: N/A | AM182: TERMINADO | AN182: 1
A183: FDCL-OC-170-2024 | B183: 2024 | C183: ORDEN DE COMPRA 128535 | D183: https://www.colombiacompra.gov.co/tienda-virtual-del-estado-colombiano/ordenes-compra/128535 | E183: ORDEN DE COMPRA | F183: SELECCION ABREVIADA ACUERDO MARCO DE PRECIOS | G183: Prestación de servicios profesionales y de apoyo a la gestión, o para la ejecución de trabajos artísticos que sólo puedan encomendarse a determinadas personas naturales | H183: ADQUISICION DE PRODUCTOS DE PAPELERÍA ARTICULOS DE ESCRITORIO Y ELEMENTOS DE OFICINA NECESARIOS PARA EL CUMPLIMIENTO DE LAS FUNCIONES ADMINISTRATIVAS Y MISIONALES DE LA ALCALDÍA LOCAL DE LA CANDELARIA | I183: FUNCIONAMIENTO | J183: Un nuevo contrato social y ambiental para la Bogotá del Siglo XXI | K183: No aplica | L183: No aplica | M183: No aplica | N183: O2120201003023212899-O2120201003083899998 | O183: 1 | P183: 830040274 | Q183: COLSUBSIDIO | R183: Persona Jurídica | W183: 5272450 | Z183: 0 | AA183: 5272450 | AB183: 5272450 | AC183: 2022-09-14 | AD183: 2022-09-14 | AE183: 2022-12-13 | AF183: 15 | AH183: NO APLICA | AI183: N/A | AJ183: N/A | AK183: N/A | AL183: N/A | AM183: TERMINADO | AN183: 1
A184: FDLC-CPS-171-2024 | B184: 2024 | C184: FDLC-CPS-171-2024 | D184: https://community.secop.gov.co/Public/Tendering/OpportunityDetail/Index?noticeUID=CO1.NTC.6142962&isFromPublicArea=True&isModal=true&asPopupView=true | E184: CPS | F184: CONTRATACION DIRECTA | G184: Prestación de servicios profesionales y de apoyo a la gestión, o para la ejecución de trabajos artísticos que sólo puedan encomendarse a determinadas personas naturales | H184: PRESTAR SERVICIOS PROFESIONALES AL ÁREA DE GESTIÓN DE DESARROLLO LOCAL DE LA ALCALDÍA LOCAL PARA LA IMPLEMENTACIÓN EJECUCIÓN Y SEGUIMIENTO DE LAS POLÍTICAS PROGRAMAS PLANES Y PROYECTOS RELACIONADOS CON EL DESARROLLO SOSTENIBLE Y REACTIVACION ECONÓMICA EN LA LOCALIDAD | I184: INVERSION | J184: Un nuevo contrato social y ambiental para la Bogotá del Siglo XXI | K184: 57 | L184: Gestión Pública Local | M184: Propósito 5. Construir Bogotà - Regiòn con gobierno abierto, transparente y ciudadanìa consciente. | N184: O23011605570000002021 | O184: 1 | P184: 41648295 | Q184: CRISTIAN EDUAR RODRIGUEZ PIRAQUIVE | R184: Persona Natural | W184: 19092000 | Z184: 0 | AA184: 19092000 | AB184: 19092000 | AC184: 2022-09-14 | AD184: 2022-09-14 | AE184: 2022-11-13 | AF184: 120 | AH184: NO APLICA | AI184: N/A | AJ184: N/A | AK184: N/A | AL184: N/A | AM184: TERMINADO | AN184: 1
A185: FDLC-CIA-172-2024 | B185: 2024 | C185: SDIS-CD-310805-004-2024 | D185: https://community.secop.gov.co/Public/Tendering/OpportunityDetail/Index?noticeUID=CO1.NTC.6067121&isFromPublicArea=True&isModal=False | E185: CONVENIO INTERADMINISTRATIVO | F185: CONTRATACION DIRECTA | G185: Prestación de servicios profesionales y de apoyo a la gestión, o para la ejecución de trabajos artísticos que sólo puedan encomendarse a determinadas personas naturales | H185: CONVENIO 7815 DE 2024 - AUNAR ESFUERZOS TÃCNICOS ADMINISTRATIVOS JURÃDICOS Y FINANCIEROS ENTRE LA SECRETARÃA DE INTEGRACIÃN SOCIAL Y EL FONDO DE DESARROLLO LOCAL DE LA CANDELARIA QUE PERMITAN LA DISPOSICIÃN DE RECURSOS NECESARIOS PARA LA DISPERSIÃN DE TRANSFERENCIAS MONETARIAS NO CONDICIONADAS DE LA ESTRATEGIA DE INGRESO MÃNIMO GARANTIZADO DIRIGIDAS A LOS HOGARES POBRES PRIORIZADOS E IDENTIFICADOS A TRAVÃS DE LA BASE MAESTRA DE LA ESTRATEGIA IMGQUE CORRESPONDEN A LA LOCALIDAD DE LA CANDELARIA. | I185: INVERSION | J185: Un nuevo contrato social y ambiental para la Bogotá del Siglo XXI | K185: 1 | L185: Subsidios y transferencias para la equidad | M185: Propósito 1. Hacer un nuevo contrato social con igualdad de oportunidades para la inclusiòn social, productiva y polìtica | N185: O23011601010000001605 | O185: 1 | P185: 49719195 | Q185: SECRETARIA DISTRITAL DE INTEGRACION SOCIAL | R185: Persona Natural | W185: 783917044 | Z185: 0 | AA185: 783917044 | AB185: 793917004 | AC185: 2022-09-14 | AD185: 2022-09-14 | AE185: 2022-12-13 | AF185: 242 | AH185: NO APLICA | AI185: N/A | AJ185: N/A | AK185: N/A | AL185: N/A | AM185: TERMINADO | AN185: 1.012756401
A186: FDLC-CPS-173-2024 | B186: 2024 | C186: FDLC-CPS-173-2024 | D186: https://community.secop.gov.co/Public/Tendering/OpportunityDetail/Index?noticeUID=CO1.NTC.6190781&isFromPublicArea=True&isModal=true&asPopupView=true | E186: CPS | F186: CONTRATACION DIRECTA | G186: Prestación de servicios profesionales y de apoyo a la gestión, o para la ejecución de trabajos artísticos que sólo puedan encomendarse a determinadas personas naturales | H186: PRESTAR SERVICIOS DE APOYO AL FONDO DE DESARROLLO LOCAL DE LA CANDELARIA COMO CONDUCTOR(A) DE LOS VEHICULOS A CARGO DE LA ENTIDAD Y APOYO LOGISTICO QUE LE SEAN ASIGNADOS | I186: INVERSION | J186: Un nuevo contrato social y ambiental para la Bogotá del Siglo XXI | K186: 57 | L186: Gestión Pública Local | M186: Propósito 5. Construir Bogotà - Regiòn con gobierno abierto, transparente y ciudadanìa consciente. | N186: O23011605570000002021 | O186: 1 | P186: 11801160 | Q186: VICTOR MANUEL ORTIZ CARDENAS | R186: Persona Natural | W186: 11532000 | Z186: 0 | AA186: 11532000 | AB186: 11532000 | AC186: 2022-09-19 | AD186: 2022-09-20 | AE186: 2022-12-29 | AF186: 120 | AG186: 1 | AH186: NO APLICA | AI186: N/A | AJ186: N/A | AK186: N/A | AL186: N/A | AM186: TERMINADO | AN186: 1
A187: FDLC-CPS-174-2024 | B187: 2024 | C187: FDLC-CPS-174-2024 | D187: https://community.secop.gov.co/Public/Tendering/OpportunityDetail/Index?noticeUID=CO1.NTC.6194305&isFromPublicArea=True&isModal=true&asPopupView=true | E187: CPS | F187: CONTRATACION DIRECTA | G187: Subasta inversa | H187: PRESTACIÓN DE SERVICIOS DE APOYO AL ÁREA DE GESTIÓN DE DESARROLLO LOCAL DE LA ALCALDÍA LOCAL DE LA CANDELARIA PARA PROMOVER LA GESTIÓN Y LAS CONVOCATORIAS REALIZADAS POR LA ALCALDIA LOCAL EN BENEFICIO DE LA COMUNIDAD | I187: INVERSION | J187: Un nuevo contrato social y ambiental para la Bogotá del Siglo XXI | K187: 57 | L187: Gestión Pública Local | M187: Propósito 5. Construir Bogotà - Regiòn con gobierno abierto, transparente y ciudadanìa consciente. | N187: O23011605570000002021 | O187: 13 | P187: 901142692 | Q187: NELLY PARRA TOCORA | R187: Persona Jurídica | W187: 11532000 | Z187: 0 | AA187: 11532000 | AB187: 11532000 | AC187: 2022-09-21 | AD187: 2022-09-27 | AE187: 2022-11-26 | AF187: 120 | AH187: NO APLICA | AI187: N/A | AJ187: N/A | AK187: N/A | AL187: N/A | AM187: TERMINADO | AN187: 1
A188: FDLC-CPS-175-2024 | B188: 2024 | C188: FDLC-CPS-175-2024 | D188: https://community.secop.gov.co/Public/Tendering/OpportunityDetail/Index?noticeUID=CO1.NTC.6194011&isFromPublicArea=True&isModal=true&asPopupView=true | E188: CPS | F188: CONTRATACION DIRECTA | G188: Subasta inversa | H188: PRESTAR SERVICIOS DE APOYO TÉCNICO AL FONDO DE DESARROLLO LOCAL DE LA CANDELARIA PARA APOYAR LA GESTIÓN CONTABLE PAGOS Y A LOS PROFESIONALES QUE INTERVENGAN EN DICHO PROCESO ASÍ COMO TAMBIÉN EN LOS ASUNTOS QUE LE SEAN REQUERIDOS | I188: INVERSION | J188: Un nuevo contrato social y ambiental para la Bogotá del Siglo XXI | K188: 57 | L188: Gestión Pública Local | M188: Propósito 5. Construir Bogotà - Regiòn con gobierno abierto, transparente y ciudadanìa consciente. | N188: O23011605570000002021 | O188: 13 | P188: No Definido | Q188: JOSE RENE AGUIRRE TIJARO | R188: Persona Jurídica | S188: 901341884 | T188: Integra de Colombia S.A.S | U188: 0.5 | W188: 16000000 | Z188: 0 | AA188: 16000000 | AB188: 16000000 | AC188: 2022-09-21 | AD188: 2022-10-28 | AE188: 2022-11-20 | AF188: 120 | AH188: NO APLICA | AI188: N/A | AJ188: N/A | AK188: N/A | AL188: N/A | AM188: TERMINADO | AN188: 1
A189: FDLC-CPS-176-2024 | B189: 2024 | C189: FDLC-CPS-176-2024 | D189: https://community.secop.gov.co/Public/Tendering/OpportunityDetail/Index?noticeUID=CO1.NTC.6194086&isFromPublicArea=True&isModal=true&asPopupView=true | E189: CPS | F189: CONTRATACION DIRECTA | G189: Subasta inversa | H189: PRESTAR SERVICIOS PROFESIONALES AL FONDO DE DESARROLLO LOCAL DE LA CANDELARIA PARA APOYAR LOS ASUNTOS RELACIONADOS CON LA GESTIÓN ATENCIÓN DEL RIESGO Y CAMBIO CLIMÁTICO EN LA LOCALIDAD. | I189: INVERSION | J189: Un nuevo contrato social y ambiental para la Bogotá del Siglo XXI | K189: 30 | L189: Eficiencia en la atención de emergencias | M189: Propòsito 2. Cambiar nuestros hàbitos de vida para reverdecer a Bogotà y adaptarnos y mitigar la crisis climàtica. | N189: O23011602300000001702 | O189: 13 | P189: No Definido | Q189: DANIELA PEÑA HERNANDEZ | R189: Persona Jurídica | S189: 901118558 | T189: COMERCIALIZADORA PADYF SAS | U189: 0.5 | W189: 19092000 | Z189: 0 | AA189: 19092000 | AB189: 19092000 | AF189: 120 | AH189: NO APLICA | AI189: N/A | AJ189: N/A | AK189: N/A | AL189: N/A | AM189: TERMINADO | AN189: 1
A190: FDLC-CPS-177-2024 | B190: 2024 | C190: FDLC-CPS-177-2024 | D190: https://community.secop.gov.co/Public/Tendering/OpportunityDetail/Index?noticeUID=CO1.NTC.6201070&isFromPublicArea=True&isModal=true&asPopupView=true | E190: CPS | F190: CONTRATACION DIRECTA | G190: Subasta inversa | H190: APOYAR AL EQUIPO DE PRENSA Y COMUNICACIONES DE LA ALCALDÍA LOCAL EN LA REALIZACIÓN Y PUBLICACIÓN DE CONTENIDOS DE REDES SOCIALES Y CANALES DE DIVULGACIÓN DIGITAL (SITIO WEB) DE LA ALCALDÍA LOCAL | I190: INVERSION | J190: Un nuevo contrato social y ambiental para la Bogotá del Siglo XXI | K190: 57 | L190: Gestión Pública Local | M190: Propósito 5. Construir Bogotà - Regiòn con gobierno abierto, transparente y ciudadanìa consciente. | N190: O23011605570000002021 | O190: 13 | P190: No Definido | Q190: NATALIA VEGA PALACIOS | R190: Persona Jurídica | S190: 901341884 | T190: Integra de Colombia S.A.S | U190: 0.5 | W190: 21872000 | Y190: 1 | Z190: 5468000 | AA190: 27340000 | AB190: 27340000 | AC190: 2022-09-21 | AD190: 2022-10-28 | AF190: 120 | AG190: 1 | AH190: 1 MES | AI190: N/A | AJ190: N/A | AK190: N/A | AL190: N/A | AM190: TERMINADO | AN190: =IF(ISERROR(AB190/AA190),"-",(AB190/AA190)) -> 1
A191: FDLC-CPS-178-2024 | B191: 2024 | C191: FDLC-CPS-178-2024 | D191: https://community.secop.gov.co/Public/Tendering/OpportunityDetail/Index?noticeUID=CO1.NTC.6214127&isFromPublicArea=True&isModal=true&asPopupView=true | E191: CPS | F191: CONTRATACION DIRECTA | G191: Subasta inversa | H191: PRESTAR SERVICIOS DE APOYO TÉCNICO AL FONDO DE DESARROLLO LOCAL DE LA CANDELARIA PARA APOYAR EN LA IMPLEMENTACIÓN CARGA MANEJO VALIDACIÓN Y ACTUALIZACIÓN DE LA INFORMACIÓN REQUERIDA EN EL APLICATIVO SIPSE LOCAL Y DEMÁS APLICATIVOS DE GESTIÓN LOCAL | I191: INVERSION | J191: Un nuevo contrato social y ambiental para la Bogotá del Siglo XXI | K191: 57 | L191: Gestión Pública Local | M191: Propósito 5. Construir Bogotà - Regiòn con gobierno abierto, transparente y ciudadanìa consciente. | N191: O23011605570000002021 | O191: 13 | P191: No Definido | Q191: EDGAR OSWALDO NAVARRETE VANEGAS | S191: 901118558 | T191: COMERCIALIZADORA PADYF SAS | U191: 0.5 | W191: 13600000 | Y191: 1 | Z191: 3400000 | AA191: 17000000 | AB191: 17000000 | AF191: 120 | AG191: 1 | AH191: 1 MES | AI191: N/A | AJ191: N/A | AK191: N/A | AL191: N/A | AM191: TERMINADO
A192: FDLC-CPS-179-2024 | B192: 2024 | C192: FDLC-CPS-179-2024 | D192: https://community.secop.gov.co/Public/Tendering/OpportunityDetail/Index?noticeUID=CO1.NTC.6222091&isFromPublicArea=True&isModal=true&asPopupView=true | E192: CPS | F192: CONTRATACION DIRECTA | G192: Subasta inversa | H192: PRESTACIÓN DE SERVICIOS DE APOYO TÉCNICO AL FONDO DE DESARROLLO LOCAL DE LA CANDELARIA EN LOS ASUNTOS RELACIONADOS CON LOS PROCESOS DEL ALMACEN DE LA ENTIDAD | I192: INVERSION | J192: Un nuevo contrato social y ambiental para la Bogotá del Siglo XXI | K192: 57 | L192: Gestión Pública Local | M192: Propósito 5. Construir Bogotà - Regiòn con gobierno abierto, transparente y ciudadanìa consciente. | N192: O23011605570000002021 | O192: 13 | P192: 900813561 | Q192: JUAN CARLOS PUENTES NARVAEZ | R192: Persona Jurídica | W192: 16000000 | Y192: 2 | Z192: 8000000 | AA192: =+W192+X192+Z192 -> 24000000 | AB192: 24000000 | AC192: 2022-09-21 | AD192: 2022-09-27 | AE192: 2022-11-26 | AF192: 120 | AG192: 2 | AH192: 2 MESES | AI192: N/A | AJ192: N/A | AK192: N/A | AL192: N/A | AM192: TERMINADO | AN192: 1
A193: FDLC-CPS-180-2024 | B193: 2024 | C193: FDLC-CPS-180-2024 | D193: https://community.secop.gov.co/Public/Tendering/OpportunityDetail/Index?noticeUID=CO1.NTC.6222349&isFromPublicArea=True&isModal=true&asPopupView=true | E193: CPS | F193: CONTRATACION DIRECTA | G193: Subasta inversa | H193: PRESTAR SERVICIOS TÉCNICOS PARA LA OPERACIÓN SEGUIMIENTO Y CUMPLIMIENTO DE LOS PROCESOS Y PROCEDIMIENTOS DEL SERVICIO APOYOS ECONÓMICOS TIPO C REQUERIDOS PARA EL OPORTUNO Y ADECUADO REGISTRO CRUCE Y REPORTE DE LOS DATOS EN EL SISTEMA MISIONAL SIRBE QUE CONTRIBUYAN A LA GARANTÍA DE LOS DERECHOS DE LA POBLACIÓN MAYOR EN EL MARCO DE LA POLÍTICA PÚBLICA SOCIAL PARA EL ENVEJECIMIENTO Y LA VEJEZ EN EL DISTRITO CAPITAL A CARGO DE LA ALCALDÍA LOCAL | I193: INVERSION | J193: Un nuevo contrato social y ambiental para la Bogotá del Siglo XXI | K193: 1 | L193: Subsidios y transferencias para la equidad | M193: Propósito 1. Hacer un nuevo contrato social con igualdad de oportunidades para la inclusiòn social, productiva y polìtica | N193: O23011601010000001605 | O193: 13 | P193: 900813561 | Q193: PEDRO SIERRA GARCIA | R193: Persona Jurídica | W193: 12600000 | Z193: 0 | AA193: 12600000 | AB193: 12600000 | AC193: 2022-09-21 | AD193: 2022-09-27 | AE193: 2022-11-26 | AF193: 120 | AH193: NO APLICA | AI193: N/A | AJ193: N/A | AK193: N/A | AL193: N/A | AM193: TERMINADO | AN193: 1
A194: FDLC-CPS-181-2024 | B194: 2024 | C194: FDLC-CPS-181-2024 | D194: https://community.secop.gov.co/Public/Tendering/OpportunityDetail/Index?noticeUID=CO1.NTC.6225934&isFromPublicArea=True&isModal=true&asPopupView=true | E194: CPS | F194: CONTRATACION DIRECTA | G194: Subasta inversa | H194: PRESTAR SERVICIOS DE APOYO TECNICO EN LAS DISTINTAS ETAPAS DE LOS PROCESOS CONTRACTUALES Y PARA BRINDAR ACOMPAÑAMIENTO Y SEGUIMIENTO EN LA IMPLEMENTACIÓN DEL SISTEMA DE GESTIÓN DE SEGURIDAD Y SALUD EN EL TRABAJO DE LA ALCALDIA LOCAL DE LA CANDELARIA | I194: INVERSION | J194: Un nuevo contrato social y ambiental para la Bogotá del Siglo XXI | K194: 57 | L194: Gestión Pública Local | M194: Propósito 5. Construir Bogotà - Regiòn con gobierno abierto, transparente y ciudadanìa consciente. | N194: O23011605570000002021 | O194: 13 | P194: 900603126 | Q194: MICHAEL FELIPE RAMIREZ GRACIA | R194: Persona Jurídica | W194: 17464000 | Z194: 0 | AA194: 17464000 | AB194: 17464000 | AC194: 2022-09-21 | AD194: 2022-09-27 | AE194: 2022-11-26 | AF194: 120 | AH194: NO APLICA | AI194: N/A | AJ194: N/A | AK194: N/A | AL194: N/A | AM194: TERMINADO | AN194: 1
A195: FDLC-CPS-182-2024 | B195: 2024 | C195: FDLC-CPS-182-2024 | D195: https://community.secop.gov.co/Public/Tendering/OpportunityDetail/Index?noticeUID=CO1.NTC.6224864&isFromPublicArea=True&isModal=true&asPopupView=true | E195: CPS | F195: CONTRATACION DIRECTA | G195: Contratos interadministrativos | H195: PRESTAR SERVICIOS PROFESIONALES AL FONDO DE DESARROLLO LOCAL DE LA CANDELARIA PARA APOYAR AL ENCARGADO DE LOS PROYECTOS SOCIALES Y DE SALUD DURANTE LA EJECUCIÓN Y SEGUIMIENTO DEL MISMO | I195: INVERSION | J195: Un nuevo contrato social y ambiental para la Bogotá del Siglo XXI | K195: 6 | L195: Sistema Distrital del Cuidado | M195: Propósito 1. Hacer un nuevo contrato social con igualdad de oportunidades para la inclusiòn social, productiva y polìtica | N195: O23011601060000001664 | O195: 1 | P195: 900959051 | Q195: ANGELA GABRIELA ALMEYDA REMOLINA | R195: Persona Jurídica | W195: 19092000 | Z195: 0 | AA195: 19092000 | AB195: 19092000 | AC195: 2022-10-18 | AD195: 2022-10-20 | AE195: 2023-04-19 | AF195: 120 | AH195: NO APLICA | AI195: N/A | AJ195: N/A | AK195: N/A | AL195: N/A | AM195: TERMINADO | AN195: 1
A196: FDLC-CPS-183-2024 | B196: 2024 | C196: FDLC-CPS-183-2024 | D196: https://community.secop.gov.co/Public/Tendering/OpportunityDetail/Index?noticeUID=CO1.NTC.6236093&isFromPublicArea=True&isModal=true&asPopupView=true | E196: CPS | F196: CONTRATACION DIRECTA | G196: Prestación de servicios profesionales y de apoyo a la gestión, o para la ejecución de trabajos artísticos que sólo puedan encomendarse a determinadas personas naturales | H196: PRESTAR SERVICIOS DE APOYO ADMINISTRATIVO Y ASISTENCIAL AL FONDO DE DESARROLLO LOCAL DE LA CANDELARIA EN EL CENTRO DE INFORMACIÓN Y DOCUMENTACIÓN (CDI) PARA LA NOTIFICACIÓN DE CORRESPONDENCIA DE LA ENTIDAD | I196: INVERSION | J196: Un nuevo contrato social y ambiental para la Bogotá del Siglo XXI | K196: 57 | L196: Gestión Pública Local | M196: Propósito 5. Construir Bogotà - Regiòn con gobierno abierto, transparente y ciudadanìa consciente. | N196: O23011605570000002021 | O196: 1 | P196: 51881732 | Q196: MARBYN ALFONSO SABOGAL SANCHEZ | R196: Persona Natural | W196: 10000000 | Z196: 0 | AA196: 10000000 | AB196: 10000000 | AC196: 2022-09-29 | AD196: 2022-09-29 | AE196: 2022-12-28 | AF196: 120 | AH196: NO APLICA | AI196: N/A | AJ196: N/A | AK196: N/A | AL196: N/A | AM196: TERMINADO | AN196: 1
A197: FDLC-CPS-184-2024 | B197: 2024 | C197: FDLC-CPS-184-2024 | D197: https://community.secop.gov.co/Public/Tendering/OpportunityDetail/Index?noticeUID=CO1.NTC.6242088&isFromPublicArea=True&isModal=true&asPopupView=true | E197: CPS | F197: CONTRATACION DIRECTA | G197: Prestación de servicios profesionales y de apoyo a la gestión, o para la ejecución de trabajos artísticos que sólo puedan encomendarse a determinadas personas naturales | H197: PRESTAR SERVICIOS PROFESIONALES PARA APOYAR LA GESTION DE LOS ASUNTOS RELACIONADOS CON EL ESPACIO PÚBLICO PROMOVIENDO SU VISIBILIZACIÓN LIDERANDO Y ORGANIZANDO A LOS GESTORES DEL ESPACIO PÚBLICO | I197: INVERSION | J197: Un nuevo contrato social y ambiental para la Bogotá del Siglo XXI | K197: 45 | L197: Espacio público más seguro y construido colectivamente | M197: Propósito 3. Inspirar confianza y legitimidad para vivir sin miedo y ser epicentro de cultura ciudadana, paz y reconciliaciòn | N197: O23011603450000001786 | O197: 1 | P197: 39781586 | Q197: ANGELA LILIANA RONDON GUTIERREZ | R197: Persona Natural | W197: 19092000 | X197: -9864200 | Z197: 0 | AA197: 9227800 | AB197: 9227800 | AC197: 2022-10-04 | AD197: 2022-10-04 | AE197: 2023-01-15 | AF197: 120 | AG197: 1 | AH197: NO APLICA | AI197: N/A | AJ197: N/A | AK197: N/A | AL197: N/A | AM197: TERMINADO | AN197: 1
A198: FDLC-CPS-185-2024 | B198: 2024 | C198: FDLC-CPS-185-2024 | D198: https://community.secop.gov.co/Public/Tendering/OpportunityDetail/Index?noticeUID=CO1.NTC.6237415&isFromPublicArea=True&isModal=true&asPopupView=true | E198: CPS | F198: CONTRATACION DIRECTA | G198: Prestación de servicios profesionales y de apoyo a la gestión, o para la ejecución de trabajos artísticos que sólo puedan encomendarse a determinadas personas naturales | H198: PRESTAR SERVICIOS TÉCNICOS PARA APOYAR AL FONDO DE DESARROLLO LOCAL DE LA CANDELARIA EN LAS TAREAS OPERATIVAS DE CARÁCTER ARCHIVÍSTICO DESARROLLADAS PARA GARANTIZAR LA APLICACIÓN CORRECTA DE LOS PROCEDIMIENTOS TÉCNICOS. | I198: INVERSION | J198: Un nuevo contrato social y ambiental para la Bogotá del Siglo XXI | K198: 57 | L198: Gestión Pública Local | M198: Propósito 5. Construir Bogotà - Regiòn con gobierno abierto, transparente y ciudadanìa consciente. | N198: O23011605570000002021 | O198: 1 | P198: 1010171112 | Q198: SONIA MORENO SALGUERO | R198: Persona Natural | W198: 17464000 | Z198: 0 | AA198: 17464000 | AB198: 17464000 | AC198: 2022-10-04 | AD198: 2022-10-04 | AE198: 2023-01-15 | AF198: 120 | AG198: 1 | AH198: NO APLICA | AI198: N/A | AJ198: N/A | AK198: N/A | AL198: N/A | AM198: TERMINADO | AN198: 1
A199: FDLC-CPS-186-2024 | B199: 2024 | C199: FDLC-CPS-186-2024 | D199: https://community.secop.gov.co/Public/Tendering/OpportunityDetail/Index?noticeUID=CO1.NTC.6239193&isFromPublicArea=True&isModal=true&asPopupView=true | E199: CPS | F199: CONTRATACION DIRECTA | G199: Prestación de servicios profesionales y de apoyo a la gestión, o para la ejecución de trabajos artísticos que sólo puedan encomendarse a determinadas personas naturales | H199: PRESTAR SERVICIOS PROFESIONALES AL FONDO DE DESARROLLO LOCAL DE LA CANDELARIA PARA APOYAR EN LA PLANEACIÓN FORMULACIÓN EVALUACIÓN Y SEGUIMIENTO DE LOS PROYECTOS SOCIALES Y DE SALUD EN LA LOCALIDAD PARA EL CUMPLIMIENTO DE LAS METAS DEL PLAN DE DESARROLLO LOCAL 2021-2024. | I199: INVERSION | J199: Un nuevo contrato social y ambiental para la Bogotá del Siglo XXI | K199: 6 | L199: Sistema Distrital del Cuidado | M199: Propósito 1. Hacer un nuevo contrato social con igualdad de oportunidades para la inclusiòn social, productiva y polìtica | N199: O23011601060000001664 | O199: 1 | P199: 1010236602 | Q199: VIVIANA LIZETH MONROY RAMIREZ | R199: Persona Natural | W199: 24000000 | Y199: 1 | Z199: 12000000 | AA199: 36000000 | AB199: 34800000 | AC199: 2022-10-04 | AD199: 2022-10-04 | AE199: 2023-01-15 | AF199: 120 | AG199: 1 | AH199: 2 MESES | AI199: N/A | AJ199: N/A | AK199: N/A | AL199: N/A | AM199: TERMINADO | AN199: 0.9666666667
A200: FDLC-CPS-187-2024 | B200: 2024 | C200: FDLC-CPS-187-2024 | D200: https://community.secop.gov.co/Public/Tendering/OpportunityDetail/Index?noticeUID=CO1.NTC.6243305&isFromPublicArea=True&isModal=true&asPopupView=true | E200: CPS | F200: CONTRATACION DIRECTA | G200: Prestación de servicios profesionales y de apoyo a la gestión, o para la ejecución de trabajos artísticos que sólo puedan encomendarse a determinadas personas naturales | H200: PRESTAR LOS SERVICIOS PROFESIONALES PARA APOYAR LAS ACTIVIDADES RELACIONADAS CON LA FORMULACIÓN Y ESTRUCTURACIÓN DE LOS PROYECTOS DE INVERSIÓN Y FUNCIONAMIENTO QUE ADELANTE EL FONDO DE DESARROLLO LOCAL DE LA CANDELARIA | I200: INVERSION | J200: Un nuevo contrato social y ambiental para la Bogotá del Siglo XXI | K200: 57 | L200: Gestión Pública Local | M200: Propósito 5. Construir Bogotà - Regiòn con gobierno abierto, transparente y ciudadanìa consciente. | N200: O23011605570000002021 | O200: 1 | P200: 24344028 | Q200: YULI ALEJANDRA RUEDA VALDERRAMA | R200: Persona Natural | W200: 19092000 | Z200: 0 | AA200: 19092000 | AB200: 19092000 | AC200: 2022-10-04 | AD200: 2022-10-04 | AE200: 2023-01-15 | AF200: 120 | AG200: 1 | AH200: NO APLICA | AI200: N/A | AJ200: N/A | AK200: N/A | AL200: N/A | AM200: TERMINADO | AN200: 1
A201: FDLC-CPS-188-2024 | B201: 2024 | C201: FDLC-CPS-188-2024 | D201: https://community.secop.gov.co/Public/Tendering/OpportunityDetail/Index?noticeUID=CO1.NTC.6254860&isFromPublicArea=True&isModal=true&asPopupView=true | E201: CPS | F201: CONTRATACION DIRECTA | G201: Prestación de servicios profesionales y de apoyo a la gestión, o para la ejecución de trabajos artísticos que sólo puedan encomendarse a determinadas personas naturales | H201: PRESTAR SERVICIOS PROFESIONALES PARA APOYAR JURÍDICAMENTE LA EJECUCIÓN DE LAS ACCIONES REQUERIDAS PARA EL TRÁMITE E IMPULSO PROCESAL DE LAS ACTUACIONES CONTRAVENCIONALES Y/O QUERELLAS QUE CURSEN EN LAS INSPECCIONES DE POLICÍA DE LA LOCALIDAD DE LA CANDELARIA. | I201: INVERSION | J201: Un nuevo contrato social y ambiental para la Bogotá del Siglo XXI | K201: 57 | L201: Gestión Pública Local | M201: Propósito 5. Construir Bogotà - Regiòn con gobierno abierto, transparente y ciudadanìa consciente. | N201: O23011605570000002023 | O201: 1 | P201: 52060667 | Q201: DIANA MARGARITA MONJE CARDENAS | R201: Persona Natural | W201: 24000000 | Z201: 0 | AA201: 24000000 | AB201: 24000000 | AC201: 2022-10-04 | AD201: 2022-10-04 | AE201: 2023-01-15 | AF201: 120 | AG201: 1 | AH201: NO APLICA | AI201: N/A | AJ201: N/A | AK201: N/A | AL201: N/A | AM201: TERMINADO | AN201: 1
A202: FDLC-CPS-189-2024 | B202: 2024 | C202: FDLC-CPS-189-2024 | D202: https://community.secop.gov.co/Public/Tendering/OpportunityDetail/Index?noticeUID=CO1.NTC.6257887&isFromPublicArea=True&isModal=False | E202: CPS | F202: CONTRATACION DIRECTA | G202: Prestación de servicios profesionales y de apoyo a la gestión, o para la ejecución de trabajos artísticos que sólo puedan encomendarse a determinadas personas naturales | H202: PRESTAR SERVICIOS PROFESIONALES PARA APOYAR JURÍDICAMENTE LA EJECUCIÓN DE LAS ACCIONES REQUERIDAS PARA LA DEPURACIÓN DE LAS ACTUACIONES ADMINISTRATIVAS QUE CURSAN EN LA ALCALDÍA LOCAL DE LA CANDELARIA | I202: INVERSION | J202: Un nuevo contrato social y ambiental para la Bogotá del Siglo XXI | K202: 57 | L202: Gestión Pública Local | M202: Propósito 5. Construir Bogotà - Regiòn con gobierno abierto, transparente y ciudadanìa consciente. | N202: O23011605570000002023 | O202: 1 | P202: 1010195489 | Q202: RUBEN DARIO GONZALEZ | R202: Persona Natural | W202: 19092000 | Z202: 0 | AA202: 19092000 | AB202: 19092000 | AC202: 2022-10-04 | AD202: 2022-10-04 | AE202: 2023-01-15 | AF202: 120 | AG202: 1 | AH202: NO APLICA | AI202: N/A | AJ202: N/A | AK202: N/A | AL202: N/A | AM202: TERMINADO | AN202: 1
... 234 more rows

Sheet Proposito_programa
B2: PDD | C2: No. Programa | D2: Programa | E2: Propósito
A3: Acuerdo 761 2020 | B3: Un Nuevo Contrato Social y Ambiental para la Bogotá del Siglo XXI | C3: 1 | D3: Subsidios y transferencias para la equidad | E3: Propósito 1: Hacer un nuevo contrato social para incrementar la inclusión social, productiva y política
A4: Pag. 51 | B4: Un Nuevo Contrato Social y Ambiental para la Bogotá del Siglo XXI | C4: =+C3+1 -> 2 | D4: Igualdad de oportunidades y desarrollo de capacidades para las mujeres | E4: Propósito 1: Hacer un nuevo contrato social para incrementar la inclusión social, productiva y política
B5: Un Nuevo Contrato Social y Ambiental para la Bogotá del Siglo XXI | C5: =+C4+1 -> 3 | D5: Movilidad social integral | E5: Propósito 1: Hacer un nuevo contrato social para incrementar la inclusión social, productiva y política
B6: Un Nuevo Contrato Social y Ambiental para la Bogotá del Siglo XXI | C6: 4 | D6: Prevención de la exclusión por razones étnicas, religiosas, sociales, políticas y de orientación sexual | E6: Propósito 1: Hacer un nuevo contrato social para incrementar la inclusión social, productiva y política
B7: Un Nuevo Contrato Social y Ambiental para la Bogotá del Siglo XXI | C7: 5 | D7: Promoción de la igualdad, el desarrollo de capacidades y el reconocimiento de las mujeres | E7: Propósito 1: Hacer un nuevo contrato social para incrementar la inclusión social, productiva y política
B8: Un Nuevo Contrato Social y Ambiental para la Bogotá del Siglo XXI | C8: 6 | D8: Sistema Distrital de Cuidado | E8: Propósito 1: Hacer un nuevo contrato social para incrementar la inclusión social, productiva y política
B9: Un Nuevo Contrato Social y Ambiental para la Bogotá del Siglo XXI | C9: 7 | D9: Mejora de la gestión de instituciones de salud | E9: Propósito 1: Hacer un nuevo contrato social para incrementar la inclusión social, productiva y política
B10: Un Nuevo Contrato Social y Ambiental para la Bogotá del Siglo XXI | C10: 8 | D10: Prevención y atención de maternidad temprana | E10: Propósito 1: Hacer un nuevo contrato social para incrementar la inclusión social, productiva y política
B11: Un Nuevo Contrato Social y Ambiental para la Bogotá del Siglo XXI | C11: 9 | D11: Prevención y cambios para mejorar la salud de la población | E11: Propósito 1: Hacer un nuevo contrato social para incrementar la inclusión social, productiva y política
B12: Un Nuevo Contrato Social y Ambiental para la Bogotá del Siglo XXI | C12: 10 | D12: Salud para la vida y el bienestar | E12: Propósito 1: Hacer un nuevo contrato social para incrementar la inclusión social, productiva y política
B13: Un Nuevo Contrato Social y Ambiental para la Bogotá del Siglo XXI | C13: 11 | D13: Salud y bienestar para niñas y niños | E13: Propósito 1: Hacer un nuevo contrato social para incrementar la inclusión social, productiva y política
B14: Un Nuevo Contrato Social y Ambiental para la Bogotá del Siglo XXI | C14: 12 | D14: Educación inicial: Bases sólidas para la vida. | E14: Propósito 1: Hacer un nuevo contrato social para incrementar la inclusión social, productiva y política
B15: Un Nuevo Contrato Social y Ambiental para la Bogotá del Siglo XXI | C15: 13 | D15: Educación para todos y todas: acceso y permanencia con equidad y énfasis en educación rural | E15: Propósito 1: Hacer un nuevo contrato social para incrementar la inclusión social, productiva y política
B16: Un Nuevo Contrato Social y Ambiental para la Bogotá del Siglo XXI | C16: 14 | D16: Formación integral: más y mejor tiempo en los colegios | E16: Propósito 1: Hacer un nuevo contrato social para incrementar la inclusión social, productiva y política
B17: Un Nuevo Contrato Social y Ambiental para la Bogotá del Siglo XXI | C17: 15 | D17: Plan Distrital de Lectura, Escritura y Oralidad: "Leer para la vida" | E17: Propósito 1: Hacer un nuevo contrato social para incrementar la inclusión social, productiva y política
B18: Un Nuevo Contrato Social y Ambiental para la Bogotá del Siglo XXI | C18: 16 | D18: Transformación pedagógica y mejoramiento de la gestión educativa. Es con los maestros y maestras. | E18: Propósito 1: Hacer un nuevo contrato social para incrementar la inclusión social, productiva y política
B19: Un Nuevo Contrato Social y Ambiental para la Bogotá del Siglo XXI | C19: 17 | D19: Jóvenes con capacidades: Proyecto de vida para la ciudadanía, la innovación y el trabajo del siglo XXI | E19: Propósito 1: Hacer un nuevo contrato social para incrementar la inclusión social, productiva y política
B20: Un Nuevo Contrato Social y Ambiental para la Bogotá del Siglo XXI | C20: 18 | D20: Cierre de brechas para la inclusión productiva urbano rural | E20: Propósito 1: Hacer un nuevo contrato social para incrementar la inclusión social, productiva y política
B21: Un Nuevo Contrato Social y Ambiental para la Bogotá del Siglo XXI | C21: 19 | D21: Vivienda y entornos dignos en el territorio urbano y rural | E21: Propósito 1: Hacer un nuevo contrato social para incrementar la inclusión social, productiva y política
B22: Un Nuevo Contrato Social y Ambiental para la Bogotá del Siglo XXI | C22: 20 | D22: Bogotá, referente en cultura, deporte, recreación y actividad física, con parques para el desarrollo y la salud | E22: Propósito 1: Hacer un nuevo contrato social para incrementar la inclusión social, productiva y política
B23: Un Nuevo Contrato Social y Ambiental para la Bogotá del Siglo XXI | C23: 21 | D23: Creación y vida cotidiana: Apropiación ciudadana del arte, la cultura y el patrimonio, para la democracia cultural | E23: Propósito 1: Hacer un nuevo contrato social para incrementar la inclusión social, productiva y política
B24: Un Nuevo Contrato Social y Ambiental para la Bogotá del Siglo XXI | C24: 22 | D24: Transformación cultural para la conciencia ambiental y el cuidado de la fauna doméstica | E24: Propósito 1: Hacer un nuevo contrato social para incrementar la inclusión social, productiva y política
B25: Un Nuevo Contrato Social y Ambiental para la Bogotá del Siglo XXI | C25: 23 | D25: Bogotá rural | E25: Propósito 1: Hacer un nuevo contrato social para incrementar la inclusión social, productiva y política
B26: Un Nuevo Contrato Social y Ambiental para la Bogotá del Siglo XXI | C26: 24 | D26: Bogotá región emprendedora e innovadora | E26: Propósito 1: Hacer un nuevo contrato social para incrementar la inclusión social, productiva y política
B27: Un Nuevo Contrato Social y Ambiental para la Bogotá del Siglo XXI | C27: 25 | D27: Bogotá región productiva y competitiva | E27: Propósito 1: Hacer un nuevo contrato social para incrementar la inclusión social, productiva y política
B28: Un Nuevo Contrato Social y Ambiental para la Bogotá del Siglo XXI | C28: 26 | D28: Bogotá - región, el mejor destino para visitar | E28: Propósito 1: Hacer un nuevo contrato social para incrementar la inclusión social, productiva y política
B29: Un Nuevo Contrato Social y Ambiental para la Bogotá del Siglo XXI | C29: 27 | D29: Cambio cultural para la gestión de la crisis climática | E29: Propósito 2 : Cambiar Nuestros Hábitos de Vida para Reverdecer a Bogotá y Adaptarnos y Mitigar la Crisis Climática
B30: Un Nuevo Contrato Social y Ambiental para la Bogotá del Siglo XXI | C30: =+C29+1 -> 28 | D30: Bogotá protectora de sus recursos naturales | E30: Propósito 2 : Cambiar Nuestros Hábitos de Vida para Reverdecer a Bogotá y Adaptarnos y Mitigar la Crisis Climática
B31: Un Nuevo Contrato Social y Ambiental para la Bogotá del Siglo XXI | C31: =+C30+1 -> 29 | D31: Asentamientos y entornos protectores | E31: Propósito 2 : Cambiar Nuestros Hábitos de Vida para Reverdecer a Bogotá y Adaptarnos y Mitigar la Crisis Climática
B32: Un Nuevo Contrato Social y Ambiental para la Bogotá del Siglo XXI | C32: 30 | D32: Eficiencia en la atención de emergencias | E32: Propósito 2 : Cambiar Nuestros Hábitos de Vida para Reverdecer a Bogotá y Adaptarnos y Mitigar la Crisis Climática
B33: Un Nuevo Contrato Social y Ambiental para la Bogotá del Siglo XXI | C33: 31 | D33: Protección y valoración del patrimonio tangible e intangible en Bogotá y la región | E33: Propósito 2 : Cambiar Nuestros Hábitos de Vida para Reverdecer a Bogotá y Adaptarnos y Mitigar la Crisis Climática
B34: Un Nuevo Contrato Social y Ambiental para la Bogotá del Siglo XXI | C34: 32 | D34: Revitalización urbana para la competitividad | E34: Propósito 2 : Cambiar Nuestros Hábitos de Vida para Reverdecer a Bogotá y Adaptarnos y Mitigar la Crisis Climática
B35: Un Nuevo Contrato Social y Ambiental para la Bogotá del Siglo XXI | C35: 33 | D35: Más árboles y más y mejor espacio público | E35: Propósito 2 : Cambiar Nuestros Hábitos de Vida para Reverdecer a Bogotá y Adaptarnos y Mitigar la Crisis Climática
B36: Un Nuevo Contrato Social y Ambiental para la Bogotá del Siglo XXI | C36: 34 | D36: Bogotá protectora de los animales | E36: Propósito 2 : Cambiar Nuestros Hábitos de Vida para Reverdecer a Bogotá y Adaptarnos y Mitigar la Crisis Climática
B37: Un Nuevo Contrato Social y Ambiental para la Bogotá del Siglo XXI | C37: 35 | D37: Manejo y prevención de contaminación | E37: Propósito 2 : Cambiar Nuestros Hábitos de Vida para Reverdecer a Bogotá y Adaptarnos y Mitigar la Crisis Climática
B38: Un Nuevo Contrato Social y Ambiental para la Bogotá del Siglo XXI | C38: 36 | D38: Manejo y saneamiento de los cuerpos de agua | E38: Propósito 2 : Cambiar Nuestros Hábitos de Vida para Reverdecer a Bogotá y Adaptarnos y Mitigar la Crisis Climática
B39: Un Nuevo Contrato Social y Ambiental para la Bogotá del Siglo XXI | C39: 37 | D39: Provisión y mejoramiento de servicios públicos | E39: Propósito 2 : Cambiar Nuestros Hábitos de Vida para Reverdecer a Bogotá y Adaptarnos y Mitigar la Crisis Climática
B40: Un Nuevo Contrato Social y Ambiental para la Bogotá del Siglo XXI | C40: 38 | D40: Ecoeficiencia, reciclaje, manejo de residuos e inclusión de la población recicladora | E40: Propósito 2 : Cambiar Nuestros Hábitos de Vida para Reverdecer a Bogotá y Adaptarnos y Mitigar la Crisis Climática
B41: Un Nuevo Contrato Social y Ambiental para la Bogotá del Siglo XXI | C41: 39 | D41: Bogotá territorio de paz y atención integral a las víctimas del conflicto armado | E41: Propósito 3: Inspirar confianza y legitimidad para vivir sin miedo y ser epicentro de cultura ciudadana, paz y reconciliación
B42: Un Nuevo Contrato Social y Ambiental para la Bogotá del Siglo XXI | C42: =+C41+1 -> 40 | D42: Más mujeres viven una vida libre de violencias, se sienten seguras y acceden con confianza al sistema de justicia | E42: Propósito 3: Inspirar confianza y legitimidad para vivir sin miedo y ser epicentro de cultura ciudadana, paz y reconciliación
B43: Un Nuevo Contrato Social y Ambiental para la Bogotá del Siglo XXI | C43: =+C42+1 -> 41 | D43: Sin machismo ni violencias contra las mujeres, las niñas y los niños | E43: Propósito 3: Inspirar confianza y legitimidad para vivir sin miedo y ser epicentro de cultura ciudadana, paz y reconciliación
B44: Un Nuevo Contrato Social y Ambiental para la Bogotá del Siglo XXI | C44: 42 | D44: Conciencia y cultura ciudadana para la seguridad, la convivencia y la construcción de confianza | E44: Propósito 3: Inspirar confianza y legitimidad para vivir sin miedo y ser epicentro de cultura ciudadana, paz y reconciliación
B45: Un Nuevo Contrato Social y Ambiental para la Bogotá del Siglo XXI | C45: 43 | D45: Cultura ciudadana para la confianza, la convivencia y la participación desde la vida cotidiana | E45: Propósito 3: Inspirar confianza y legitimidad para vivir sin miedo y ser epicentro de cultura ciudadana, paz y reconciliación
B46: Un Nuevo Contrato Social y Ambiental para la Bogotá del Siglo XXI | C46: 44 | D46: Autoconciencia, respeto y cuidado en el espacio público | E46: Propósito 3: Inspirar confianza y legitimidad para vivir sin miedo y ser epicentro de cultura ciudadana, paz y reconciliación
B47: Un Nuevo Contrato Social y Ambiental para la Bogotá del Siglo XXI | C47: 45 | D47: Espacio público más seguro y construido colectivamente | E47: Propósito 3: Inspirar confianza y legitimidad para vivir sin miedo y ser epicentro de cultura ciudadana, paz y reconciliación
B48: Un Nuevo Contrato Social y Ambiental para la Bogotá del Siglo XXI | C48: 46 | D48: Atención a jóvenes y adultos infractores con impacto en su proyecto de vida | E48: Propósito 3: Inspirar confianza y legitimidad para vivir sin miedo y ser epicentro de cultura ciudadana, paz y reconciliación
B49: Un Nuevo Contrato Social y Ambiental para la Bogotá del Siglo XXI | C49: 47 | D49: Calidad de Vida y Derechos de la Población privada de la libertad | E49: Propósito 3: Inspirar confianza y legitimidad para vivir sin miedo y ser epicentro de cultura ciudadana, paz y reconciliación
B50: Un Nuevo Contrato Social y Ambiental para la Bogotá del Siglo XXI | C50: 48 | D50: Plataforma institucional para la seguridad y justicia | E50: Propósito 3: Inspirar confianza y legitimidad para vivir sin miedo y ser epicentro de cultura ciudadana, paz y reconciliación
B51: Un Nuevo Contrato Social y Ambiental para la Bogotá del Siglo XXI | C51: 49 | D51: Movilidad segura, sostenible y accesible | E51: Propósito 4: Hacer de Bogotá Región un modelo de movilidad multimodal, incluyente y sostenible
B52: Un Nuevo Contrato Social y Ambiental para la Bogotá del Siglo XXI | C52: =+C51+1 -> 50 | D52: Red de metros | E52: Propósito 4: Hacer de Bogotá Región un modelo de movilidad multimodal, incluyente y sostenible
B53: Un Nuevo Contrato Social y Ambiental para la Bogotá del Siglo XXI | C53: 51 | D53: Gobierno Abierto | E53: Propósito 5: Construir Bogotá - Región con gobierno abierto, transparente y ciudadanía consciente
B54: Un Nuevo Contrato Social y Ambiental para la Bogotá del Siglo XXI | C54: =+C53+1 -> 52 | D54: Integración regional, distrital y local | E54: Propósito 5: Construir Bogotá - Región con gobierno abierto, transparente y ciudadanía consciente
B55: Un Nuevo Contrato Social y Ambiental para la Bogotá del Siglo XXI | C55: 53 | D55: Información para la toma de decisiones | E55: Propósito 5: Construir Bogotá - Región con gobierno abierto, transparente y ciudadanía consciente
B56: Un Nuevo Contrato Social y Ambiental para la Bogotá del Siglo XXI | C56: 54 | D56: Transformación digital y gestión de TIC para un territorio inteligente | E56: Propósito 5: Construir Bogotá - Región con gobierno abierto, transparente y ciudadanía consciente
B57: Un Nuevo Contrato Social y Ambiental para la Bogotá del Siglo XXI | C57: 55 | D57: Fortalecimiento de cultura ciudadana y su institucionalidad | E57: Propósito 5: Construir Bogotá - Región con gobierno abierto, transparente y ciudadanía consciente
B58: Un Nuevo Contrato Social y Ambiental para la Bogotá del Siglo XXI | C58: 56 | D58: Gestión pública efectiva | E58: Propósito 5: Construir Bogotá - Región con gobierno abierto, transparente y ciudadanía consciente
B59: Un Nuevo Contrato Social y Ambiental para la Bogotá del Siglo XXI | C59: 57 | D59: Gestión pública local | E59: Propósito 5: Construir Bogotá - Región con gobierno abierto, transparente y ciudadanía consciente

Sheet Tipo (hidden)
C1: Modalidad de Selección | D1: afectacion | E1: Naturaleza Jurídica
A2: 1 | C2: Concurso de méritos | D2: Funcionamiento | E2: Persona Natural
A3: 2 | C3: Contratación directa | D3: Inversión | E3: Persona Jurídica
A4: 3 | C4: Contratación mínima cuantia | D4: Operación | E4: Unión Temporal
A5: 4 | C5: Selección abreviada | E5: Consorcio
A6: 5 | C6: Licitación pública | E6: Sociedad con objeto único
A7: 6 | C7: Otros | E7: Persona jurídica extranjera
A8: 7 | C8: Régimen especial | E8: Sin ánimo de lucro
A9: 8 | E9: Cabildo indígena
A10: 9 | E10: Consejo comunitario de las comunidades negras
A11: 10 | C11: Selección abreviada | E11: Organizaciones de segundo nivel
A12: 11 | C12: Subasta inversa | E12: Formas o expresiones organizativas, afrocolombianas, raizales y palenqueras
A13: 12 | C13: Bolsas de productos | E13: Organizaciones de base de comunidades negras
A14: 13 | C14: Acuerdo marco de precios | E14: Asociaciones de autoridades tradicionales indígenas
A15: 14 | C15: Selección abreviada por menor cuantía
A16: 15
A17: 16 | C17: contratacion directa
A18: 17 | C18: Urgencia manifiesta
A19: 18 | C19: Contratación de empréstitos
A20: 19 | C20: Contratos interadministrativos
A21: 20 | C21: Contratación de bienes y servicios en el sector Defensa
B22: SECTOR | C22: Contratos para el desarrollo de actividades científicas y tecnológicas
A23: 1 | B23: Gestión Pública | C23: Contratos de encargo fiduciario que celebren las entidades territoriales cuando inician el Acuerdo de Reestructuración de Pasivos
A24: =+A23+1 -> 2 | B24: Gobierno | C24: Cuando no exista pluralidad de oferentes en el mercado
A25: =+A24+1 -> 3 | B25: Hacienda | C25: Prestación de servicios profesionales y de apoyo a la gestión, o para la ejecución de trabajos artísticos que sólo puedan encomendarse a determinadas personas naturales
A26: 4 | B26: Planeación | C26: El arrendamiento o adquisición de inmuebles
A27: 5 | B27: Desarrollo Económico, Industria y Turismo | C27: Contratación de bienes y servicios de la Dirección Nacional de Inteligencia (DNI)
A28: 6 | B28: Educación
A29: 7 | B29: Salud
A30: 8 | B30: Integración Social | C30: Decreto 92 de 2017
A31: 9 | B31: Cultura, Recreación y Deporte | C31: No aplica
A32: 10 | B32: Ambiente
A33: 11 | B33: Movilidad | C33: SECOP I
A34: 12 | B34: Hábitat | C34: SECOP II
A35: 13 | B35: Mujeres
A36: 14 | B36: Seguridad, Convivencia y Justicia | C36: Bogotá Mejor para Todos
A37: 15 | B37: Gestión Juridíca | C37: Un Nuevo Contrato Social y Ambiental para la Bogotá del Siglo XXI
A38: 16 | B38: descentralizado territorialmente
B40: 16 - AL | C40: Estado
C41: Celebrado o por iniciar
B42: Plan de desarrollo distrital | C42: En ejecución
B43: Un nuevo contrato social y ambiental para la Bogotá del Siglo XXI | C43: Terminado
C44: Liquidado
B46: Tipo
B47: Obra pública
B48: Consultoría
B49: Interventoría
B50: Contratos de prestación de servicios
B51: Contratos de prestación de servicios profesionales y de apoyo a la gestión
B52: Compraventa de bienes muebles
B53: Compraventa de bienes inmuebles
B54: Arrendamiento de bienes muebles
B55: Arrendamiento de bienes inmuebles
B56: Seguro
B57: Suministro
B58: Empréstitos
B59: Fiducia mercantil o encargo fiduciario
B60: Concesión
B61: Convenios de cooperacion
B62: Convenios/Contratos interadministrativos
B63: Convenios de apoyo o convenios de asociación
B64: Convenios solidarios
B65: Asociaciones Público Privadas
B66: Otros
B67: Otros gastos
